{"text_format":"3","workbook":"xlsx","n_sheets":5,"sheets":["表1 機關別勞務標","表2 機關別工程標","表3勞務標(工程類別)","表4工程標(工程類別)","節能減碳檢核明細"],"not_rendered":{"defined_names":8},"read":"whole","date_system":"1900"}

{"sheet":"表1 機關別勞務標","index":0,"n_rows":49,"n_cols":16,"rows_kept":49,"merged":[[0,0,0,1],[0,2,0,7],[0,8,1,14],[0,15,1,15],[1,0,2,0],[1,1,2,1],[1,2,2,2],[1,3,1,5],[1,6,1,7]]}
[null,null,"應辦理節能減碳檢核辦理情形統計",{"$nulls":5},"不需辦理節能減碳檢核原因統計(原因可複選)",{"$nulls":6},"備註"]
["機關別","決標\n總件數\n(A)\n(A = C+D+F)","應辦理件數(B)\n(B = A-F)","已依規定辦理情形",null,null,"未依規定辦理情形"]
[{"$nulls":3},"依規定辦理節能減碳檢核之件數\n(C)","計畫提報核定階段納入辦理節能減碳檢核件數","規劃設計階段納入辦理節能減碳檢核件數","未依規定於計畫提報核定、規劃設計階段納入辦理節能減碳檢核件數\n(D)","未依規定辦理節能減碳檢核件數比率%(E)\n(E = D/B)","不需辦理節能減碳檢核之件數\n(F)","非中央政府辦理新臺幣一億元以上之公共工程之件數","非受中央政府補助比率逾工程建造經費百分之五十且補助經費達新臺幣一億元以上之個案公共工程之件數","災後緊急處理、搶修、搶險之件數","災後原地復建之件數","整修工程、拆除工程、疏濬工程、結構補強工程之件數","規劃取得綠建築標章之建築工程之件數","為公共工程節能減碳檢核注意事項公布前核定案件"]
["中央研究院 ",{"$f":"C4+I4","v":1},{"$f":"D4+G4","v":0},0,0,0,0,{"$f":"IF(D4+G4=0,0,G4/(D4+G4))","v":{"v":0,"d":"0%"}},1,1,1,0,0,0,0,0]
["國史館 ",{"$f":"C5+I5","v":1},{"$f":"D5+G5","v":0},0,0,0,0,{"v":0,"d":"0%"},1,1,0,0,0,0,0,0]
["內政部 ",11,0,0,0,0,0,{"v":0,"d":"0%"},11,5,2,3,2,8,0,0]
["外交部 ",1,0,0,0,0,0,{"v":0,"d":"0%"},1,1,0,0,0,1,0,0]
["國防部 ",9,0,0,0,0,0,{"v":0,"d":"0%"},9,5,1,0,0,4,0,0]
["財政部 ",5,0,0,0,0,0,{"v":0,"d":"0%"},5,0,2,0,0,3,0,0]
["教育部 ",43,1,1,0,1,0,{"v":0,"d":"0%"},42,13,12,0,0,30,0,0]
["法務部 ",1,0,0,0,0,0,{"v":0,"d":"0%"},1,1,1,0,0,1,0,0]
["經濟部 ",27,3,3,1,3,0,{"v":0,"d":"0%"},24,20,5,0,0,5,1,0]
["交通部 ",64,{"$f":"D13+G13","v":11},11,0,11,0,{"v":0,"d":"0%"},53,32,6,2,2,16,1,1]
["勞動部 ",5,0,0,0,0,0,{"v":0,"d":"0%"},5,2,2,0,0,4,0,0]
["農業部 ",26,{"$f":"D15+G15","v":3},3,1,3,0,{"v":0,"d":"0%"},23,22,5,1,0,3,0,0]
["衛生福利部 ",4,0,0,0,0,0,{"v":0,"d":"0%"},4,2,2,0,0,1,0,0]
["文化部 ",3,0,0,0,0,0,{"v":0,"d":"0%"},3,3,0,0,0,0,0,0]
["國家科學及技術委員會 ",2,0,0,0,0,0,{"v":0,"d":"0%"},2,2,0,0,0,0,0,0]
["國家發展委員會 ",1,0,0,0,0,0,{"v":0,"d":"0%"},1,1,0,0,0,0,0,0]
["海洋委員會 ",1,0,0,0,0,0,{"v":0,"d":"0%"},1,1,1,0,1,0,0,0]
["國軍退除役官兵輔導委員會 ",3,0,0,0,0,0,{"v":0,"d":"0%"},3,2,0,0,0,2,0,0]
["客家委員會 ",1,0,0,0,0,0,{"v":0,"d":"0%"},1,1,0,0,0,0,0,0]
["國立故宮博物院 ",1,0,0,0,0,0,{"v":0,"d":"0%"},1,1,0,0,0,0,0,0]
["法官學院 ",1,0,0,0,0,0,{"v":0,"d":"0%"},1,1,1,0,0,0,0,0]
["臺北市政府 ",22,0,0,0,0,0,{"v":0,"d":"0%"},22,11,8,0,0,9,0,0]
["高雄市政府 ",58,{"$f":"D26+G26","v":8},8,8,0,0,{"v":0,"d":"0%"},50,21,27,1,1,14,2,0]
["新北市政府 ",57,{"$f":"D27+G27","v":1},1,0,1,0,{"v":0,"d":"0%"},56,28,22,5,0,17,1,1]
["宜蘭縣政府 ",19,{"$f":"D28+G28","v":0},0,0,0,0,{"v":0,"d":"0%"},19,6,1,0,0,12,1,0]
["桃園市政府 ",25,0,0,0,0,0,{"v":0,"d":"0%"},25,14,9,1,0,10,0,0]
["新竹縣政府 ",22,{"$f":"D30+G30","v":1},1,0,1,0,{"v":0,"d":"0%"},21,9,8,0,1,7,1,0]
["苗栗縣政府 ",45,{"$f":"D31+G31","v":0},0,0,0,0,{"v":0,"d":"0%"},45,17,22,1,0,14,1,0]
["彰化縣政府 ",26,0,0,0,0,0,{"v":0,"d":"0%"},26,9,11,0,0,11,1,0]
["南投縣政府 ",26,0,0,0,0,0,{"v":0,"d":"0%"},26,18,7,0,3,6,0,0]
["雲林縣政府 ",42,0,0,0,0,0,{"v":0,"d":"0%"},42,18,13,1,2,21,1,0]
["嘉義縣政府 ",24,0,0,0,0,0,{"v":0,"d":"0%"},24,7,4,5,7,10,3,0]
["屏東縣政府 ",54,{"$f":"D36+G36","v":2},2,0,2,0,{"v":0,"d":"0%"},52,27,12,0,1,27,0,1]
["臺東縣政府 ",5,{"$f":"D37+G37","v":0},0,0,0,0,{"v":0,"d":"0%"},5,2,3,0,1,1,1,0]
["花蓮縣政府 ",5,0,0,0,0,0,{"v":0,"d":"0%"},5,2,2,0,0,2,1,0]
["澎湖縣政府 ",6,0,0,0,0,0,{"v":0,"d":"0%"},6,4,2,0,1,3,0,0]
["基隆市政府 ",16,0,0,0,0,0,{"v":0,"d":"0%"},16,12,7,0,1,2,0,0]
["新竹市政府 ",15,0,0,0,0,0,{"v":0,"d":"0%"},15,10,4,0,0,5,1,0]
["臺中市政府 ",60,{"$f":"D42+G42","v":0},0,0,0,0,{"v":0,"d":"0%"},60,33,18,2,0,25,1,0]
["嘉義市政府 ",7,{"$f":"D43+G43","v":0},0,0,0,0,{"v":0,"d":"0%"},7,3,3,0,0,3,1,0]
["臺南市政府 ",30,0,0,0,0,0,{"v":0,"d":"0%"},30,18,16,1,1,4,1,0]
["連江縣政府 ",1,0,0,0,0,0,{"v":0,"d":"0%"},1,0,0,0,0,0,1,0]
["金門縣政府 ",6,0,0,0,0,0,{"v":0,"d":"0%"},6,2,0,0,0,4,0,0]
["屏東縣議會 ",1,0,0,0,0,0,{"v":0,"d":"0%"},1,0,1,0,0,1,0,0]
["其他(法人團體) ",9,0,0,0,0,0,{"v":0,"d":"0%"},9,3,3,0,0,3,1,0]
["合計",{"$f":"SUM(B4:B48)","v":792},30,30,10,22,0,{"v":0,"d":"0%"},{"$f":"SUM(I4:I48)","v":762},391,244,23,24,289,21,3]

{"sheet":"表2 機關別工程標","index":1,"n_rows":26,"n_cols":16,"rows_kept":26,"merged":[[0,0,0,1],[0,2,0,7],[0,8,1,14],[0,15,1,15],[1,0,2,0],[1,1,2,1],[1,2,2,2],[1,3,1,5],[1,6,1,7]]}
[null,null,"應辦理節能減碳檢核辦理情形統計",{"$nulls":5},"不需辦理節能減碳檢核原因統計(原因可複選)",{"$nulls":6},"備註"]
["機關別","決標\n總件數\n(A)\n(A = C+D+F)","應辦理件數(B)\n(B = A-F)","已依規定辦理情形",null,null,"未依規定辦理情形"]
[{"$nulls":3},"依規定辦理節能減碳檢核之件數\n(C)","計畫提報核定階段納入辦理節能減碳檢核件數","規劃設計階段納入辦理節能減碳檢核件數","未依規定於計畫提報核定、規劃設計階段納入辦理節能減碳檢核件數\n(D)","未依規定辦理節能減碳檢核件數比率%(E)\n(E = D/B)","不需辦理節能減碳檢核之件數\n(F)","非中央政府辦理新臺幣一億元以上之公共工程之件數","非受中央政府補助比率逾工程建造經費百分之五十且補助經費達新臺幣一億元以上之個案公共工程之件數","災後緊急處理、搶修、搶險之件數","災後原地復建之件數","整修工程、拆除工程、疏濬工程、結構補強工程之件數","規劃取得綠建築標章之建築工程之件數","為公共工程節能減碳檢核注意事項公布前核定案件"]
["內政部 ",{"$f":"C4+I4","v":2},{"$f":"D4+G4","v":0},0,0,0,0,{"v":0,"d":"0%"},2,0,0,0,0,0,1,1]
["國防部 ",{"$f":"C5+I5","v":3},{"$f":"D5+G5","v":0},0,0,0,0,{"$f":"IF(D5+G5=0,0,G5/(D5+G5))","v":{"v":0,"d":"0%"}},3,0,2,0,0,1,0,0]
["經濟部 ",9,{"$f":"D6+G6","v":1},1,0,1,0,{"v":0,"d":"0%"},8,2,0,0,0,4,2,0]
["交通部 ",9,3,3,0,3,0,{"v":0,"d":"0%"},6,0,2,0,0,3,1,0]
["農業部 ",1,1,1,0,1,0,{"v":0,"d":"0%"},0,0,0,0,0,0,0,0]
["國家科學及技術委員會 ",2,1,1,1,0,0,{"v":0,"d":"0%"},1,1,0,0,0,0,1,0]
["臺北市政府 ",4,1,1,0,1,0,{"v":0,"d":"0%"},3,1,3,0,0,0,1,0]
["高雄市政府 ",3,0,0,0,0,0,{"v":0,"d":"0%"},3,3,1,0,0,0,1,0]
["新北市政府 ",4,1,1,1,1,0,{"v":0,"d":"0%"},3,0,1,0,0,1,1,0]
["宜蘭縣政府 ",1,1,1,0,1,0,{"v":0,"d":"0%"},0,0,0,0,0,0,0,0]
["桃園市政府 ",4,0,0,0,0,0,{"v":0,"d":"0%"},4,2,0,0,0,0,2,0]
["新竹縣政府 ",2,0,0,0,0,0,{"v":0,"d":"0%"},2,0,1,0,0,1,1,0]
["彰化縣政府 ",2,1,1,0,1,0,{"v":0,"d":"0%"},1,0,0,0,0,0,1,0]
["雲林縣政府 ",5,{"$f":"D17+G17","v":3},3,2,2,0,{"v":0,"d":"0%"},2,0,0,0,0,0,1,1]
["嘉義縣政府 ",1,0,0,0,0,0,{"v":0,"d":"0%"},1,0,1,0,0,0,0,0]
["屏東縣政府 ",3,1,1,0,1,0,{"v":0,"d":"0%"},2,0,1,0,1,0,1,0]
["臺東縣政府 ",1,0,0,0,0,0,{"v":0,"d":"0%"},1,0,0,0,0,0,1,0]
["花蓮縣政府 ",3,0,0,0,0,0,{"v":0,"d":"0%"},3,0,0,0,2,1,0,0]
["澎湖縣政府 ",1,0,0,0,0,0,{"v":0,"d":"0%"},1,0,1,0,0,0,0,0]
["新竹市政府 ",1,1,1,0,1,0,{"v":0,"d":"0%"},0,0,0,0,0,0,0,0]
["臺中市政府 ",7,2,2,0,2,0,{"v":0,"d":"0%"},5,3,1,0,0,0,3,0]
["金門縣政府 ",1,1,1,0,1,0,{"v":0,"d":"0%"},0,0,0,0,0,0,0,0]
["合計",{"$f":"SUM(B4:B25)","v":69},18,18,4,16,0,{"$f":"IF(D26+G26=0,0,G26/(D26+G26))","v":{"v":0,"d":"0%"}},{"$f":"SUM(I4:I25)","v":51},12,14,0,3,11,18,2]

{"sheet":"表3勞務標(工程類別)","index":2,"n_rows":11,"n_cols":16,"rows_kept":11,"merged":[[0,0,0,1],[0,2,0,7],[0,8,1,14],[0,15,1,15],[1,0,2,0],[1,1,2,1],[1,2,2,2],[1,3,1,5],[1,6,1,7],[10,0,10,14]]}
[null,null,"應辦理節能減碳檢核辦理情形統計",{"$nulls":5},"不需辦理節能減碳檢核原因統計(原因可複選)",{"$nulls":6},"備註"]
["機關別","決標\n總件數\n(A)\n(A = C+D+F)","應辦理件數(B)\n(B = A-F)","已依規定辦理情形",null,null,"未依規定辦理情形"]
[{"$nulls":3},"依規定辦理節能減碳檢核之件數\n(C)","計畫提報核定階段納入辦理節能減碳檢核件數\n","規劃設計階段納入辦理節能減碳檢核件數\n","未依規定於計畫提報核定、規劃設計階段納入辦理節能減碳檢核件數\n(D)","未依規定辦理節能減碳檢核件數比率%\n(E)\n(E = D/B)","不需辦理節能減碳檢核之件數\n(F)","非中央政府辦理新臺幣一億元以上之公共工程之件數","非受中央政府補助比率逾工程建造經費百分之五十且補助經費達新臺幣一億元以上之個案公共工程之件數","災後緊急處理、搶修、搶險之件數","災後原地復建之件數","整修工程、拆除工程、疏濬工程、結構補強工程之件數","規劃取得綠建築標章之建築工程之件數","為公共工程節能減碳檢核注意事項公布前核定案件"]
["建築服務 ",{"$f":"C4+I4","v":164},{"$f":"D4+G4","v":1},1,0,1,0,{"$f":"IF(D4+G4=0,0,G4/(D4+G4))","v":{"v":0,"d":"0%"}},163,74,44,1,2,81,11,0]
["工程服務 ",{"$f":"C5+I5","v":533},{"$f":"D5+G5","v":27},27,9,20,0,{"v":0,"d":"0%"},506,256,167,20,22,188,8,2]
["綜合工程服務 ",59,{"$f":"D6+G6","v":2},2,1,1,0,{"v":0,"d":"0%"},57,34,10,2,0,18,2,1]
["都市計劃及景觀建築服務 ",36,{"$f":"D7+G7","v":0},0,0,0,0,{"v":0,"d":"0%"},36,27,23,0,0,2,0,0]
["合計",{"$f":"SUM(B4:B7)","v":792},30,30,10,22,0,{"$f":"IF(D8+G8=0,0,G8/(D8+G8))","v":{"v":0,"d":"0%"}},{"$f":"SUM(I4:I7)","v":762},391,244,23,24,289,21,3]
[]
[]
["備註：\n1.標的分類為「8671建築服務」、「8672工程服務」、「8673綜合工程服務」、「8674都市計劃及景觀建築服務」。\n2.各機關節能減碳檢核辦理情形係依據各機關所填之決標公告。"]

{"sheet":"表4工程標(工程類別)","index":3,"n_rows":11,"n_cols":16,"rows_kept":11,"merged":[[0,0,0,1],[0,2,0,7],[0,8,1,14],[0,15,1,15],[1,0,2,0],[1,1,2,1],[1,2,2,2],[1,3,1,5],[1,6,1,7],[10,0,10,14]]}
[null,null,"應辦理節能減碳檢核辦理情形統計",{"$nulls":5},"不需辦理節能減碳檢核原因統計(原因可複選)",{"$nulls":6},"備註"]
["機關別","決標\n總件數\n(A)\n(A = C+D+F)","應辦理件數(B)\n(B = A-F)","已依規定辦理情形",null,null,"未依規定辦理情形"]
[{"$nulls":3},"依規定辦理節能減碳檢核之件數\n(C)","計畫提報核定階段納入辦理節能減碳檢核件數\n","規劃設計階段納入辦理節能減碳檢核件數\n","未依規定於計畫提報核定、規劃設計階段納入辦理節能減碳檢核件數\n(D)","未依規定辦理節能減碳檢核件數比率%\n(E)\n(E = D/B)","不需辦理節能減碳檢核之件數\n(F)","非中央政府辦理新臺幣一億元以上之公共工程之件數","非受中央政府補助比率逾工程建造經費百分之五十且補助經費達新臺幣一億元以上之個案公共工程之件數","災後緊急處理、搶修、搶險之件數","災後原地復建之件數","整修工程、拆除工程、疏濬工程、結構補強工程之件數","規劃取得綠建築標章之建築工程之件數","為公共工程節能減碳檢核注意事項公布前核定案件"]
["交通工程 ",{"$f":"C4+I4","v":17},{"$f":"D4+G4","v":5},5,0,5,0,{"$f":"IF(D4+G4=0,0,G4/(D4+G4))","v":{"v":0,"d":"0%"}},12,5,3,0,2,1,0,1]
["水利工程 ",{"$f":"C5+I5","v":8},{"$f":"D5+G5","v":4},4,0,4,0,{"v":0,"d":"0%"},4,0,2,0,0,2,0,0]
["建築工程 ",{"$f":"C6+I6","v":32},{"$f":"D6+G6","v":5},5,2,5,0,{"v":0,"d":"0%"},27,7,8,0,1,4,16,0]
["其他土木工程 ",{"$f":"C7+I7","v":12},{"$f":"D7+G7","v":4},4,2,2,0,{"v":0,"d":"0%"},8,0,1,0,0,4,2,1]
["合計",{"$f":"SUM(B4:B7)","v":69},{"$f":"G8+D8","v":18},18,4,16,0,{"$f":"IF(D8+G8=0,0,G8/(D8+G8))","v":{"v":0,"d":"0%"}},{"$f":"SUM(I4:I7)","v":51},12,14,0,3,11,18,2]
[]
[]
["備註：\n1.交通工程類：依政府採購標的分類代碼表，代碼5131~5132。\n2.水利工程類：依政府採購標的分類代碼表，代碼5133。\n3.建築工程類：依政府採購標的分類代碼表，代碼5121~5129、5153、5161~5165、5171~5175、5177~5180。\n4.其他土木工程類：依政府採購標的分類代碼表，代碼5134~5137、5139~5140、5151~5152、5154~5159、5166、5169、5176。\n5.各機關節能減碳檢核辦理情形係依據各機關所填之決標公告。"]

{"sheet":"節能減碳檢核明細","index":4,"n_rows":863,"n_cols":15,"rows_kept":863}
["項次","主管機關","機關名稱","補助機關","標案名稱","採購性質","標的分類名稱","預算金額","決標金額","決標日期","決標公告\n日期","履約地點","節能減碳\n檢核狀態","已依規定辦理節能減碳檢核","不需辦理節能減碳\n檢核原因"]
["1","中央研究院 ","中央研究院 ","無 ","植微所南北大樓外牆修繕工程委託規劃設計（含建築物外牆安全檢查）及監造技術服務 ","勞務","工程服務 ","3000000","2910000","112/11/15","112/11/17","北部地區－全區 ","否","","非中央政府辦理新臺幣一億元以上之公共工程,非受中央政府補助比率逾工程建造經費百分之五十且補助經費達新臺幣一億元以上之個案公共工程 "]
["2","內政部 ","內政部 ","無 ","替代役等訓練場地先期規劃委託技術服務案 ","勞務","建築服務 ","6520000","6520000","112/10/31","112/11/08","中部地區－全區 ","否","","非受中央政府補助比率逾工程建造經費百分之五十且補助經費達新臺幣一億元以上之個案公共工程,整修工程、拆除工程、疏濬工程、結構補強工程 "]
["3","內政部 ","內政部警政署 ","無 ","內政部警政署警察史蹟館意象更新規劃執行委託專業服務案 ","勞務","工程服務 ","1490000","1449000","112/10/30","112/11/01","北部地區－全區 ","否","","非中央政府辦理新臺幣一億元以上之公共工程,非受中央政府補助比率逾工程建造經費百分之五十且補助經費達新臺幣一億元以上之個案公共工程,整修工程、拆除工程、疏濬工程、結構補強工程 "]
["4","內政部 ","內政部警政署國道公路警察局 ","無 ","第四公路警察大隊新市分隊建築物整修及停車場改善工程委託設計、監造技術服務 ","勞務","建築服務 ","220000","215000","112/11/06","112/11/09","新北市－泰山區 ","否","","非中央政府辦理新臺幣一億元以上之公共工程 "]
["5","內政部 ","內政部空中勤務總隊 ","無 ","高雄舊駐地拆除廳舍及棚廠委託規劃設計監造技術服務案 ","勞務","綜合工程服務 ","560000","435000","112/11/01","112/11/06","高雄市－小港區 ","否","","整修工程、拆除工程、疏濬工程、結構補強工程 "]
["6","內政部 ","內政部國土管理署 ","無 ","海洋國家公園管理處遊客中心等相關設施新建工程 ","工程","其他用途建築工程 ","311000000","311000000","112/07/26","112/11/13","高雄市－楠梓區 ","否","","規劃取得綠建築標章之建築工程 "]
["7","內政部 ","內政部國土管理署北區都市基礎工程分署 ","無 ","新北市林口區A3計畫道路新闢工程 ","工程","快速道路(不含高架快速道路), 街道, 馬路, 鐵路及機場跑道 ","480210471","448660000","112/11/09","112/11/16","新北市－林口區 ","否","","12/26電洽釐清本案為111年8月前核定案件，毋須辦理節能減碳檢核"]
["8","內政部 ","內政部國土管理署下水道工程分署 ","無 ","中正路、內轆及光復新村污水處理廠設備延壽、節能改善工程基本設計及專案管理（含監造）委託技術服務 ","勞務","綜合工程服務 ","8698000","8698000","112/11/08","112/11/17","臺中市－霧峰區,南投縣－南投 ","否","","整修工程、拆除工程、疏濬工程、結構補強工程 "]
["9","內政部 ","內政部國家公園署陽明山國家公園管理處 ","無 ","113年度陽明山國家公園管理處辦公室空調系統更新暨遊客中心、宿舍等房屋修建工程委託設計暨監造服務案 ","勞務","建築服務 ","1295611","1290429","112/11/13","112/11/15","臺北市－北投區 ","否","","非中央政府辦理新臺幣一億元以上之公共工程,整修工程、拆除工程、疏濬工程、結構補強工程 "]
["10","內政部 ","內政部國家公園署陽明山國家公園管理處 ","無 ","113年度園區災害緊急搶修及公共設施整建維修工程（開口契約）委託設計暨監造服務案 ","勞務","工程服務 ","1409000","1393502","112/11/03","112/11/07","臺北市－北投區 ","否","","災後緊急處理、搶修、搶險,災後原地復建,整修工程、拆除工程、疏濬工程、結構補強工程 "]
["11","內政部 ","內政部國家公園署陽明山國家公園管理處 ","無 ","113年度上磺溪、七星公園公廁硬體及冷水坑公廁汙水幹管改善更新工程委託設計暨監造服務案 ","勞務","建築服務 ","912125","908477","112/11/13","112/11/13","臺北市－士林區,新北市－金山區 ","否","","整修工程、拆除工程、疏濬工程、結構補強工程 "]
["12","內政部 ","內政部國家公園署金門國家公園管理處 ","無 ","「金門國家公園聚落及景點周邊道路舖面改善工程(開口契約)」委託監造技術服務 ","勞務","工程服務 ","809825","566877","112/11/07","112/11/08","離島地區－全區 ","否","","災後緊急處理、搶修、搶險 "]
["13","內政部 ","內政部國家公園署國家自然公園管理處 ","無 ","113年度臺中都會公園觀星廣場改建及公共設施修繕委託規劃設計監造技術服務案 ","勞務","工程服務 ","449621","436132","112/11/21","112/11/28","臺中市－西屯區 ","否","","非中央政府辦理新臺幣一億元以上之公共工程,整修工程、拆除工程、疏濬工程、結構補強工程 "]
["14","內政部 ","內政部國家公園署國家自然公園管理處 ","無 ","113年度園區遊憩服務設施維護暨零星修繕改善工程(開口契約)委託設計監造技術服務案 ","勞務","工程服務 ","538810","506481","112/11/27","112/11/28","高雄市－全區 ","否","","非中央政府辦理新臺幣一億元以上之公共工程,災後緊急處理、搶修、搶險,災後原地復建 "]
["15","文化部 ","國立臺灣工藝研究發展中心 ","無 ","臺灣工藝會館消防及無障礙設施改善工程委託監造(含原使用執照變更)案 ","勞務","工程服務 ","400000","400000","112/10/11","112/11/03","南投縣－草屯 ","否","","非中央政府辦理新臺幣一億元以上之公共工程 "]
["16","文化部 ","國立臺灣史前文化博物館 ","無 ","「科學的考古學」常設展示廳更新工程委託監造技術服務採購案 ","勞務","工程服務 ","648621","648621","112/07/28","112/11/13","臺東縣－臺東 ","否","","非中央政府辦理新臺幣一億元以上之公共工程 "]
["17","文化部 ","國立臺灣史前文化博物館 ","無 ","「113年景觀公園管理維護案」 ","勞務","都市計劃及景觀建築服務 ","3259179","3257811","112/11/17","112/11/23","臺東縣－臺東 ","否","","非中央政府辦理新臺幣一億元以上之公共工程 "]
["18","外交部 ","外交部 ","無 ","「使館專用區住宅大樓外牆更新及防水工程」委託規劃設計監造技術服務勞務採購案 ","勞務","建築服務 ","1120093","1120000","112/11/27","112/11/30","臺北市－士林區 ","否","","非中央政府辦理新臺幣一億元以上之公共工程,整修工程、拆除工程、疏濬工程、結構補強工程 "]
["19","交通部 ","交通部民用航空局臺北國際航空站 ","無 ","松山機場國際航廈樓板下陷監測委託技術服務 ","勞務","工程服務 ","900000","670000","112/11/17","112/11/21","北部地區－全區 ","否","","整修工程、拆除工程、疏濬工程、結構補強工程 "]
["20","交通部 ","交通部民用航空局臺北國際航空站 ","無 ","松山機場道面透地雷達檢測開口契約 ","勞務","綜合工程服務 ","861000","589999","112/10/25","112/11/17","臺北市－松山區 ","否","","非中央政府辦理新臺幣一億元以上之公共工程 "]
["21","交通部 ","交通部民用航空局金門航空站 ","無 ","尚義機場空側道面、圍籬、標線及附屬設施維護工程(113)(開口契約)委託技術服務 ","勞務","工程服務 ","975000","964737","112/10/06","112/11/03","金門縣－全區 ","否","","非中央政府辦理新臺幣一億元以上之公共工程 "]
["22","交通部 ","交通部臺灣鐵路管理局 ","無 ","鐵路行車安全改善六年計畫-邊坡全生命週期維護管理(委託制度訂定技術服務)-CCO1 ","勞務","工程服務 ","315381","312000","112/10/11","112/11/13","其他－其他 ","否","","整修工程、拆除工程、疏濬工程、結構補強工程 "]
["23","交通部 ","交通部臺灣鐵路管理局 ","無 ","新竹機務段消防設施改善工程(委託設計監造技術服務） ","勞務","工程服務 ","1425701","1283131","112/10/31","112/11/01","桃園市－楊梅區 ","否","","非中央政府辦理新臺幣一億元以上之公共工程 "]
["24","交通部 ","交通部臺灣鐵路管理局 ","無 ","「112~114年宜蘭線、北迴線隧道安全檢測及改善規劃設計工作」 ","勞務","工程服務 ","59676004","59676004","112/11/14","112/11/15","新北市－全區,宜蘭縣－全區 ","否","","整修工程、拆除工程、疏濬工程、結構補強工程 "]
["25","交通部 ","交通部臺灣鐵路管理局 ","無 ","交通部臺灣鐵路管理局111-113年度參與民間自辦都市更新案件不動產估價顧問委託技術服務案-選擇性招標後續邀標1 ","勞務","都市計劃及景觀建築服務 ","300000","290000","112/11/16","112/11/20","臺北市－中正區 ","否","","非中央政府辦理新臺幣一億元以上之公共工程,非受中央政府補助比率逾工程建造經費百分之五十且補助經費達新臺幣一億元以上之個案公共工程 "]
["26","交通部 ","交通部臺灣鐵路管理局 ","無 ","高雄機廠潮州基地二期工程建設計畫－動土典禮工作 ","勞務","工程服務 ","1229550","1229550","112/11/23","112/11/27","屏東縣－全區 ","否","","非受中央政府補助比率逾工程建造經費百分之五十且補助經費達新臺幣一億元以上之個案公共工程 "]
["27","交通部 ","交通部臺灣鐵路管理局 ","無 ","內灣線隧道加固補強暨排水改善工程 ","工程","其他土木工程 ","111401916","111400260","112/11/21","112/11/23","新竹縣－竹東,新竹縣－橫山 ","否","","整修工程、拆除工程、疏濬工程、結構補強工程 "]
["28","交通部 ","交通部公路總局第二區養護工程處 ","無 ","台8線篤銘橋及台61線跨132縣道脊背橋橋梁監測服務工作(變更新增數量) ","勞務","工程服務 ","463192","463192","112/11/10","112/11/17","臺中市－和平區,臺中市－大安區 ","否","","非中央政府辦理新臺幣一億元以上之公共工程 "]
["29","交通部 ","交通部公路總局第二區養護工程處 ","無 ","台61線94K+455玄寶大橋局部補強及改建工程委託監造服務工作 ","勞務","工程服務 ","38802721","38802721","112/11/01","112/11/02","苗栗縣－竹南,苗栗縣－後龍 ","否","","非中央政府辦理新臺幣一億元以上之公共工程 "]
["30","交通部 ","交通部公路總局第二區養護工程處 ","無 ","台14線雙冬橋改建工程委託可行性評估、綜合規劃、測量、地質探查及設計服務工作 ","勞務","工程服務 ","17102303","17102303","112/11/22","112/11/24","南投縣－草屯 ","已依規定納入辦理節能減碳檢核 ","規劃設計階段納入辦理節能減碳檢核 ",""]
["31","交通部 ","交通部高速公路局 ","無 ","國道1號楊梅至頭份段拓寬工程(楊梅新竹段、新竹頭份段)設計及監造委託技術服務 ","勞務","工程服務 ","4310313590","4310306970","112/11/01","112/11/10","新北市－全區,新竹市－全區,新竹縣－全區,桃園市－全區,苗栗縣－頭份 ","已依規定納入辦理節能減碳檢核 ","規劃設計階段納入辦理節能減碳檢核 ",""]
["32","交通部 ","交通部高速公路局 ","無 ","國道邊坡總體檢諮詢服務與管理精進作為委託技術服務 ","勞務","工程服務 ","9809310","9799860","112/11/09","112/11/17","新北市－泰山區 ","否","","非中央政府辦理新臺幣一億元以上之公共工程 "]
["33","交通部 ","交通部高速公路局北區養護工程分局 ","無 ","國道1號南下6k+315m~6k+500m等3處邊坡地錨補強工程監造委託技術服務工作 ","勞務","工程服務 ","3245100","2293800","112/11/17","112/11/23","臺北市－全區,基隆市－全區 ","否","","非中央政府辦理新臺幣一億元以上之公共工程 "]
["34","交通部 ","交通部高速公路局北區養護工程分局 ","無 ","高速公路北區CCTV補盲設計暨交控中心一樓空間展示設施設計監造及技術顧問服務工作 ","勞務","工程服務 ","6250000","6250000","112/10/23","112/11/01","臺北市－全區,基隆市－全區,新北市－全區,新竹市－全區,新竹縣－全區,桃園市－全區 ","否","","非中央政府辦理新臺幣一億元以上之公共工程 "]
["35","交通部 ","交通部高速公路局中區養護工程分局 ","無 ","西湖服務區高壓電力盤汰換委託設計監造技術服務工作CCO-01 ","勞務","工程服務 ","527000","513200","112/09/26","112/11/20","苗栗縣－西湖,臺中市－清水區 ","否","","非中央政府辦理新臺幣一億元以上之公共工程 "]
["36","交通部 ","交通部高速公路局中區養護工程分局 ","無 ","113年中分局邊坡安全評估及邊坡維護工程設計監造委託技術服務工作 ","勞務","工程服務 ","16774996","16589300","112/11/13","112/11/20","中部地區－全區 ","否","","非中央政府辦理新臺幣一億元以上之公共工程,非受中央政府補助比率逾工程建造經費百分之五十且補助經費達新臺幣一億元以上之個案公共工程 "]
["37","交通部 ","交通部高速公路局中區養護工程分局 ","無 ","國道1號原斗南收費站路段增設簡易地磅站委託設計及監造技術服務工作 ","勞務","工程服務 ","3015594","2952100","112/11/10","112/11/17","雲林縣－大埤 ","否","","非中央政府辦理新臺幣一億元以上之公共工程 "]
["38","交通部 ","交通部高速公路局中區養護工程分局 ","無 ","113年斗南段轄區橋梁維修及補強工程委託設計監造技術服務工作 ","勞務","工程服務 ","2362353","1530648","112/11/07","112/11/20","臺中市－西屯區,臺中市－大肚區,彰化縣－彰化,彰化縣－和美,彰化縣－田尾,雲林縣－斗南,雲林縣－大埤,雲林縣－虎尾,嘉義縣－大林 ","否","","整修工程、拆除工程、疏濬工程、結構補強工程 "]
["39","交通部 ","交通部高速公路局中區養護工程分局 ","無 ","112年苗栗段轄區噪音改善計畫技術服務工作 ","勞務","工程服務 ","1007873","968000","112/11/06","112/11/17","臺中市－后里區 ","否","","非中央政府辦理新臺幣一億元以上之公共工程,非受中央政府補助比率逾工程建造經費百分之五十且補助經費達新臺幣一億元以上之個案公共工程 "]
["40","交通部 ","交通部高速公路局中區養護工程分局 ","無 ","113年大甲工務段辦公廳舍清潔維護勞務工作 ","勞務","工程服務 ","992492","834700","112/10/20","112/11/01","臺中市－大甲區 ","否","","非中央政府辦理新臺幣一億元以上之公共工程 "]
["41","交通部 ","交通部高速公路局中區養護工程分局 ","無 ","113年南投段轄區房舍修繕暨南投服務區機電設施汰換工程委託設計技術服務工作 ","勞務","建築服務 ","690000","600000","112/11/16","112/11/20","南投縣－全區 ","否","","整修工程、拆除工程、疏濬工程、結構補強工程 "]
["42","交通部 ","交通部高速公路局南區養護工程分局 ","無 ","國3東山服務區東側土地景觀生態解說系統委託專業服務(112) ","勞務","工程服務 ","1470565","1380000","112/10/23","112/11/01","臺南市－東山區 ","否","","非中央政府辦理新臺幣一億元以上之公共工程,整修工程、拆除工程、疏濬工程、結構補強工程 "]
["43","交通部 ","交通部高速公路局南區養護工程分局 ","無 ","南分局轄區邊坡管理及安全評估委託技術服務工作(112-114) ","勞務","工程服務 ","8020815","7750000","112/11/15","112/11/24","臺南市－全區 ","否","","整修工程、拆除工程、疏濬工程、結構補強工程 "]
["44","交通部 ","交通部鐵道局 ","無 ","高鐵延伸屏東綜合規劃委託技術服務及配合工作(第3次契約變更) ","勞務","工程服務 ","16285480","14140000","112/11/09","112/11/20","新北市－板橋區 ","否","","非中央政府辦理新臺幣一億元以上之公共工程 "]
["45","交通部 ","交通部鐵道局 ","無 ","花東地區鐵路雙軌電氣化計畫CB02標光復至瑞穗土建及軌道工程 ","工程","快速道路(不含高架快速道路), 街道, 馬路, 鐵路及機場跑道 ","8838668189","8838000000","112/11/16","112/11/20","花蓮縣－全區 ","否","","非受中央政府補助比率逾工程建造經費百分之五十且補助經費達新臺幣一億元以上之個案公共工程 "]
["46","交通部 ","交通部鐵道局 ","無 ","嘉義縣市鐵路高架化延伸計畫(民雄段)土建工程委託設計及施工監造技術服務 ","勞務","工程服務 ","692344504","692344504","112/10/13","112/11/02","嘉義縣－民雄 ","已依規定納入辦理節能減碳檢核 ","規劃設計階段納入辦理節能減碳檢核 ",""]
["47","交通部 ","交通部鐵道局 ","無 ","嘉義縣市鐵路高架化延伸計畫委託專案管理技術服務 ","勞務","工程服務 ","103775407","103775407","112/08/18","112/11/14","新北市－板橋區 ","已依規定納入辦理節能減碳檢核 ","規劃設計階段納入辦理節能減碳檢核 ",""]
["48","交通部 ","交通部鐵道局 ","無 ","花東地區鐵路雙軌電氣化計畫SB01標花蓮至知本號誌電子聯鎖、電力遙控及電訊系統工程 ","工程","快速道路(不含高架快速道路), 街道, 馬路, 鐵路及機場跑道 ","5399008467","5398993532","112/11/23","112/11/28","東部地區－全區 ","否","","非受中央政府補助比率逾工程建造經費百分之五十且補助經費達新臺幣一億元以上之個案公共工程 "]
["49","交通部 ","交通部鐵道局 ","無 ","「嘉義縣市鐵路高架化延伸計畫」(民雄段)系統機電工程委託設計及施工監造技術服務 ","勞務","工程服務 ","82237800","82237800","112/11/23","112/11/27","新北市－板橋區 ","已依規定納入辦理節能減碳檢核 ","規劃設計階段納入辦理節能減碳檢核 ",""]
["50","交通部 ","中華郵政股份有限公司 ","無 ","郵政物流中心及作業中心聯通空橋規劃設計技術服務案 ","勞務","建築服務 ","1480000","1420000","112/11/03","112/11/10","北部地區－全區 ","否","","整修工程、拆除工程、疏濬工程、結構補強工程 "]
["51","交通部 ","桃園國際機場股份有限公司 ","無 ","主體航廈及道路系統區植栽工程 ","工程","其他專業工程 ","401500000","401348642","112/11/03","112/11/13","桃園市－大園區 ","否","","規劃取得綠建築標章之建築工程 "]
["52","交通部 ","桃園國際機場股份有限公司 ","無 ","埔心溪東側迴轉道箱涵及P4停車場復舊工程 ","工程","其他土木工程 ","109400000","86860000","112/11/03","112/11/13","桃園市－大園區 ","否","","整修工程、拆除工程、疏濬工程、結構補強工程 "]
["53","交通部 ","桃園國際機場股份有限公司 ","無 ","112至115年航空地面燈光-供電系統及燈光設施操作維護契約 ","勞務","綜合工程服務 ","199687884","197690000","112/10/25","112/11/02","桃園市－大園區 ","否","","非中央政府辦理新臺幣一億元以上之公共工程 "]
["54","交通部 ","桃園國際機場股份有限公司 ","無 ","「第二航廈防災計畫書製作、後續使用管理機制及附帶工程委託技術服務」案第1次契約變更 ","勞務","建築服務 ","4956000","4914000","112/11/22","112/11/23","桃園市－大園區 ","否","","整修工程、拆除工程、疏濬工程、結構補強工程 "]
["55","交通部 ","桃園國際機場股份有限公司 ","無 ","臺灣桃園國際機場第三跑道建設計畫案第4次契約變更 ","勞務","綜合工程服務 ","1840020","1800000","112/10/26","112/11/01","桃園市－大園區 ","否","","非中央政府辦理新臺幣一億元以上之公共工程 "]
["56","交通部 ","臺灣港務股份有限公司基隆港務分公司 ","無 ","113年度臺北港區道路及公共設施維護工程委託設計監造技術服務 ","勞務","工程服務 ","931875","908578","112/11/14","112/11/15","新北市－八里區 ","否","","非中央政府辦理新臺幣一億元以上之公共工程 "]
["57","交通部 ","臺灣港務股份有限公司基隆港務分公司 ","無 ","基隆港西27號倉庫興建工程委託設計監造第二次契約變更 ","勞務","建築服務 ","6618775","6618775","112/11/21","112/11/24","基隆市－全區 ","否","","規劃取得綠建築標章之建築工程 "]
["58","交通部 ","臺灣港務股份有限公司基隆港務分公司 ","無 ","臺北港北、南外廓防波堤暨南碼頭區二-1期圍堤及碼頭興建工程設計監造委託技術服務 ","勞務","工程服務 ","195761634","185000000","112/11/23","112/11/28","新北市－八里區 ","否","","非受中央政府補助比率逾工程建造經費百分之五十且補助經費達新臺幣一億元以上之個案公共工程 "]
["59","交通部 ","臺灣港務股份有限公司高雄港務分公司 ","無 ","高雄港過港隧道消防設備效能提升改善工程 ","工程","其他安裝工程 ","552000000","551730977","112/10/27","112/11/16","高雄市－旗津區,高雄市－前鎮區 ","否","","整修工程、拆除工程、疏濬工程、結構補強工程 "]
["60","交通部 ","臺灣港務股份有限公司高雄港務分公司 ","無 ","「高雄港辦公室群整修統包工程」規劃設計審查及監造工作委託技術服務 ","勞務","工程服務 ","21788235","21495000","112/10/16","112/11/10","高雄市－鼓山區 ","否","","整修工程、拆除工程、疏濬工程、結構補強工程 "]
["61","交通部 ","臺灣港務股份有限公司高雄港務分公司 ","無 ","「高雄港第五貨櫃中心碼頭改建工程」設計及監造工作委託技術服務第一次變更 ","勞務","工程服務 ","7742000","7580000","112/11/08","112/11/13","南部地區－全區 ","否","","整修工程、拆除工程、疏濬工程、結構補強工程 "]
["62","交通部 ","臺灣港務股份有限公司花蓮港務分公司 ","無 ","112年度花蓮港港區防舷材換裝與輪胎碰墊搶修(開口契約) (第一次變更設計) ","勞務","綜合工程服務 ","635078","625000","112/11/08","112/11/10","花蓮縣－花蓮 ","否","","整修工程、拆除工程、疏濬工程、結構補強工程 "]
["63","交通部 ","臺灣港務股份有限公司花蓮港務分公司 ","無 ","113年港區營運設施維護工程設計(監造)委託技術服務(開口合約) ","勞務","綜合工程服務 ","3450000","3450000","112/11/09","112/11/13","花蓮縣－花蓮 ","否","","非中央政府辦理新臺幣一億元以上之公共工程,整修工程、拆除工程、疏濬工程、結構補強工程 "]
["64","交通部 ","臺灣港務股份有限公司花蓮港務分公司 ","無 ","花蓮港港區電力備援規劃與設計監造委託技術服務(第二期) ","勞務","工程服務 ","1333926","1333926","112/11/16","112/11/16","花蓮縣－全區 ","否","","非中央政府辦理新臺幣一億元以上之公共工程 "]
["65","交通部 ","交通部觀光署花東縱谷國家風景區管理處 ","無 ","花東縱谷中、南區遊憩系統景點委託設計及監造技術服務(113-115) ","勞務","綜合工程服務 ","18885000","18850000","112/11/02","112/11/06","東部地區－全區 ","否","","非中央政府辦理新臺幣一億元以上之公共工程 "]
["66","交通部 ","交通部觀光署大鵬灣國家風景區管理處 ","無 ","113-114年度大鵬灣維修工程委託設計監造案 ","勞務","綜合工程服務 ","3695000","3680000","112/10/31","112/11/02","屏東縣－林邊,屏東縣－東港,屏東縣－琉球 ","否","","非中央政府辦理新臺幣一億元以上之公共工程 "]
["67","交通部 ","交通部公路局北區養護工程分局 ","無 ","一工處轄內隧道機電設備改善委託規劃、可行性評估、設計及監造等技術服務 ","勞務","工程服務 ","48156000","48156000","112/11/13","112/11/17","基隆市－全區,新北市－全區,新竹市－全區,新竹縣－全區,桃園市－全區 ","已依規定納入辦理節能減碳檢核 ","規劃設計階段納入辦理節能減碳檢核 ",""]
["68","交通部 ","交通部公路局北區養護工程分局 ","無 ","「台7線32K+500災害復建工程」委託監造技術服務工作 ","勞務","工程服務 ","19427643","19427643","112/11/09","112/11/27","桃園市－復興區 ","否","","非中央政府辦理新臺幣一億元以上之公共工程,災後原地復建 "]
["69","交通部 ","交通部公路局北區養護工程分局 ","無 ","113年北區養護工程分局交通規劃評估暨設計委託技術服務工作 ","勞務","工程服務 ","16890150","16890150","112/11/16","112/11/20","臺北市－全區,基隆市－全區,新北市－全區,新竹市－全區,新竹縣－全區,桃園市－全區 ","否","","非中央政府辦理新臺幣一億元以上之公共工程 "]
["70","交通部 ","交通部公路局中區養護工程分局 ","無 ","本處轄區110~112年度災害工程委託鑽探及測量設計服務工作（開口契約）(變更新增項目) ","勞務","工程服務 ","600000","600000","112/11/10","112/11/13","苗栗縣－全區,臺中市－全區,彰化縣－全區,南投縣－全區 ","否","","非中央政府辦理新臺幣一億元以上之公共工程 "]
["71","交通部 ","交通部公路局中區養護工程分局 ","無 ","台8線篤銘橋及台61線跨132縣道脊背橋橋梁監測服務工作(第二期) ","勞務","工程服務 ","5852949","5536000","112/11/24","112/11/27","臺中市－和平區,臺中市－大安區 ","否","","非中央政府辦理新臺幣一億元以上之公共工程 "]
["72","交通部 ","交通部公路局南區養護工程分局 ","無 ","110年度第三區養護工程處轄管邊坡定性定量分級暨進階檢測圖資建置計畫(追加金額第3次變更) ","勞務","工程服務 ","2209215","2209215","112/11/13","112/11/16","高雄市－全區,屏東縣－全區,臺東縣－全區 ","否","","非中央政府辦理新臺幣一億元以上之公共工程 "]
["73","交通部 ","交通部公路局南區養護工程分局 ","無 ","台20線明霸克露橋中期橋梁災害修復工程委託監造服務工作 ","勞務","工程服務 ","32583179","32583179","112/11/09","112/11/14","高雄市－桃源區 ","否","","災後緊急處理、搶修、搶險 "]
["74","交通部 ","交通部公路局南區養護工程分局 ","無 ","台1線354k+000~357k+600路段拓寬評估委託服務工作 ","勞務","工程服務 ","4298819","4298819","112/11/08","112/11/10","高雄市－岡山區,高雄市－路竹區 ","已依規定納入辦理節能減碳檢核 ","規劃設計階段納入辦理節能減碳檢核 ",""]
["75","交通部 ","交通部公路局南區養護工程分局 ","無 ","台9線351K+740-353K+250賓朗外環段道路新闢工程及代辦發包電力管線埋設工程 ","工程","快速道路(不含高架快速道路), 街道, 馬路, 鐵路及機場跑道 ","996436259","996436259","112/11/14","112/11/16","東部地區－全區 ","已依規定納入辦理節能減碳檢核 ","規劃設計階段納入辦理節能減碳檢核 ",""]
["76","交通部 ","交通部公路局南區養護工程分局 ","無 ","「113年甲仙工務段24小時輪班及南橫公路行車管制室監控業務工作」及「113年關山工務段24小時輪班監控業務工作」 ","勞務","工程服務 ","7529714","7529714","112/11/01","112/11/02","高雄市－甲仙區,臺東縣－關山 ","否","","非中央政府辦理新臺幣一億元以上之公共工程 "]
["77","交通部 ","交通部公路局南區養護工程分局 ","無 ","台88線交通韌性優化改善評估及工程設計(含測量及地質探查)委託技術服務工作 ","勞務","工程服務 ","17696824","17696824","112/11/08","112/11/15","南部地區－全區 ","已依規定納入辦理節能減碳檢核 ","規劃設計階段納入辦理節能減碳檢核 ",""]
["78","交通部 ","交通部公路局南區養護工程分局 ","無 ","台27線紫蝶公路環境改善委託規劃設計服務工作 ","勞務","都市計劃及景觀建築服務 ","1403000","1403000","112/11/22","112/11/27","高雄市－六龜區 ","否","","非中央政府辦理新臺幣一億元以上之公共工程 "]
["79","交通部 ","交通部公路局東區養護工程分局 ","無 ","台7甲線34K+300~34K+700道路邊坡改善工程委託監造技術服務工作 ","勞務","工程服務 ","4348387","4300000","112/11/07","112/11/08","宜蘭縣－大同 ","否","","災後緊急處理、搶修、搶險,災後原地復建 "]
["80","交通部 ","交通部公路局東區養護工程分局 ","無 ","台2線135K+545~台9線70K+190台灣光纜通道計畫委託監造技術服務工作 ","勞務","工程服務 ","7651770","6145471","112/11/21","112/11/22","宜蘭縣－頭城,宜蘭縣－礁溪 ","否","","非受中央政府補助比率逾工程建造經費百分之五十且補助經費達新臺幣一億元以上之個案公共工程 "]
["81","交通部 ","交通部公路局北區公路新建工程分局 ","無 ","「台66線0K+000~9K+100段平交路口高架化改善工程」委託監造服務工作 ","勞務","工程服務 ","177357600","177357600","112/10/24","112/11/08","北部地區－全區 ","已依規定納入辦理節能減碳檢核 ","規劃設計階段納入辦理節能減碳檢核 ",""]
["82","交通部 ","交通部公路局南區公路新建工程分局 ","無 ","台86線向東延伸至台3線新闢道路工程綜合規劃及第一階段影響評估委託服務工作 ","勞務","綜合工程服務 ","15904606","15904606","112/11/09","112/11/17","臺南市－關廟區,臺南市－龍崎區,高雄市－內門區 ","否","","非中央政府辦理新臺幣一億元以上之公共工程 "]
["83","交通部 ","交通部公路局南區公路新建工程分局 ","無 ","台19甲線47K+350~50K拓寬工程委託測量、地質探查及設計暨環境影響差異分析服務工作-第2次變更 ","勞務","工程服務 ","8174535","8174535","112/10/16","112/11/15","臺南市－關廟區 ","否","","12/25電洽釐清本案為111年8月前核定案件，毋須辦理節能減碳檢核"]
["84","交通部 ","交通部公路局蘇花公路改善工程處 ","無 ","台9線280K+730～282K+100(三民聚落段)道路拓寬工程 ","工程","快速道路(不含高架快速道路), 街道, 馬路, 鐵路及機場跑道 ","417164300","417164300","112/11/01","112/11/13","花蓮縣－全區 ","已依規定納入辦理節能減碳檢核 ","規劃設計階段納入辦理節能減碳檢核 ",""]
["85","交通部 ","交通部公路局臺北區監理所 ","無 ","臺北區監理所建置公路公共運輸專案管理辦公室暨辦公空間調整裝修工程委託設計及監造技術服務工作(變更契約) ","勞務","建築服務 ","120000","120000","112/11/02","112/11/13","新北市－樹林區 ","否","","非中央政府辦理新臺幣一億元以上之公共工程 "]
["86","交通部 ","交通部公路局臺中區監理所 ","無 ","彰化監理站車庫屋頂防水及廁所整修工程委託設計監造服務 ","勞務","建築服務 ","240013","240013","112/11/22","112/11/24","彰化縣－花壇 ","否","","整修工程、拆除工程、疏濬工程、結構補強工程 "]
["87","交通部 ","交通部高速公路局第二新建工程分局 ","無 ","國道10號燕巢交流道改善工程(第L11標)委託監造及專業技術顧問服務第1號契約變更 ","勞務","工程服務 ","4263194","4263194","112/10/26","112/11/06","其他－其他 ","已依規定納入辦理節能減碳檢核 ","規劃設計階段納入辦理節能減碳檢核 ",""]
["88","交通部 ","交通部高速公路局第二新建工程分局 ","無 ","「國道1號漁港高架橋緊急修復工程委託監造暨專業技術顧問服務」第2號契約變更 ","勞務","綜合工程服務 ","306440","306440","112/11/23","112/11/24","高雄市－前鎮區 ","否","","整修工程、拆除工程、疏濬工程、結構補強工程 "]
["89","交通部 ","交通部高速公路局第二新建工程分局 ","無 ","東山服務區辦公廳舍整建工程委託規劃設計及施工監造技術服務 ","勞務","建築服務 ","3044900","3040000","112/11/16","112/11/22","其他－其他 ","否","","整修工程、拆除工程、疏濬工程、結構補強工程 "]
["90","交通部 ","交通部鐵道局東部工程分局 ","無 ","花東地區鐵路雙軌化工程北段(花蓮~玉里)土建、電車線工程委託設計及施工監造技術服務(CCO-01) ","勞務","工程服務 ","49532783","48242461","112/11/13","112/11/15","花蓮縣－花蓮,花蓮縣－玉里 ","已依規定納入辦理節能減碳檢核 ","規劃設計階段納入辦理節能減碳檢核 ",""]
["91","交通部 ","交通部鐵道局東部工程分局 ","無 ","「花東地區鐵路雙軌電氣化計畫」PB02A標知本至臺東電車線工程 ","工程","快速道路(不含高架快速道路), 街道, 馬路, 鐵路及機場跑道 ","315564282","313806259","112/11/06","112/11/10","臺東縣－全區 ","已依規定納入辦理節能減碳檢核 ","規劃設計階段納入辦理節能減碳檢核 ",""]
["92","其他(私立學校) ","吳鳳學校財團法人吳鳳科技大學 ","教育部體育署 ","體育組-人工草皮整修工程委託規畫設計監造技術服務 ","勞務","工程服務 ","1530114","1512358","112/11/09","112/11/13","嘉義縣－民雄 ","否","","非中央政府辦理新臺幣一億元以上之公共工程 "]
["93","其他(私立學校) ","雲林縣私立東南國民中學 ","教育部國民及學前教育署、雲林縣政府 ","112年度公立國民中小學老舊廁所整修工程委託規劃設計監造技術服務 ","勞務","建築服務 ","298613","298613","112/11/10","112/11/10","雲林縣－西螺 ","否","","整修工程、拆除工程、疏濬工程、結構補強工程 "]
["94","其他(法人團體) ","財團法人中央廣播電臺 ","文化部 ","央廣褒忠分臺房舍室內裝修工程委託規劃設計監造服務案 ","勞務","工程服務 ","758200","736000","112/09/14","112/11/30","雲林縣－褒忠 ","否","","非受中央政府補助比率逾工程建造經費百分之五十且補助經費達新臺幣一億元以上之個案公共工程 "]
["95","其他(法人團體) ","金門縣農會 ","農業部 ","金門縣農會新增無障礙電梯工程規劃設計監造 ","勞務","工程服務 ","516000","513000","112/11/14","112/11/15","離島地區－全區 ","否","","非中央政府辦理新臺幣一億元以上之公共工程,非受中央政府補助比率逾工程建造經費百分之五十且補助經費達新臺幣一億元以上之個案公共工程 "]
["96","其他(法人團體) ","桃園市新屋區農會 ","無 ","112年度桃園市新屋區農會公糧乾燥機及流程設備更新倉庫工程 -基本規劃設計及監造案 ","勞務","工程服務 ","1150000","1035000","112/10/25","112/11/03","桃園市－新屋區 ","否","","非受中央政府補助比率逾工程建造經費百分之五十且補助經費達新臺幣一億元以上之個案公共工程 "]
["97","其他(法人團體) ","彰化區漁會 ","農業部漁業署、彰化縣政府 ","113年漢寶哨出海道路改善工程等3件委託設計案 ","勞務","工程服務 ","640000","588800","112/11/16","112/11/21","彰化縣－芳苑 ","否","","整修工程、拆除工程、疏濬工程、結構補強工程 "]
["98","其他(法人團體) ","彰化區漁會 ","彰化縣政府 ","112年線西及鹿港區漁港及泊地設施修繕工程等3件委託設計監造案 ","勞務","工程服務 ","685716","637716","112/11/02","112/11/03","彰化縣－鹿港,彰化縣－線西 ","否","","整修工程、拆除工程、疏濬工程、結構補強工程 "]
["99","其他(法人團體) ","馬祖區漁會 ","農業部漁業署 ","馬祖區漁會多功能漁民活動中心新建工程監造技術服務及委託變更設計案 ","勞務","建築服務 ","7776891","7752005","112/10/30","112/11/01","連江縣－全區 ","否","","規劃取得綠建築標章之建築工程 "]
["100","其他(法人團體) ","國家太空中心 ","國家科學及技術委員會 ","太空新創育成中心內部規劃設計 ","勞務","建築服務 ","4314000","4314000","112/10/20","112/11/01","新竹市－東區 ","否","","非中央政府辦理新臺幣一億元以上之公共工程 "]
["101","宜蘭縣政府 ","宜蘭縣政府 ","無 ","「紅柴林溫泉公園周邊景觀改善工程」委託設計技術服務案 ","勞務","工程服務 ","4495400","4469875","112/11/24","112/11/27","宜蘭縣－三星 ","否","","規劃取得綠建築標章之建築工程 "]
["102","宜蘭縣政府 ","宜蘭縣政府 ","無 ","獨立空調系統改善工程委託設計技術服務 ","勞務","工程服務 ","371936","371936","112/11/08","112/11/10","宜蘭縣－宜蘭 ","否","","整修工程、拆除工程、疏濬工程、結構補強工程 "]
["103","宜蘭縣政府 ","宜蘭縣政府 ","農業部漁業署 ","大溪漁港東防波堤延長工程 ","工程","水道、海港、水壩及其他水利工程 ","428000000","428000000","112/11/10","112/11/13","宜蘭縣－頭城 ","已依規定納入辦理節能減碳檢核 ","規劃設計階段納入辦理節能減碳檢核 ",""]
["104","宜蘭縣政府 ","宜蘭縣政府衛生局 ","無 ","「寒溪衛生室無障礙電梯工程與鋼構整修」委託規劃設計監造技術服務勞務採購案 ","勞務","工程服務 ","586850","586850","112/10/31","112/11/06","宜蘭縣－大同 ","否","","整修工程、拆除工程、疏濬工程、結構補強工程 "]
["105","宜蘭縣政府 ","宜蘭縣宜蘭市公所 ","無 ","宜蘭市112年度工程統合委託規劃設計、監造技術服務-後續擴充 ","勞務","工程服務 ","2500000","2500000","112/09/23","112/11/06","宜蘭縣－宜蘭 ","否","","非受中央政府補助比率逾工程建造經費百分之五十且補助經費達新臺幣一億元以上之個案公共工程 "]
["106","宜蘭縣政府 ","宜蘭縣礁溪鄉公所 ","無 ","「112年觀光亮點提升工程」委託設計及監造服務案 ","勞務","工程服務 ","439796","417806","112/11/07","112/11/08","宜蘭縣－礁溪 ","否","","整修工程、拆除工程、疏濬工程、結構補強工程 "]
["107","宜蘭縣政府 ","宜蘭縣冬山鄉公所 ","內政部國土管理署 ","武淵國小周邊人行環境改善及地景串聯計畫委託設計及監造技術服務案 ","勞務","工程服務 ","1450000","1450000","112/11/17","112/11/17","宜蘭縣－冬山 ","否","","非中央政府辦理新臺幣一億元以上之公共工程 "]
["108","宜蘭縣政府 ","宜蘭縣五結鄉公所 ","無 ","宜蘭縣五結鄉殯葬設施新建工程基地起掘、墳墓遷葬清理及整地作業勞務採購案 ","勞務","綜合工程服務 ","9000000","8888000","112/11/22","112/11/23","宜蘭縣－五結 ","否","","整修工程、拆除工程、疏濬工程、結構補強工程 "]
["109","宜蘭縣政府 ","宜蘭縣五結鄉公所 ","無 ","五結鄉村公園安全照明設備工程委託設計監造技術服務 ","勞務","綜合工程服務 ","254520","249672","112/11/20","112/11/22","宜蘭縣－五結 ","否","","整修工程、拆除工程、疏濬工程、結構補強工程 "]
["110","宜蘭縣政府 ","宜蘭縣三星鄉公所 ","內政部營建署 ","112年三星鄉大隱村及大義村道路改善工程委託設計監造技術服務案 ","勞務","工程服務 ","1050000","1050000","112/11/08","112/11/15","宜蘭縣－三星 ","否","","非中央政府辦理新臺幣一億元以上之公共工程 "]
["111","宜蘭縣政府 ","宜蘭縣大同鄉公所 ","內政部營建署 ","「提升道路品質計畫2.0-宜蘭縣大同鄉南山部落開埤巷道路改善工程」委託規劃、設計監造技術服務案 ","勞務","工程服務 ","1050000","1050000","112/11/17","112/11/20","宜蘭縣－大同 ","否","","整修工程、拆除工程、疏濬工程、結構補強工程 "]
["112","宜蘭縣政府 ","宜蘭縣立東光國民中學 ","宜蘭縣政府 ","公立國民中小學老舊廁所整修工程委託設計及監造技術服務 ","勞務","建築服務 ","625120","625120","112/11/14","112/11/16","宜蘭縣－羅東 ","否","","整修工程、拆除工程、疏濬工程、結構補強工程 "]
["113","宜蘭縣政府 ","宜蘭縣立興中國民中學 ","教育部國民及學前教育署 ","112年興中國中老舊廁所整修工程委託規劃設計暨監造技術服務採購案 ","勞務","建築服務 ","576619","576619","112/11/07","112/11/07","北部地區－全區,東部地區－全區 ","否","","整修工程、拆除工程、疏濬工程、結構補強工程 "]
["114","宜蘭縣政府 ","宜蘭縣宜蘭市中山國民小學 ","宜蘭縣政府 ","宜蘭縣中山國小技擊館外擴工程委託規劃設計監造服務採購案 ","勞務","建築服務 ","520000","520000","112/11/24","112/11/27","宜蘭縣－宜蘭 ","否","","非中央政府辦理新臺幣一億元以上之公共工程 "]
["115","宜蘭縣政府 ","宜蘭縣羅東鎮成功國民小學 ","無 ","風雨走廊新建工程委託規劃設計監造技術服務案 ","勞務","建築服務 ","622301","609855","112/11/21","112/11/23","宜蘭縣－羅東 ","否","","整修工程、拆除工程、疏濬工程、結構補強工程 "]
["116","宜蘭縣政府 ","宜蘭縣壯圍鄉壯圍國民小學 ","內政部、宜蘭縣政府 ","壯圍國小周邊通學廊道改善計畫工程委託規劃設計及監造技術服務採購案 ","勞務","建築服務 ","1054860","584031","112/11/23","112/11/24","宜蘭縣－全區 ","否","","非中央政府辦理新臺幣一億元以上之公共工程 "]
["117","宜蘭縣政府 ","宜蘭縣冬山鄉順安國民小學 ","宜蘭縣政府 ","宜蘭縣冬山鄉順安國民小學校園周邊暨行車安全道路改善計畫-通學廊道改善計畫工程委託規劃設計(含後續擴充)採購案 ","勞務","工程服務 ","225163","225163","112/11/27","112/11/29","東部地區－全區 ","否","","整修工程、拆除工程、疏濬工程、結構補強工程 "]
["118","宜蘭縣政府 ","宜蘭縣三星鄉憲明國民小學 ","教育部國民及學前教育署 ","宜蘭縣三星鄉憲明國民小學校園風雨廊道新建工程-委託規劃設計監造案 ","勞務","建築服務 ","550803","550803","112/11/20","112/11/22","東部地區－全區 ","否","","非中央政府辦理新臺幣一億元以上之公共工程 "]
["119","宜蘭縣政府 ","宜蘭縣三星鄉大隱國民小學 ","教育部 ","「112年老舊廁所整修工程」委託規劃設計監造技術服務 ","勞務","工程服務 ","300000","300000","112/11/15","112/11/15","宜蘭縣－全區 ","否","","非中央政府辦理新臺幣一億元以上之公共工程,整修工程、拆除工程、疏濬工程、結構補強工程 "]
["120","宜蘭縣政府 ","宜蘭縣海洋及漁業發展所 ","農業部漁業署 ","南方澳漁港船員多功能會館改善工程委託規劃設計技術服務案第2次契約變更 ","勞務","綜合工程服務 ","611964","611964","112/11/27","112/11/27","宜蘭縣－蘇澳 ","否","","整修工程、拆除工程、疏濬工程、結構補強工程 "]
["121","法官學院 ","法官學院 ","無 ","113年度法官學院景觀植栽維護管理委託專業服務案 ","勞務","都市計劃及景觀建築服務 ","433194","432330","112/11/02","112/11/02","臺北市－士林區 ","否","","非中央政府辦理新臺幣一億元以上之公共工程,非受中央政府補助比率逾工程建造經費百分之五十且補助經費達新臺幣一億元以上之個案公共工程 "]
["122","法務部 ","法務部矯正署武陵外役監獄 ","法務部矯正署 ","教誨堂輕鋼架修復勞務採購案 ","勞務","工程服務 ","576000","369600","112/11/20","112/11/22","臺東縣－鹿野 ","否","","非中央政府辦理新臺幣一億元以上之公共工程,非受中央政府補助比率逾工程建造經費百分之五十且補助經費達新臺幣一億元以上之個案公共工程,整修工程、拆除工程、疏濬工程、結構補強工程 "]
["123","花蓮縣政府 ","花蓮縣政府 ","交通部公路總局第四區養護工程處 ","花64線2k+000-22k+500彎道改善及道路安全提升工程(第二期) ","工程","其他土木工程 ","448674598","448674598","112/11/15","112/11/16","花蓮縣－豐濱,花蓮縣－瑞穗 ","否","","整修工程、拆除工程、疏濬工程、結構補強工程 "]
["124","花蓮縣政府 ","花蓮縣政府 ","無 ","花75鄉道玉長大橋及花78鄉道崙天大橋0918震災復建工程 ","工程","橋樑, 高架快速道路, 隧道及地鐵 ","738224979","738224979","112/11/16","112/11/29","花蓮縣－玉里,花蓮縣－富里 ","否","","災後原地復建 "]
["125","花蓮縣政府 ","花蓮縣政府 ","無 ","花68鄉道高寮大橋0918震災復建工程 ","工程","橋樑, 高架快速道路, 隧道及地鐵 ","906223843","906223843","112/11/16","112/11/21","花蓮縣－玉里 ","否","","災後原地復建 "]
["126","花蓮縣政府 ","花蓮縣政府 ","無 ","「花蓮縣新城鄉鄉村地區整體規劃」委託技術服務案 ","勞務","都市計劃及景觀建築服務 ","4870800","4870800","112/11/01","112/11/13","花蓮縣－新城 ","否","","非中央政府辦理新臺幣一億元以上之公共工程,非受中央政府補助比率逾工程建造經費百分之五十且補助經費達新臺幣一億元以上之個案公共工程 "]
["127","花蓮縣政府 ","花蓮縣吉安鄉公所 ","無 ","吉安鄉拉拉耙親子繪本館營造計畫委託設計監造技術服務 ","勞務","建築服務 ","2367571","2343895","112/11/23","112/11/28","花蓮縣－吉安 ","否","","整修工程、拆除工程、疏濬工程、結構補強工程 "]
["128","花蓮縣政府 ","花蓮縣立國風國民中學 ","教育部體育署 ","112年度游泳池整修工程規劃設計與監造勞務採購案 ","勞務","綜合工程服務 ","728264","728264","112/11/17","112/11/21","東部地區－全區 ","否","","規劃取得綠建築標章之建築工程 "]
["129","花蓮縣政府 ","花蓮縣新城鄉北埔國民小學 ","無 ","113年度北埔國小航空噪音設施防制委託規劃設計監造 ","勞務","工程服務 ","319594","319594","112/11/28","112/11/29","花蓮縣－新城 ","否","","整修工程、拆除工程、疏濬工程、結構補強工程 "]
["130","花蓮縣政府 ","花蓮縣吉安鄉宜昌國民小學 ","花蓮縣政府 ","花蓮縣113年國民中小學電力系統改善工程委託設計監造案 ","勞務","工程服務 ","320000","320000","112/11/21","112/11/28","花蓮縣－全區 ","否","","非中央政府辦理新臺幣一億元以上之公共工程,非受中央政府補助比率逾工程建造經費百分之五十且補助經費達新臺幣一億元以上之個案公共工程 "]
["131","金門縣政府 ","金門縣文化局 ","文化部文化資產局 ","金門縣定古蹟羅厝羅氏兄弟洋樓修復工程規劃設計(含因應計畫) ","勞務","建築服務 ","2700000","2700000","112/11/22","112/11/23","金門縣－全區 ","否","","整修工程、拆除工程、疏濬工程、結構補強工程 "]
["132","金門縣政府 ","金門縣文化局 ","文化部文化資產局 ","金門縣定古蹟黃厝洪氏古厝修復及再利用之規劃設計委託技術服務 ","勞務","建築服務 ","2000000","2000000","112/11/27","112/11/30","金門縣－全區 ","否","","整修工程、拆除工程、疏濬工程、結構補強工程 "]
["133","金門縣政府 ","金門縣殯葬管理所 ","無 ","金門縣殯葬管理所增設火化爐及空污設備環境影響評估委託技術服務案 ","勞務","工程服務 ","3700000","3600000","112/10/24","112/11/16","金門縣－全區 ","否","","非中央政府辦理新臺幣一億元以上之公共工程 "]
["134","金門縣政府 ","金門縣採購招標所 ","內政部營建署 ","烈嶼鄉第四標污水下水道及用戶接管工程暨民生管線（青岐、南塘、前埔、后宅等） ","工程","水管及排水設施鋪設工程 ","309866626","251599980","112/11/03","112/11/16","金門縣－烈嶼 ","已依規定納入辦理節能減碳檢核 ","規劃設計階段納入辦理節能減碳檢核 ",""]
["135","金門縣政府 ","金門縣採購招標所 ","金門縣政府 ","「述美國小西側和南側圍牆整建工程工程規劃設計(含監造)技術服務」 ","勞務","建築服務 ","410000","400000","112/11/09","112/11/13","金門縣－金沙 ","否","","整修工程、拆除工程、疏濬工程、結構補強工程 "]
["136","金門縣政府 ","金門縣採購招標所 ","教育部體育署、金門縣政府 ","古城國小人工草足球場新建工程委託規劃設計及監造服務 ","勞務","工程服務 ","712243","695000","112/11/02","112/11/17","金門縣－金城 ","否","","非中央政府辦理新臺幣一億元以上之公共工程 "]
["137","金門縣政府 ","金門縣採購招標所 ","無 ","金門縣湖埔國小校園整體規劃(含活動中心拆除重建初步規劃)委託技術服務案 ","勞務","建築服務 ","800000","800000","112/10/24","112/11/02","金門縣－金寧 ","否","","整修工程、拆除工程、疏濬工程、結構補強工程 "]
["138","南投縣政府 ","南投縣政府 ","行政院公共工程委員會 ","112年7月杜蘇芮及8月卡努颱風-C1-064-仁愛鄉投85線7K+956平靜橋災後復建工程委託技術服務及地質探查工作 ","勞務","工程服務 ","6277912","6277912","112/11/24","112/11/29","南投縣－仁愛 ","否","","災後原地復建 "]
["139","南投縣政府 ","南投縣政府 ","教育部國民及學前教育署 ","「109年度水里國中改善無障礙校園環境及昇降設備工程」委託規劃設計及監造服務第2次雜照及簡水申請(包含二次修正招標文件) ","勞務","建築服務 ","65000","65000","112/11/01","112/11/23","南投縣－水里 ","否","","非受中央政府補助比率逾工程建造經費百分之五十且補助經費達新臺幣一億元以上之個案公共工程 "]
["140","南投縣政府 ","南投縣政府 ","無 ","「112年度南投縣政府縣政大樓B棟B1廁所整修工程」委託設計及監造服務 ","勞務","建築服務 ","231426","230000","112/11/14","112/11/20","南投縣－南投 ","否","","非中央政府辦理新臺幣一億元以上之公共工程,非受中央政府補助比率逾工程建造經費百分之五十且補助經費達新臺幣一億元以上之個案公共工程,整修工程、拆除工程、疏濬工程、結構補強工程 "]
["141","南投縣政府 ","南投縣政府 ","無 ","「南投縣南投市福興里吉利路排水改善工程」工程用地都市計畫變更工作 ","勞務","綜合工程服務 ","960000","940000","112/11/23","112/11/29","南投縣－南投 ","否","","非中央政府辦理新臺幣一億元以上之公共工程 "]
["142","南投縣政府 ","南投縣政府 ","無 ","南崗國中、嘉和國小、平和國小及康壽國小等4校校內污水管線改管工程委託設計及監造工作 ","勞務","工程服務 ","804895","788797","112/11/21","112/11/30","南投縣－南投 ","否","","非中央政府辦理新臺幣一億元以上之公共工程 "]
["143","南投縣政府 ","南投縣政府 ","無 ","集集鎮投54線綠色隧道聯外道路(投54-1線)新闢工程委託基本設計技術服務 ","勞務","工程服務 ","1440000","1440000","112/10/30","112/11/10","南投縣－集集 ","否","","非中央政府辦理新臺幣一億元以上之公共工程 "]
["144","南投縣政府 ","南投縣政府 ","無 ","112年南投縣C2、H3類災害緊急復建工程委託測設監造及地質探查開口契約-後續擴充 ","勞務","工程服務 ","7218690","7218690","112/10/20","112/11/07","南投縣－全區 ","否","","災後原地復建 "]
["145","南投縣政府 ","南投縣政府 ","無 ","112年度南投縣農路及村里聯絡道路技術服務案件開口契約後續擴充 ","勞務","工程服務 ","1840000","1840000","112/10/25","112/11/09","南投縣－國姓,南投縣－仁愛,南投縣－名間,南投縣－集集,南投縣－鹿谷 ","否","","非中央政府辦理新臺幣一億元以上之公共工程 "]
["146","南投縣政府 ","南投縣政府 ","無 ","南投縣仁愛鄉翠華村翠巒部落及發祥村瑞岩部落第二期遷建用地先期規劃委託技術服務 ","勞務","工程服務 ","2970000","2920000","112/11/07","112/11/15","南投縣－埔里 ","否","","非中央政府辦理新臺幣一億元以上之公共工程,非受中央政府補助比率逾工程建造經費百分之五十且補助經費達新臺幣一億元以上之個案公共工程 "]
["147","南投縣政府 ","南投縣南投市公所 ","無 ","南投市省道路邊停車場停車格初步配置及交通影響評估 ","勞務","工程服務 ","525000","520000","112/11/08","112/11/09","南投縣－南投 ","否","","非中央政府辦理新臺幣一億元以上之公共工程,非受中央政府補助比率逾工程建造經費百分之五十且補助經費達新臺幣一億元以上之個案公共工程 "]
["148","南投縣政府 ","南投縣埔里鎮公所 ","行政院農業委員會水土保持局南投分局 ","「麒麟里共和段73地號旁農路改善工程」委託設計及監造 ","勞務","工程服務 ","262500","225000","112/11/21","112/11/21","南投縣－埔里 ","否","","整修工程、拆除工程、疏濬工程、結構補強工程 "]
["149","南投縣政府 ","南投縣竹山鎮公所 ","內政部營建署 ","112南投縣竹山鎮東鄉路及延平國小周邊人行道改善工程委託技術服務 ","勞務","工程服務 ","1673376","1653689","112/11/07","112/11/09","南投縣－竹山 ","否","","非中央政府辦理新臺幣一億元以上之公共工程,非受中央政府補助比率逾工程建造經費百分之五十且補助經費達新臺幣一億元以上之個案公共工程,整修工程、拆除工程、疏濬工程、結構補強工程 "]
["150","南投縣政府 ","南投縣竹山鎮公所 ","無 ","中央及社寮里周邊路面改善工程委託設計及監造 ","勞務","工程服務 ","393983","370808","112/11/16","112/11/22","中部地區－全區 ","否","","災後原地復建,整修工程、拆除工程、疏濬工程、結構補強工程 "]
["151","南投縣政府 ","南投縣集集鎮公所 ","無 ","「南投縣集集鎮第三公墓懷恩樹葬區暨周邊環境改善工程」委託設計監造 ","勞務","工程服務 ","290346","276675","112/10/26","112/11/30","南投縣－集集 ","否","","整修工程、拆除工程、疏濬工程、結構補強工程 "]
["152","南投縣政府 ","南投縣名間鄉公所 ","南投縣政府 ","南投縣名間鄉中山村等三村道路品質改善工程委託技術服務 ","勞務","工程服務 ","946900","913480","112/11/03","112/11/06","南投縣－名間 ","否","","非受中央政府補助比率逾工程建造經費百分之五十且補助經費達新臺幣一億元以上之個案公共工程 "]
["153","南投縣政府 ","南投縣鹿谷鄉公所 ","內政部國土管理署 ","鹿谷都市計畫廣興段15號及10號道路改善工程委託技術服務 ","勞務","工程服務 ","3235550","3088773","112/11/23","112/11/24","南投縣－鹿谷 ","否","","非中央政府辦理新臺幣一億元以上之公共工程 "]
["154","南投縣政府 ","南投縣鹿谷鄉公所 ","內政部營建署 ","鹿谷鄉中湖巷及支線路面改善工程委託技術服務 ","勞務","工程服務 ","1014985","964236","112/11/28","112/11/28","南投縣－鹿谷 ","否","","非中央政府辦理新臺幣一億元以上之公共工程 "]
["155","南投縣政府 ","南投縣鹿谷鄉公所 ","內政部營建署 ","鹿谷鄉中村巷及田頭巷支線路面改善工程委託技術服務 ","勞務","工程服務 ","1014985","964236","112/11/28","112/11/28","南投縣－鹿谷 ","否","","非中央政府辦理新臺幣一億元以上之公共工程 "]
["156","南投縣政府 ","南投縣魚池鄉公所 ","農業部農村發展及水土保持署 ","碧山巷8-1號旁農路改善工程(113-FR-06-3-027)-設計監造案 ","勞務","工程服務 ","616250","613000","112/11/29","112/11/29","南投縣－魚池 ","否","","非中央政府辦理新臺幣一億元以上之公共工程 "]
["157","南投縣政府 ","南投縣信義鄉公所 ","無 ","「倉庫坑筆石地區公共蓄水池改善工程」委託設計監造技術服務 ","勞務","工程服務 ","178500","174000","112/10/24","112/11/27","南投縣－信義 ","否","","非中央政府辦理新臺幣一億元以上之公共工程 "]
["158","南投縣政府 ","南投縣立埔里國民中學 ","南投縣政府 ","埔里國中力行館活動中心地板更新整建工程委託設計監造技術服務案 ","勞務","建築服務 ","548769","515843","112/11/14","112/11/16","中部地區－全區 ","否","","非中央政府辦理新臺幣一億元以上之公共工程 "]
["159","南投縣政府 ","南投縣立南崗國民中學 ","教育部體育署 ","「113年全國身心障礙國民運動會場館整建-南崗國中操場」工程委託設計及監造服務案 ","勞務","工程服務 ","219872","219872","112/11/16","112/11/17","南投縣－南投 ","否","","非中央政府辦理新臺幣一億元以上之公共工程 "]
["160","南投縣政府 ","南投縣立日新國民中學 ","教育部國民及學前教育署 ","112-113年度日新國中設置學校社區共讀站工程委託規劃設計及監造服務 ","勞務","建築服務 ","226238","220000","112/09/12","112/11/16","南投縣－草屯 ","否","","非中央政府辦理新臺幣一億元以上之公共工程,非受中央政府補助比率逾工程建造經費百分之五十且補助經費達新臺幣一億元以上之個案公共工程 "]
["161","南投縣政府 ","南投縣立社寮國民中學 ","教育部體育署 ","「112年度社寮國中半戶外球場新建工程」委託規劃設計監造服務 ","勞務","建築服務 ","634639","634638","112/11/15","112/11/17","南投縣－竹山 ","否","","整修工程、拆除工程、疏濬工程、結構補強工程 "]
["162","南投縣政府 ","南投縣中寮鄉中寮國民小學 ","南投縣政府 ","112年中寮國小老舊廁所整修工程委託規劃設計監造服務 ","勞務","建築服務 ","243150","243150","112/11/02","112/11/03","中部地區－全區 ","否","","非中央政府辦理新臺幣一億元以上之公共工程 "]
["163","南投縣政府 ","南投縣南投市康壽國民小學 ","教育部 ","112年南投縣立三和游泳池運動及無障礙環境整修工程 委託規劃設計及監造服務採購案 ","勞務","建築服務 ","223537","223537","112/11/06","112/11/09","中部地區－全區 ","否","","非中央政府辦理新臺幣一億元以上之公共工程 "]
["164","客家委員會 ","客家委員會 ","無 ","112年度「客庄創生環境營造計畫督導團」專業服務勞務採購案 ","勞務","工程服務 ","19774675","19300000","112/11/14","112/11/22","新北市－新莊區 ","否","","非中央政府辦理新臺幣一億元以上之公共工程 "]
["165","屏東縣政府 ","屏東縣政府 ","內政部 ","屏東縣國土計畫-來義鄉鄉村地區整體規劃委託技術服務 ","勞務","都市計劃及景觀建築服務 ","4000000","3790000","112/11/07","112/11/09","屏東縣－來義 ","否","","非中央政府辦理新臺幣一億元以上之公共工程 "]
["166","屏東縣政府 ","屏東縣政府 ","內政部營建署 ","屏東縣立林邊國民中學校門周邊暨通學步道環境整修工程計畫委託規劃設計暨監造技術服務 ","勞務","工程服務 ","1107301","1093091","112/11/14","112/11/15","屏東縣－林邊 ","否","","非中央政府辦理新臺幣一億元以上之公共工程,非受中央政府補助比率逾工程建造經費百分之五十且補助經費達新臺幣一億元以上之個案公共工程 "]
["167","屏東縣政府 ","屏東縣政府 ","內政部營建署 ","屏東縣屏東市污水下水道系統第四期實施計畫(含長治、麟洛、萬丹等區域)污水下水道工程委託設計及監造技術服務 ","勞務","工程服務 ","96816000","96816000","112/10/31","112/11/02","屏東縣－長治,屏東縣－麟洛,屏東縣－萬丹 ","已依規定納入辦理節能減碳檢核 ","規劃設計階段納入辦理節能減碳檢核 ",""]
["168","屏東縣政府 ","屏東縣政府 ","文化部文化資產局 ","兒童探索館歷史建築修復及再利用工程委託監造 ","勞務","建築服務 ","11630023","11583503","112/11/02","112/11/06","屏東縣－屏東 ","否","","非受中央政府補助比率逾工程建造經費百分之五十且補助經費達新臺幣一億元以上之個案公共工程 "]
["169","屏東縣政府 ","屏東縣政府 ","文化部文化資產局 ","歷史建築「屏東大武營區」因應計畫必要設施增設及基礎設施整合工程委託設計及監造 ","勞務","綜合工程服務 ","4095400","4050000","112/09/28","112/11/27","屏東縣－屏東 ","否","","非中央政府辦理新臺幣一億元以上之公共工程 "]
["170","屏東縣政府 ","屏東縣政府 ","文化部文化資產局 ","歷史建築屏東大武營區隊史館0205災損緊急修復工程委託設計 ","勞務","建築服務 ","950853","945000","112/11/14","112/11/15","屏東縣－屏東 ","否","","非中央政府辦理新臺幣一億元以上之公共工程,災後原地復建,整修工程、拆除工程、疏濬工程、結構補強工程 "]
["171","屏東縣政府 ","屏東縣政府 ","交通部航港局 ","後壁湖漁港漁業突堤碼頭興建工程委託監造服務案 ","勞務","工程服務 ","1700000","1680000","112/11/09","112/11/10","屏東縣－恆春 ","否","","非中央政府辦理新臺幣一億元以上之公共工程 "]
["172","屏東縣政府 ","屏東縣政府 ","行政院農業委員會漁業署 ","海口漁港內突堤增設及北碼頭改善工程委託監造技術服務 ","勞務","工程服務 ","3840000","3800000","112/11/09","112/11/13","屏東縣－車城 ","否","","12/25電洽釐清本案為111年8月前核定案件，毋須辦理節能減碳檢核"]
["173","屏東縣政府 ","屏東縣政府 ","原住民族委員會 ","德文部落文化健康站周邊改善工程委託規劃設計暨監造技術服務 ","勞務","工程服務 ","402662","379845","112/11/23","112/11/27","屏東縣－三地門 ","否","","非中央政府辦理新臺幣一億元以上之公共工程,整修工程、拆除工程、疏濬工程、結構補強工程 "]
["174","屏東縣政府 ","屏東縣政府 ","無 ","屏東縣內埔鄉衛生所重建工程 ","工程","其他用途建築工程 ","128777653","128400000","112/11/21","112/11/24","屏東縣－內埔 ","否","","非受中央政府補助比率逾工程建造經費百分之五十且補助經費達新臺幣一億元以上之個案公共工程,規劃取得綠建築標章之建築工程 "]
["175","屏東縣政府 ","屏東縣政府 ","農業部漁業署 ","112年度鹽埔養殖漁業生產區民意橋周邊道路改善工程等4件工程設計案 ","勞務","工程服務 ","343000","339000","112/11/21","112/11/22","屏東縣－鹽埔,屏東縣－枋寮 ","否","","非受中央政府補助比率逾工程建造經費百分之五十且補助經費達新臺幣一億元以上之個案公共工程 "]
["176","屏東縣政府 ","屏東縣政府 ","農業部漁業署 ","海口漁港內突堤增設及北碼頭改善工程 ","工程","其他土木工程 ","113760000","112980000","112/11/02","112/11/06","屏東縣－車城 ","已依規定納入辦理節能減碳檢核 ","規劃設計階段納入辦理節能減碳檢核 ",""]
["177","屏東縣政府 ","屏東縣政府 ","農業部漁業署 ","塭豐養殖漁業生產區塭豐二中排改善工程委託監造技術服務 ","勞務","工程服務 ","3100000","3010000","112/11/09","112/11/10","屏東縣－佳冬 ","否","","非中央政府辦理新臺幣一億元以上之公共工程 "]
["178","屏東縣政府 ","屏東縣政府 ","農業部漁業署 ","海口、後壁湖及琉球新漁港曳船道及上架場設施改善工程委託設計技術服務及後續擴充監造 ","勞務","工程服務 ","1879000","1860000","112/11/23","112/11/27","屏東縣－琉球,屏東縣－車城,屏東縣－恆春 ","否","","非中央政府辦理新臺幣一億元以上之公共工程,整修工程、拆除工程、疏濬工程、結構補強工程 "]
["179","屏東縣政府 ","屏東縣政府 ","衛生福利部社會及家庭署 ","屏東縣琉球全人關懷園區社會福利綜合館興建工程 ","工程","其他用途建築工程 ","129316851","129316851","112/11/02","112/11/03","屏東縣－琉球 ","否","","災後原地復建 "]
["180","屏東縣政府 ","屏東縣政府衛生局 ","行政院環境保護署 ","優質公廁及美質環境推動計畫-屏東縣政府衛生局轄區衛生所廁所修繕工程委託規劃設計監造技術服務 ","勞務","建築服務 ","2104074","2061993","112/11/17","112/11/22","屏東縣－瑪家,屏東縣－九如,屏東縣－高樹,屏東縣－鹽埔,屏東縣－長治,屏東縣－麟洛,屏東縣－泰武,屏東縣－來義,屏東縣－崁頂,屏東縣－新埤,屏東縣－南州,屏東縣－林邊,屏東縣－牡丹,屏東縣－恆春 ","否","","非中央政府辦理新臺幣一億元以上之公共工程,非受中央政府補助比率逾工程建造經費百分之五十且補助經費達新臺幣一億元以上之個案公共工程,整修工程、拆除工程、疏濬工程、結構補強工程 "]
["181","屏東縣政府 ","屏東縣政府衛生局 ","無 ","112年度屏東縣東港、林邊、萬巒、來義、滿州、泰武、佳冬鄉衛生所修繕工程委託規劃設計監造技術服務 ","勞務","建築服務 ","507666","497513","112/10/25","112/11/02","屏東縣－泰武,屏東縣－來義,屏東縣－萬巒,屏東縣－林邊,屏東縣－東港,屏東縣－佳冬,屏東縣－滿州 ","否","","整修工程、拆除工程、疏濬工程、結構補強工程 "]
["182","屏東縣政府 ","屏東縣政府警察局 ","無 ","112年度交通號誌維修暨改善等相關工程開口契約委託監造技術服務第1次後續擴充 ","勞務","工程服務 ","1542000","1542000","112/11/09","112/11/21","屏東縣－全區 ","否","","整修工程、拆除工程、疏濬工程、結構補強工程 "]
["183","屏東縣政府 ","屏東縣潮州鎮公所 ","無 ","113-潮州鎮內聖誕氛圍營造計畫 ","勞務","都市計劃及景觀建築服務 ","1400000","1360000","112/11/28","112/11/30","屏東縣－潮州 ","否","","非中央政府辦理新臺幣一億元以上之公共工程,非受中央政府補助比率逾工程建造經費百分之五十且補助經費達新臺幣一億元以上之個案公共工程 "]
["184","屏東縣政府 ","屏東縣東港鎮公所 ","內政部國土管理署 ","(112)屏東縣東港鎮都市計畫區周邊路網道路改善工程委託設計監造服務案 ","勞務","工程服務 ","579360","568000","112/11/08","112/11/20","屏東縣－全區 ","否","","非中央政府辦理新臺幣一億元以上之公共工程 "]
["185","屏東縣政府 ","屏東縣東港鎮公所 ","內政部營建署 ","（112）屏東縣東港鎮光復路二段鋪面改善工程委託規劃設計監造服務 ","勞務","工程服務 ","1833400","1812800","112/10/25","112/11/02","南部地區－全區 ","否","","非中央政府辦理新臺幣一億元以上之公共工程,非受中央政府補助比率逾工程建造經費百分之五十且補助經費達新臺幣一億元以上之個案公共工程 "]
["186","屏東縣政府 ","屏東縣恆春鎮公所 ","內政部營建署 ","112-屏東縣恆春鎮公所旁東門路、新興路及文化路人行空間改善工程委託設計監造技術服務 ","勞務","工程服務 ","1490521","1460711","112/11/22","112/11/27","屏東縣－恆春 ","否","","非中央政府辦理新臺幣一億元以上之公共工程 "]
["187","屏東縣政府 ","屏東縣恆春鎮公所 ","內政部營建署 ","112-屏東縣恆春鎮恒南路人行空間改善工程委託設計監造技術服務 ","勞務","工程服務 ","1005154","954896","112/11/22","112/11/23","屏東縣－恆春 ","否","","非中央政府辦理新臺幣一億元以上之公共工程 "]
["188","屏東縣政府 ","屏東縣恆春鎮公所 ","內政部營建署 ","恆春鎮環城北路路面改善工程委託設計監造技術服務 ","勞務","工程服務 ","888318","852785","112/11/23","112/11/29","屏東縣－恆春 ","否","","非中央政府辦理新臺幣一億元以上之公共工程 "]
["189","屏東縣政府 ","屏東縣恆春鎮公所 ","內政部營建署 ","恆春鎮草埔路道路排水溝及路面改善工程委託設計監造技術服務 ","勞務","工程服務 ","888318","861668","112/11/24","112/11/29","屏東縣－恆春 ","否","","非中央政府辦理新臺幣一億元以上之公共工程 "]
["190","屏東縣政府 ","屏東縣萬丹鄉公所 ","無 ","變更萬丹都市計畫(第三次通盤檢討)案暨商業區附帶條件之細部計畫(1處) ","勞務","都市計劃及景觀建築服務 ","5000000","4770000","112/11/24","112/11/30","屏東縣－萬丹 ","否","","非中央政府辦理新臺幣一億元以上之公共工程 "]
["191","屏東縣政府 ","屏東縣高樹鄉公所 ","無 ","高樹鄉長照創新整合中心興辦事業計畫暨用地變更委託服務案 ","勞務","都市計劃及景觀建築服務 ","1200000","1200000","112/11/07","112/11/07","屏東縣－高樹 ","否","","整修工程、拆除工程、疏濬工程、結構補強工程 "]
["192","屏東縣政府 ","屏東縣高樹鄉公所 ","無 ","112年度武洛溪廣福大橋下游河段疏濬計畫書撰寫案 ","勞務","工程服務 ","500000","460000","112/11/02","112/11/16","屏東縣－高樹 ","否","","非中央政府辦理新臺幣一億元以上之公共工程,非受中央政府補助比率逾工程建造經費百分之五十且補助經費達新臺幣一億元以上之個案公共工程 "]
["193","屏東縣政府 ","屏東縣高樹鄉公所 ","無 ","大津瀑布步道改善及維護工程(開口契約)委託設計監造案 ","勞務","工程服務 ","270000","262507","112/11/02","112/11/16","屏東縣－高樹 ","否","","非中央政府辦理新臺幣一億元以上之公共工程,非受中央政府補助比率逾工程建造經費百分之五十且補助經費達新臺幣一億元以上之個案公共工程 "]
["194","屏東縣政府 ","屏東縣高樹鄉公所 ","農業部農村發展及水土保持署臺南分署 ","新豐國小旁社區農路改善工程委託設計監造案 ","勞務","工程服務 ","250000","240570","112/10/26","112/11/15","屏東縣－高樹 ","否","","非中央政府辦理新臺幣一億元以上之公共工程,非受中央政府補助比率逾工程建造經費百分之五十且補助經費達新臺幣一億元以上之個案公共工程 "]
["195","屏東縣政府 ","屏東縣琉球鄉公所 ","內政部國土管理署 ","【屏東縣琉球鄉甲辰年迎王祭典道路暨公共設施改善計畫】委託設計監造服務 ","勞務","工程服務 ","1045256","983891","112/11/09","112/11/10","屏東縣－琉球 ","否","","非中央政府辦理新臺幣一億元以上之公共工程 "]
["196","屏東縣政府 ","屏東縣琉球鄉公所 ","內政部營建署 ","【屏東縣琉球鄉內廟前廣場改善工程】委託設計監造服務 ","勞務","工程服務 ","2482750","2329250","112/11/23","112/11/27","屏東縣－琉球 ","否","","非中央政府辦理新臺幣一億元以上之公共工程 "]
["197","屏東縣政府 ","屏東縣車城鄉公所 ","農業部農村發展及水土保持署 ","「車城鄉統埔社區公園環境改善工程」委託設計監造技術服務 ","勞務","工程服務 ","490000","490000","112/11/13","112/11/14","屏東縣－車城 ","否","","整修工程、拆除工程、疏濬工程、結構補強工程 "]
["198","屏東縣政府 ","屏東縣車城鄉公所 ","農業部農村發展及水土保持署臺南分署 ","「統埔往牡丹農路改善工程」委託設計監造技術服務 ","勞務","工程服務 ","282625","282625","112/11/20","112/11/21","屏東縣－車城 ","否","","整修工程、拆除工程、疏濬工程、結構補強工程 "]
["199","屏東縣政府 ","屏東縣瑪家鄉公所 ","農業部農村發展及水土保持署 ","瑪家鄉瑪家村擋土牆及三和村排水改善工程-委託設計及監造技術服務 ","勞務","工程服務 ","230894","223847","112/11/13","112/11/15","屏東縣－瑪家 ","否","","整修工程、拆除工程、疏濬工程、結構補強工程 "]
["200","屏東縣政府 ","屏東縣泰武鄉公所 ","農業部農村發展及水土保持署 ","萬安親水公園沿河岸道路工程委託設計及監造技術服務 ","勞務","工程服務 ","572950","538573","112/11/08","112/11/09","屏東縣－泰武 ","否","","整修工程、拆除工程、疏濬工程、結構補強工程 "]
["201","屏東縣政府 ","屏東縣來義鄉公所 ","內政部營建署 ","112-來義鄉望嘉村提升道路品質改善工程委託測設監造技術服務 ","勞務","工程服務 ","720000","700800","112/11/02","112/11/06","南部地區－全區 ","否","","整修工程、拆除工程、疏濬工程、結構補強工程 "]
["202","屏東縣政府 ","屏東縣來義鄉公所 ","內政部營建署 ","112-來義鄉新來義部落提升道路品質改善工程委託測設監造技術服務 ","勞務","工程服務 ","380000","370000","112/11/02","112/11/06","南部地區－全區 ","否","","整修工程、拆除工程、疏濬工程、結構補強工程 "]
["203","屏東縣政府 ","屏東縣春日鄉公所 ","原住民族委員會 ","112年度原住民族地方通行語及傳統名稱標示補助計畫勞務採購案 ","勞務","綜合工程服務 ","700000","698000","112/10/27","112/11/17","屏東縣－春日 ","否","","非中央政府辦理新臺幣一億元以上之公共工程,非受中央政府補助比率逾工程建造經費百分之五十且補助經費達新臺幣一億元以上之個案公共工程 "]
["204","屏東縣政府 ","屏東縣獅子鄉公所 ","行政院農業委員會水土保持局 ","112年度獅子鄉農路工程委託規劃設計及監造技術服務 ","勞務","工程服務 ","3640671","3385824","112/11/07","112/11/08","南部地區－全區 ","已依規定納入辦理節能減碳檢核 ","規劃設計階段納入辦理節能減碳檢核 ",""]
["205","屏東縣政府 ","屏東縣立內埔國民中學 ","屏東縣政府 ","「112年內埔國中老舊廁所整修工程」委託規劃設計監造服務 ","勞務","建築服務 ","586585","586585","112/11/08","112/11/10","屏東縣－內埔 ","否","","非中央政府辦理新臺幣一億元以上之公共工程 "]
["206","屏東縣政府 ","屏東縣立明正國民中學 ","屏東縣政府 ","「屏東縣立明正國中老舊廁所整修工程(明德樓)」委託規劃設計及監造工作 ","勞務","工程服務 ","505078","480000","112/11/08","112/11/09","屏東縣－屏東 ","否","","整修工程、拆除工程、疏濬工程、結構補強工程 "]
["207","屏東縣政府 ","屏東縣立明正國民中學 ","屏東縣政府 ","「屏東縣立明正國中老舊廁所整修工程(朝陽樓)」委託規劃設計及監造工作 ","勞務","工程服務 ","275903","250000","112/11/08","112/11/09","屏東縣－屏東 ","否","","整修工程、拆除工程、疏濬工程、結構補強工程 "]
["208","屏東縣政府 ","屏東縣立萬丹國民中學 ","教育部國民及學前教育署 ","112年度屏東縣立萬丹國中老舊廁所整修工程委託規劃設計暨監造技術服務採購 ","勞務","建築服務 ","670640","657227","112/11/07","112/11/08","南部地區－全區 ","否","","整修工程、拆除工程、疏濬工程、結構補強工程 "]
["209","屏東縣政府 ","屏東縣立九如國民中學 ","教育部國民及學前教育署 ","「112年度公立國民中小學老舊廁所整修工程委託規劃設計監造技術服務」勞務採購案 ","勞務","工程服務 ","842150","842150","112/11/03","112/11/10","屏東縣－九如 ","否","","非中央政府辦理新臺幣一億元以上之公共工程,整修工程、拆除工程、疏濬工程、結構補強工程 "]
["210","屏東縣政府 ","屏東縣立高樹國民中學 ","屏東縣政府 ","高樹國中學生活動中心老舊廁所整修工程委託規劃設計監造勞務採購 ","勞務","工程服務 ","462104","439000","112/11/08","112/11/08","屏東縣－高樹 ","否","","整修工程、拆除工程、疏濬工程、結構補強工程 "]
["211","屏東縣政府 ","屏東縣立新園國民中學 ","屏東縣政府 ","排球隊宿舍及休息閱讀室整修工程設計監造 ","勞務","建築服務 ","610309","604205","112/11/07","112/11/17","南部地區－全區 ","否","","整修工程、拆除工程、疏濬工程、結構補強工程 "]
["212","屏東縣政府 ","屏東縣屏東市中正國民小學 ","教育部國民及學前教育署 ","屏東縣中正國小112年老舊廁所整修工程委託規畫設計監造技術服務勞務採購案 ","勞務","建築服務 ","320000","320000","112/11/08","112/11/13","屏東縣－屏東 ","否","","整修工程、拆除工程、疏濬工程、結構補強工程 "]
["213","屏東縣政府 ","屏東縣屏東市復興國民小學 ","屏東縣政府 ","「112年度屏東縣復興國小老舊廁所整修工程」 委託監造技術服務 ","勞務","工程服務 ","182649","181000","112/11/01","112/11/02","其他－其他 ","否","","整修工程、拆除工程、疏濬工程、結構補強工程 "]
["214","屏東縣政府 ","屏東縣九如鄉九如國民小學 ","屏東縣政府 ","「戶外籃球場及排水設施改善工程」委託規劃設計監造技術服務採購案 ","勞務","建築服務 ","380137","380000","112/11/27","112/11/29","屏東縣－九如 ","否","","整修工程、拆除工程、疏濬工程、結構補強工程 "]
["215","屏東縣政府 ","屏東縣鹽埔鄉鹽埔國民小學 ","教育部國民及學前教育署 ","鹽埔國小112年老舊廁所改善委託規劃設計監造技術服務勞務採購 ","勞務","建築服務 ","427000","392235","112/11/07","112/11/08","屏東縣－鹽埔 ","否","","非受中央政府補助比率逾工程建造經費百分之五十且補助經費達新臺幣一億元以上之個案公共工程 "]
["216","屏東縣政府 ","屏東縣琉球鄉白沙國民小學 ","教育部國民及學前教育署、屏東縣政府 ","「112年度屏東縣琉球鄉白沙國小老舊廁所整修工程」 委託規劃設計暨監造技術服務 ","勞務","工程服務 ","631832","614790","112/11/03","112/11/08","屏東縣－琉球 ","否","","整修工程、拆除工程、疏濬工程、結構補強工程 "]
["217","屏東縣政府 ","屏東縣獅子鄉楓林國民小學 ","屏東縣政府 ","楓林國小112年度老舊廁所整修工程委託規劃設計監造勞務採購案 ","勞務","建築服務 ","351500","351500","112/09/19","112/11/06","屏東縣－獅子 ","否","","整修工程、拆除工程、疏濬工程、結構補強工程 "]
["218","屏東縣政府 ","屏東縣牡丹鄉高士國民小學 ","無 ","高士國小112年老舊廁所整修工程委託規劃設計監造技術服務 ","勞務","建築服務 ","308479","308479","112/09/18","112/11/02","南部地區－全區 ","否","","非中央政府辦理新臺幣一億元以上之公共工程,非受中央政府補助比率逾工程建造經費百分之五十且補助經費達新臺幣一億元以上之個案公共工程 "]
["219","屏東縣政府 ","屏東縣瑪家鄉北葉國民小學 ","屏東縣政府 ","北葉國小112年老舊廁所整修工程委託規劃設計監造技術服務 ","勞務","工程服務 ","527962","527962","112/11/01","112/11/01","屏東縣－瑪家 ","否","","整修工程、拆除工程、疏濬工程、結構補強工程 "]
["220","屏東縣政府 ","屏東縣屏東市崇蘭國民小學 ","屏東縣政府 ","屏東縣崇蘭國小112年校舍老舊廁所整修工程委託規劃設計暨履約監造技術服務勞務採購案 ","勞務","工程服務 ","388083","380000","112/11/07","112/11/08","屏東縣－屏東 ","否","","非中央政府辦理新臺幣一億元以上之公共工程,整修工程、拆除工程、疏濬工程、結構補強工程 "]
["221","屏東縣政府 ","屏東縣里港鄉玉田國民小學 ","屏東縣政府 ","玉田國小廁所整修工程委託規劃設計監造技術服務勞務採購案 ","勞務","建築服務 ","1172250","1172250","112/11/07","112/11/09","屏東縣－里港 ","否","","整修工程、拆除工程、疏濬工程、結構補強工程 "]
["222","屏東縣議會 ","屏東縣議會 ","無 ","議事大樓屋頂防水工程規劃設計及監造服務案 ","勞務","工程服務 ","344000","68000","112/11/21","112/11/21","南部地區－全區 ","否","","非受中央政府補助比率逾工程建造經費百分之五十且補助經費達新臺幣一億元以上之個案公共工程,整修工程、拆除工程、疏濬工程、結構補強工程 "]
["223","苗栗縣政府 ","苗栗縣政府 ","文化部文化資產局 ","苗栗縣歷史建築通霄神社社務所(含參道)修復規劃設計暨因應計畫 ","勞務","建築服務 ","2500000","2435600","112/09/21","112/11/30","全部地區－全區 ","否","","非受中央政府補助比率逾工程建造經費百分之五十且補助經費達新臺幣一億元以上之個案公共工程 "]
["224","苗栗縣政府 ","苗栗縣政府 ","台灣電力股份有限公司核能火力發電工程處中部施工處 ","台灣電力股份有限公司中部施工處與苗栗縣政府合作植樹計畫委託設計及監造技術服務案 ","勞務","都市計劃及景觀建築服務 ","1234773","1210078","112/11/15","112/11/15","苗栗縣－全區 ","否","","非中央政府辦理新臺幣一億元以上之公共工程 "]
["225","苗栗縣政府 ","苗栗縣政府 ","原住民族委員會 ","苗栗縣都會區原住民族綜合服務中心委託規劃設計暨後續擴充監造技術服務案-後續擴充 ","勞務","建築服務 ","2260588","2215376","112/11/16","112/11/20","全部地區－全區 ","否","","規劃取得綠建築標章之建築工程 "]
["226","苗栗縣政府 ","苗栗縣政府 ","無 ","112年度交通工程(開口契約)-標誌、標線、反射鏡委託監造技術服務後續擴充 ","勞務","綜合工程服務 ","124006","124006","112/11/13","112/11/24","苗栗縣－全區 ","否","","整修工程、拆除工程、疏濬工程、結構補強工程 "]
["227","苗栗縣政府 ","苗栗縣政府 ","無 ","112年度交通工程設備(開口契約)-號誌暨代辦新設號誌工程委託監造技術服務 ","勞務","綜合工程服務 ","51168","51168","112/11/10","112/11/13","苗栗縣－全區 ","否","","非受中央政府補助比率逾工程建造經費百分之五十且補助經費達新臺幣一億元以上之個案公共工程 "]
["228","苗栗縣政府 ","苗栗縣政府 ","無 ","苗栗縣政府消防局獅潭消防分隊新建工程委託規劃設計監造技術服務（含水土保持計畫） ","勞務","建築服務 ","4850000","4730000","112/11/15","112/11/17","全部地區－全區 ","否","","非受中央政府補助比率逾工程建造經費百分之五十且補助經費達新臺幣一億元以上之個案公共工程 "]
["229","苗栗縣政府 ","苗栗縣政府 ","無 ","「苗栗縣苑裡鎮、竹南鎮、銅鑼鄉及三義鄉鄉村地區整體規劃」委託技術服務案 ","勞務","都市計劃及景觀建築服務 ","16000000","15580000","112/11/08","112/11/10","全部地區－全區 ","否","","非中央政府辦理新臺幣一億元以上之公共工程,非受中央政府補助比率逾工程建造經費百分之五十且補助經費達新臺幣一億元以上之個案公共工程 "]
["230","苗栗縣政府 ","苗栗縣政府 ","無 ","112年度苗栗縣苗栗市等5鄉鎮轄內縣鄉道改善小型及其他公共工程橋梁工程災害復建工程委託設計監造開口契約第2區技術服務工作後擴 ","勞務","工程服務 ","5553703","5553703","112/11/08","112/11/09","全部地區－全區 ","否","","非受中央政府補助比率逾工程建造經費百分之五十且補助經費達新臺幣一億元以上之個案公共工程,災後緊急處理、搶修、搶險 "]
["231","苗栗縣政府 ","苗栗縣政府 ","無 ","「苗栗市、後龍鎮、西湖鄉遊憩空間及環境營造計畫」委託設計及監造技術服務工作(擴充) ","勞務","工程服務 ","42411","41450","112/11/09","112/11/13","全部地區－全區 ","否","","非中央政府辦理新臺幣一億元以上之公共工程 "]
["232","苗栗縣政府 ","苗栗縣政府 ","無 ","112年度全縣水利零星工程暨疏濬清淤工程、無自來水地區供水改善計畫路修等委託規劃、設計及監造(開口合約)(後續擴充) ","勞務","工程服務 ","1668206","1668206","112/11/23","112/11/27","全部地區－全區 ","否","","非受中央政府補助比率逾工程建造經費百分之五十且補助經費達新臺幣一億元以上之個案公共工程 "]
["233","苗栗縣政府 ","苗栗縣政府文化觀光局 ","文化部文化資產局 ","「南庄事件史蹟紀念碑設置計畫」規劃設計暨委託監造服務案 ","勞務","工程服務 ","770000","750000","112/08/15","112/11/27","北部地區－全區,中部地區－全區 ","否","","非受中央政府補助比率逾工程建造經費百分之五十且補助經費達新臺幣一億元以上之個案公共工程 "]
["234","苗栗縣政府 ","苗栗縣苑裡鎮公所 ","無 ","苗栗縣歷史建築苑裡公有零售市場修復規劃設計暨因應計畫(含後續擴充監造)技術服務 ","勞務","建築服務 ","4786550","4786550","112/11/02","112/11/09","苗栗縣－苑裡 ","否","","整修工程、拆除工程、疏濬工程、結構補強工程 "]
["235","苗栗縣政府 ","苗栗縣通霄鎮公所 ","內政部營建署 ","通霄鎮通南、五北、五南里既有道路養護整建工程委託規劃、設計及監造 ","勞務","工程服務 ","747948","746188","112/10/31","112/11/01","苗栗縣－通霄 ","否","","非中央政府辦理新臺幣一億元以上之公共工程,整修工程、拆除工程、疏濬工程、結構補強工程 "]
["236","苗栗縣政府 ","苗栗縣通霄鎮公所 ","內政部營建署 ","苗栗縣通霄鎮通南里周邊道路環境改善工程委託規劃、設計及監造 ","勞務","工程服務 ","3532769","3391458","112/11/14","112/11/15","苗栗縣－通霄 ","否","","非中央政府辦理新臺幣一億元以上之公共工程,整修工程、拆除工程、疏濬工程、結構補強工程 "]
["237","苗栗縣政府 ","苗栗縣通霄鎮公所 ","內政部營建署 ","苗栗縣通霄鎮通南倉庫周邊人行環境新建工程委託規劃、設計及監造 ","勞務","工程服務 ","2392696","2296988","112/11/14","112/11/15","苗栗縣－通霄 ","否","","非中央政府辦理新臺幣一億元以上之公共工程,整修工程、拆除工程、疏濬工程、結構補強工程 "]
["238","苗栗縣政府 ","苗栗縣通霄鎮公所 ","台灣電力股份有限公司核能火力發電工程處中部施工處 ","通霄鎮楓樹里苗36線道路改善工程委託規劃、設計及監造 ","勞務","工程服務 ","396714","372911","112/10/31","112/11/01","苗栗縣－通霄 ","否","","非中央政府辦理新臺幣一億元以上之公共工程,整修工程、拆除工程、疏濬工程、結構補強工程 "]
["239","苗栗縣政府 ","苗栗縣竹南鎮公所 ","無 ","苗栗縣竹南鎮開元路提升街區道路品質改善工程委託設計監造技術服務 ","勞務","工程服務 ","864670","830083","112/11/17","112/11/17","苗栗縣－竹南 ","否","","非中央政府辦理新臺幣一億元以上之公共工程 "]
["240","苗栗縣政府 ","苗栗縣後龍鎮公所 ","內政部國土管理署 ","「後龍鎮高鐵一路步道及周邊環境改善計畫」委託設計監造 ","勞務","工程服務 ","1076479","1054949","112/11/21","112/11/21","苗栗縣－後龍 ","否","","非受中央政府補助比率逾工程建造經費百分之五十且補助經費達新臺幣一億元以上之個案公共工程 "]
["241","苗栗縣政府 ","苗栗縣後龍鎮公所 ","內政部國土管理署 ","「苗栗縣後龍鎮溪洲、秀水、水尾里鄰里道路整體環境改善計畫」委託設計監造 ","勞務","工程服務 ","985095","960468","112/11/21","112/11/21","苗栗縣－後龍 ","否","","非受中央政府補助比率逾工程建造經費百分之五十且補助經費達新臺幣一億元以上之個案公共工程 "]
["242","苗栗縣政府 ","苗栗縣後龍鎮公所 ","內政部國土管理署 ","後龍鎮新港六路步道及周邊環境改善計畫委託設計監造 ","勞務","工程服務 ","1389526","1361735","112/11/21","112/11/21","苗栗縣－後龍 ","否","","非受中央政府補助比率逾工程建造經費百分之五十且補助經費達新臺幣一億元以上之個案公共工程 "]
["243","苗栗縣政府 ","苗栗縣後龍鎮公所 ","內政部國土管理署 ","後龍鎮臺1線至臺13甲線間周邊既有道路養護整建工程委託設計監造 ","勞務","工程服務 ","866340","849013","112/11/21","112/11/23","苗栗縣－後龍 ","否","","非受中央政府補助比率逾工程建造經費百分之五十且補助經費達新臺幣一億元以上之個案公共工程 "]
["244","苗栗縣政府 ","苗栗縣後龍鎮公所 ","內政部國土管理署 ","提升道路品質計畫(內政部)2.0-苗栗縣後龍鎮中和里及周邊鄰里道路整體環境改善計畫委託設計監造技術服務工作 ","勞務","工程服務 ","985095","955542","112/11/16","112/11/16","苗栗縣－後龍 ","否","","非受中央政府補助比率逾工程建造經費百分之五十且補助經費達新臺幣一億元以上之個案公共工程 "]
["245","苗栗縣政府 ","苗栗縣後龍鎮公所 ","行政院公共工程委員會 ","後龍鎮外埔里、海寶里農路災後復建工程委託設計監造案 ","勞務","工程服務 ","267870","250012","112/11/24","112/11/24","苗栗縣－後龍 ","否","","非受中央政府補助比率逾工程建造經費百分之五十且補助經費達新臺幣一億元以上之個案公共工程 "]
["246","苗栗縣政府 ","苗栗縣大湖鄉公所 ","無 ","大湖鄉市區道路改善工程-委託設計監造 ","勞務","工程服務 ","1031431","979859","112/10/31","112/11/01","苗栗縣－大湖 ","否","","非中央政府辦理新臺幣一億元以上之公共工程 "]
["247","苗栗縣政府 ","苗栗縣大湖鄉公所 ","無 ","苗栗縣大湖鄉富興村鄰里聯絡道路改善計畫-委託設計監造 ","勞務","工程服務 ","999955","959957","112/11/09","112/11/13","苗栗縣－大湖 ","否","","非中央政府辦理新臺幣一億元以上之公共工程 "]
["248","苗栗縣政府 ","苗栗縣大湖鄉公所 ","無 ","大湖鄉義和村石雲道路改善工程-委託設計監造 ","勞務","工程服務 ","929293","882828","112/11/15","112/11/20","苗栗縣－大湖 ","否","","整修工程、拆除工程、疏濬工程、結構補強工程 "]
["249","苗栗縣政府 ","苗栗縣公館鄉公所 ","內政部營建署 ","苗栗縣公館鄉玉泉村悠慢活人行道建置計畫委託設計監造技術服務 ","勞務","工程服務 ","1575913","1481358","112/11/01","112/11/03","苗栗縣－公館 ","否","","非受中央政府補助比率逾工程建造經費百分之五十且補助經費達新臺幣一億元以上之個案公共工程 "]
["250","苗栗縣政府 ","苗栗縣公館鄉公所 ","無 ","112年度後龍溪石圍墻二號堤防構造物維修改善工程委託設計監造技術服務 ","勞務","工程服務 ","273164","267701","112/11/15","112/11/17","苗栗縣－公館 ","否","","非受中央政府補助比率逾工程建造經費百分之五十且補助經費達新臺幣一億元以上之個案公共工程 "]
["251","苗栗縣政府 ","苗栗縣銅鑼鄉公所 ","內政部國土管理署 ","苗栗縣銅鑼鄉113年度兒童遊戲場環境設施改善工程委託設計及監造(開口契約) ","勞務","工程服務 ","609846","579354","112/11/22","112/11/22","苗栗縣－銅鑼 ","否","","非受中央政府補助比率逾工程建造經費百分之五十且補助經費達新臺幣一億元以上之個案公共工程 "]
["252","苗栗縣政府 ","苗栗縣南庄鄉公所 ","無 ","本鄉都市計畫區內道路改善工程(委託設計、監造) ","勞務","工程服務 ","189064","180443","112/11/02","112/11/02","苗栗縣－南庄 ","否","","非中央政府辦理新臺幣一億元以上之公共工程 "]
["253","苗栗縣政府 ","苗栗縣三義鄉公所 ","內政部國土管理署 ","三義鄉雙湖路周邊道路品質提升計畫委託設計監造技術服務 ","勞務","工程服務 ","593510","557899","112/11/01","112/11/21","苗栗縣－三義 ","否","","整修工程、拆除工程、疏濬工程、結構補強工程 "]
["254","苗栗縣政府 ","苗栗縣三義鄉公所 ","苗栗縣政府文化觀光局 ","三義木雕博物館道路鋪面及人行道改善工程委託設計監造技術服務 ","勞務","工程服務 ","881600","828704","112/11/14","112/11/20","苗栗縣－三義 ","否","","非中央政府辦理新臺幣一億元以上之公共工程,非受中央政府補助比率逾工程建造經費百分之五十且補助經費達新臺幣一億元以上之個案公共工程 "]
["255","苗栗縣政府 ","苗栗縣三義鄉公所 ","經濟部工業局 ","苗栗縣三義工業區聯外道路品質改善工程委託設計監造技術服務 ","勞務","工程服務 ","1242696","1205415","112/11/07","112/11/17","苗栗縣－三義 ","否","","非受中央政府補助比率逾工程建造經費百分之五十且補助經費達新臺幣一億元以上之個案公共工程 "]
["256","苗栗縣政府 ","苗栗縣西湖鄉公所 ","無 ","112年度西湖鄉管線挖掘路面修復工程委託設計監造技術服務 ","勞務","綜合工程服務 ","241500","231150","112/11/21","112/11/22","苗栗縣－西湖 ","否","","整修工程、拆除工程、疏濬工程、結構補強工程 "]
["257","苗栗縣政府 ","苗栗縣造橋鄉公所 ","農業部農村發展及水土保持署臺中分署 ","造橋鄉錦水村三錦農路改善工程委託規畫設計及監造技術服務工作 ","勞務","綜合工程服務 ","313570","304163","112/11/07","112/11/10","苗栗縣－造橋 ","否","","非受中央政府補助比率逾工程建造經費百分之五十且補助經費達新臺幣一億元以上之個案公共工程 "]
["258","苗栗縣政府 ","苗栗縣三灣鄉公所 ","無 ","苗栗縣三灣鄉生命紀念園區興辦計畫、水土保持計畫變更設計委託技術服務採購案 ","勞務","建築服務 ","1050000","1000000","112/11/28","112/11/28","苗栗縣－三灣 ","否","","非中央政府辦理新臺幣一億元以上之公共工程 "]
["259","苗栗縣政府 ","苗栗縣泰安鄉公所 ","無 ","大安聯絡道淤泥及雜木草清除 ","勞務","工程服務 ","248294","232000","112/11/15","112/11/28","苗栗縣－泰安 ","否","","整修工程、拆除工程、疏濬工程、結構補強工程 "]
["260","苗栗縣政府 ","苗栗縣頭份市公所 ","內政部 ","頭份市濱江街與銀河路暨公所周邊徒步空間改善工程委託設計監造技術服務 ","勞務","工程服務 ","2915562","2624006","112/11/28","112/11/29","苗栗縣－頭份 ","否","","非受中央政府補助比率逾工程建造經費百分之五十且補助經費達新臺幣一億元以上之個案公共工程,整修工程、拆除工程、疏濬工程、結構補強工程 "]
["261","苗栗縣政府 ","苗栗縣頭份市公所 ","無 ","113年度頭份市新設路燈、汰舊工程(開口合約)委託設計監造技術服務 ","勞務","工程服務 ","368906","332015","112/11/16","112/11/16","苗栗縣－頭份 ","否","","非中央政府辦理新臺幣一億元以上之公共工程 "]
["262","苗栗縣政府 ","苗栗縣頭份市公所 ","無 ","113年度頭份市監視器汰舊維修工程(開口合約)委託設計監造 ","勞務","工程服務 ","461336","438269","112/11/16","112/11/16","苗栗縣－頭份 ","否","","非中央政府辦理新臺幣一億元以上之公共工程 "]
["263","苗栗縣政府 ","苗栗縣立致民國民中學 ","苗栗縣政府 ","藝術教學大樓拆除整地工程-委託規劃設計監造勞務採購 ","勞務","建築服務 ","173631","173631","112/11/07","112/11/08","苗栗縣－苑裡 ","否","","整修工程、拆除工程、疏濬工程、結構補強工程 "]
["264","苗栗縣政府 ","苗栗縣立通霄國民中學 ","苗栗縣政府 ","通霄國中112年操場周邊喬木清除及修剪暨水溝工程設計監造委託技術服務採購 ","勞務","工程服務 ","181907","174631","112/11/01","112/11/02","苗栗縣－通霄 ","否","","整修工程、拆除工程、疏濬工程、結構補強工程 "]
["265","苗栗縣政府 ","苗栗縣立明仁國民中學 ","苗栗縣政府 ","至善台兩側地面整修工程委託技術服務 ","勞務","建築服務 ","455202","411958","112/11/28","112/11/28","苗栗縣－苗栗 ","否","","整修工程、拆除工程、疏濬工程、結構補強工程 "]
["266","苗栗縣政府 ","苗栗縣立泰安國民中小學 ","苗栗縣政府 ","苗栗縣立泰安國民中小學112年度充實設施設備-給配水系統整建工程規劃設計監造勞務採購 ","勞務","建築服務 ","210856","208748","112/11/28","112/11/29","中部地區－全區 ","否","","非中央政府辦理新臺幣一億元以上之公共工程,非受中央政府補助比率逾工程建造經費百分之五十且補助經費達新臺幣一億元以上之個案公共工程 "]
["267","苗栗縣政府 ","苗栗縣苗栗市啟文國民小學 ","苗栗縣政府 ","苗栗縣啟文國小活動中心冷氣安裝服務勞務採購案 ","勞務","工程服務 ","224626","223000","112/11/02","112/11/08","苗栗縣－苗栗 ","否","","非中央政府辦理新臺幣一億元以上之公共工程,非受中央政府補助比率逾工程建造經費百分之五十且補助經費達新臺幣一億元以上之個案公共工程 "]
["268","桃園市政府 ","桃園市政府民政局 ","無 ","「桃園市替代役役男住宿中心內部設備修繕更新工程」委外規劃設計、監造服務案 ","勞務","建築服務 ","1260795","1260795","112/11/02","112/11/03","桃園市－桃園區 ","否","","非中央政府辦理新臺幣一億元以上之公共工程,非受中央政府補助比率逾工程建造經費百分之五十且補助經費達新臺幣一億元以上之個案公共工程 "]
["269","桃園市政府 ","桃園市政府殯葬管理所 ","桃園市政府民政局 ","中壢區殯葬服務中心停柩室改善工程委託設計監造服務案 ","勞務","工程服務 ","630320","630320","112/10/31","112/11/07","桃園市－全區 ","否","","整修工程、拆除工程、疏濬工程、結構補強工程 "]
["270","桃園市政府 ","桃園市立羅浮高級中等學校 ","桃園市政府教育局 ","羅浮高中源禮勤毅等教室空間配置工程設計監造技術服務 ","勞務","工程服務 ","221907","213031","112/11/23","112/11/28","桃園市－復興區 ","否","","整修工程、拆除工程、疏濬工程、結構補強工程 "]
["271","桃園市政府 ","桃園市立中興國民中學 ","桃園市政府教育局 ","藝術樓東側廁所整修工程委託規劃設計監造技術服務採購 ","勞務","建築服務 ","253700","253700","112/10/13","112/11/17","桃園市－全區 ","否","","非中央政府辦理新臺幣一億元以上之公共工程 "]
["272","桃園市政府 ","桃園市立自強國民中學 ","無 ","113年度校區水電設備及簡易土木(泥作、鐵工)修繕(含假日、夜間緊急搶修)(後續擴充) ","勞務","工程服務 ","240000","240000","112/11/07","112/11/08","桃園市－中壢區 ","否","","災後緊急處理、搶修、搶險 "]
["273","桃園市政府 ","桃園市立中壢國民中學 ","桃園市政府教育局 ","「112年度司令台及周邊設施改善工程」委託設計監造勞務服務採購 ","勞務","工程服務 ","295117","295117","112/11/08","112/11/08","桃園市－平鎮區 ","否","","整修工程、拆除工程、疏濬工程、結構補強工程 "]
["274","桃園市政府 ","桃園市桃園區南門國民小學 ","無 ","校舍周邊環境改善工程委託設計監造服務 ","勞務","工程服務 ","500900","495891","112/10/05","112/11/03","桃園市－全區 ","否","","非中央政府辦理新臺幣一億元以上之公共工程 "]
["275","桃園市政府 ","桃園市中壢區自立國民小學 ","桃園市政府教育局 ","改善無障礙校園環境-新設書海樓電梯工程委託規劃設計監造服務 ","勞務","工程服務 ","320000","317993","112/11/22","112/11/22","桃園市－中壢區 ","否","","非中央政府辦理新臺幣一億元以上之公共工程,非受中央政府補助比率逾工程建造經費百分之五十且補助經費達新臺幣一億元以上之個案公共工程 "]
["276","桃園市政府 ","桃園市中壢區林森國民小學 ","桃園市政府教育局 ","112年度活動中心地下室電力改善工程委託規劃設計監造服務 ","勞務","工程服務 ","395231","391223","112/10/27","112/11/01","桃園市－全區 ","否","","整修工程、拆除工程、疏濬工程、結構補強工程 "]
["277","桃園市政府 ","桃園市平鎮區山豐國民小學 ","桃園市政府教育局 ","山豐國小綜合活動中心設施設備改善工程委託設計監造技術服務勞務採購 ","勞務","工程服務 ","262580","261356","112/10/31","112/11/02","桃園市－平鎮區 ","否","","非中央政府辦理新臺幣一億元以上之公共工程,非受中央政府補助比率逾工程建造經費百分之五十且補助經費達新臺幣一億元以上之個案公共工程 "]
["278","桃園市政府 ","桃園市大園區大園國民小學 ","桃園市政府教育局 ","大園國小112年度改善校園環境-冷氣設置-局部電力改善工程-委託設計監造技術服務採購 ","勞務","工程服務 ","493771","469082","112/10/24","112/11/01","桃園市－大園區 ","否","","非中央政府辦理新臺幣一億元以上之公共工程,非受中央政府補助比率逾工程建造經費百分之五十且補助經費達新臺幣一億元以上之個案公共工程,整修工程、拆除工程、疏濬工程、結構補強工程 "]
["279","桃園市政府 ","桃園市新屋區東明國民小學 ","桃園市政府教育局 ","室外綜合球場及周邊地坪改善工程委託技術服務 ","勞務","工程服務 ","250000","250000","112/11/24","112/11/27","桃園市－新屋區 ","否","","整修工程、拆除工程、疏濬工程、結構補強工程 "]
["280","桃園市政府 ","桃園市政府工務局 ","內政部營建署 ","龍慈路延伸至台66線道路新闢工程（都外段） ","工程","快速道路(不含高架快速道路), 街道, 馬路, 鐵路及機場跑道 ","570450658","570450658","112/11/27","112/11/30","桃園市－中壢區,桃園市－平鎮區 ","否","","非中央政府辦理新臺幣一億元以上之公共工程 "]
["281","桃園市政府 ","桃園市政府工務局 ","內政部營建署 ","延平路(國道2號南側)延伸至和平路道路新闢工程(第三期) ","工程","快速道路(不含高架快速道路), 街道, 馬路, 鐵路及機場跑道 ","222217382","222217355","112/11/27","112/11/30","桃園市－八德區 ","否","","非中央政府辦理新臺幣一億元以上之公共工程 "]
["282","桃園市政府 ","桃園市政府工務局 ","行政院農業委員會 ","桃園市肉品市場現代化屠宰場(冷鏈系統)改建工程 ","工程","其他用途建築工程 ","1144424497","1144424497","112/10/27","112/11/01","桃園市－蘆竹區 ","否","","規劃取得綠建築標章之建築工程 "]
["283","桃園市政府 ","桃園市政府工務局 ","無 ","桃園市龜山區文化一路至青山路道路新闢工程委託技術服務 ","勞務","工程服務 ","42185000","41278023","112/11/06","112/11/09","桃園市－龜山區 ","否","","非中央政府辦理新臺幣一億元以上之公共工程,非受中央政府補助比率逾工程建造經費百分之五十且補助經費達新臺幣一億元以上之個案公共工程 "]
["284","桃園市政府 ","桃園市政府工務局 ","無 ","配合台鐵都會區捷運化桃園段地下化-車站及沿線周邊土地整合總體規劃案委託技術服務案 ","勞務","都市計劃及景觀建築服務 ","15000000","14775000","112/10/26","112/11/08","桃園市－全區 ","否","","非受中央政府補助比率逾工程建造經費百分之五十且補助經費達新臺幣一億元以上之個案公共工程 "]
["285","桃園市政府 ","桃園市政府警察局桃園分局 ","無 ","桃園市政府警察局桃園分局武陵派出所臨時辦公廳舍內部裝修工程-委託規劃、設計及監造勞務採購案 ","勞務","建築服務 ","828890","818862","112/10/27","112/11/10","北部地區－全區 ","否","","非中央政府辦理新臺幣一億元以上之公共工程 "]
["286","桃園市政府 ","桃園市政府警察局八德分局 ","無 ","八德派出所暨交通警察大隊八德分隊辦公廳舍新建工程 ","工程","其他用途建築工程 ","223144294","223144294","112/10/31","112/11/03","北部地區－全區 ","否","","規劃取得綠建築標章之建築工程 "]
["287","桃園市政府 ","桃園市政府衛生局 ","無 ","「112年度復興區洗腎中心工程整建及設備採購」統包工程委託監造案  ","勞務","工程服務 ","302000","300000","112/11/21","112/11/24","桃園市－復興區 ","否","","非中央政府辦理新臺幣一億元以上之公共工程 "]
["288","桃園市政府 ","桃園市政府環境清潔稽查大隊 ","無 ","蘆竹區中隊休息備勤及停車空間整修工程委託技術服務 ","勞務","工程服務 ","4688487","4636914","112/10/17","112/11/02","桃園市－蘆竹區 ","否","","整修工程、拆除工程、疏濬工程、結構補強工程 "]
["289","桃園市政府 ","桃園市政府環境清潔稽查大隊 ","無 ","112年度桃園區會稽掩埋場消防工程改善委託設計監造技術服務採購案 ","勞務","工程服務 ","970000","960300","112/11/14","112/11/20","桃園市－桃園區 ","否","","非中央政府辦理新臺幣一億元以上之公共工程,非受中央政府補助比率逾工程建造經費百分之五十且補助經費達新臺幣一億元以上之個案公共工程 "]
["290","桃園市政府 ","桃園市八德地政事務所 ","無 ","桃園市八德地政事務所屋頂防水整修工程設計監造委託技術服務 ","勞務","工程服務 ","193034","193034","112/10/20","112/11/09","桃園市－八德區 ","否","","非中央政府辦理新臺幣一億元以上之公共工程,非受中央政府補助比率逾工程建造經費百分之五十且補助經費達新臺幣一億元以上之個案公共工程 "]
["291","桃園市政府 ","桃園市政府水務局 ","無 ","桃園市市管河川茄苳溪主流治理規劃檢討及治理計畫修正委託技術服務(後續擴充) ","勞務","工程服務 ","2300000","2259000","112/11/22","112/11/24","桃園市－全區 ","否","","非中央政府辦理新臺幣一億元以上之公共工程 "]
["292","桃園市政府 ","桃園市政府水務局 ","無 ","「桃園市污水下水道系統發展計畫」委託專業服務案 ","勞務","綜合工程服務 ","8620690","8620690","112/11/08","112/11/14","桃園市－全區 ","否","","非中央政府辦理新臺幣一億元以上之公共工程 "]
["293","桃園市政府 ","桃園市政府文化局 ","客家委員會 ","「楊梅壢藝文特區－楊梅分局警察局宿舍群修復再利用工程暨周邊景觀規劃」規劃設計委託技術服務案 ","勞務","建築服務 ","2490000","2450000","112/11/20","112/11/22","桃園市－楊梅區 ","否","","整修工程、拆除工程、疏濬工程、結構補強工程 "]
["294","桃園市政府 ","桃園市政府都市發展局 ","無 ","桃園市蘆竹區營盤溪水綠共生計畫委託規劃設計案(後續擴充委託監造) ","勞務","都市計劃及景觀建築服務 ","1190000","1190000","112/11/23","112/11/28","桃園市－蘆竹區 ","否","","非中央政府辦理新臺幣一億元以上之公共工程,非受中央政府補助比率逾工程建造經費百分之五十且補助經費達新臺幣一億元以上之個案公共工程 "]
["295","桃園市政府 ","桃園市中壢區公所 ","無 ","中壢區112年下半年度至113年度公園工程委託技術服務(開口契約) ","勞務","工程服務 ","3750000","3750000","112/11/08","112/11/09","桃園市－中壢區 ","否","","整修工程、拆除工程、疏濬工程、結構補強工程 "]
["296","桃園市政府 ","桃園市楊梅區公所 ","無 ","楊梅區富岡運動公園增設壘球場新建工程委託設計監造技術服務 ","勞務","工程服務 ","592472","592472","112/11/01","112/11/01","桃園市－楊梅區 ","否","","整修工程、拆除工程、疏濬工程、結構補強工程 "]
["297","海洋委員會 ","海洋委員會海巡署東部分署 ","無 ","開元安檢所住宿區災後復原統包工程委託監造 ","勞務","建築服務 ","521212","494000","112/11/24","112/11/29","臺東縣－蘭嶼 ","否","","非中央政府辦理新臺幣一億元以上之公共工程,非受中央政府補助比率逾工程建造經費百分之五十且補助經費達新臺幣一億元以上之個案公共工程,災後原地復建 "]
["298","財政部 ","財政部國有財產署北區分署 ","無 ","112、113年度臺北市、新北市都市更新分回不動產檢驗委託服務案 ","勞務","都市計劃及景觀建築服務 ","280000","190000","112/11/22","112/11/28","臺北市－全區 ","否","","非受中央政府補助比率逾工程建造經費百分之五十且補助經費達新臺幣一億元以上之個案公共工程 "]
["299","財政部 ","臺灣土地銀行股份有限公司 ","無 ","新竹分行屋頂防水工程委託設計及監造 ","勞務","工程服務 ","380000","360000","112/11/14","112/11/16","新竹市－北區 ","否","","整修工程、拆除工程、疏濬工程、結構補強工程 "]
["300","財政部 ","臺灣土地銀行股份有限公司 ","無 ","新竹分行屋頂設置太陽能發電案委託設計及監造 ","勞務","工程服務 ","432000","420000","112/11/29","112/11/30","新竹市－東區 ","否","","非受中央政府補助比率逾工程建造經費百分之五十且補助經費達新臺幣一億元以上之個案公共工程 "]
["301","財政部 ","臺灣土地銀行股份有限公司 ","無 ","信義分行營業廳裝修工程委託設計及監造 ","勞務","工程服務 ","824000","803000","112/11/23","112/11/30","臺北市－信義區 ","否","","整修工程、拆除工程、疏濬工程、結構補強工程 "]
["302","財政部 ","臺灣土地銀行股份有限公司 ","無 ","大里分行營業廳裝修工程委託設計及監造 ","勞務","建築服務 ","1000000","980000","112/11/23","112/11/30","臺中市－大里區 ","否","","整修工程、拆除工程、疏濬工程、結構補強工程 "]
["303","高雄市政府 ","高雄市政府 ","無 ","高雄都會區大眾捷運系統都會線(黃線)YC01標土建及設施機電統包工程 ","工程","橋樑, 高架快速道路, 隧道及地鐵 ","23399658793","23399600000","112/10/25","112/11/02","高雄市－全區 ","否","","非中央政府辦理新臺幣一億元以上之公共工程 "]
["304","高雄市政府 ","高雄市政府 ","無 ","高雄都會區大眾捷運系統小港林園線RLC01標土建及設施機電統包工程 ","工程","橋樑, 高架快速道路, 隧道及地鐵 ","27574711987","27574680000","112/10/23","112/11/02","高雄市－全區 ","否","","非中央政府辦理新臺幣一億元以上之公共工程 "]
["305","高雄市政府 ","高雄市殯葬管理處 ","無 ","112年「高雄市公立納骨塔櫃位及神主牌位增設工程(第二期)」委託規劃設計及監造技術服務案 ","勞務","工程服務 ","2721957","2720000","112/11/14","112/11/21","高雄市－全區 ","否","","非中央政府辦理新臺幣一億元以上之公共工程 "]
["306","高雄市政府 ","高雄市政府教育局 ","無 ","高雄市楠梓區藍田國民小學(文小2用地)校舍新建工程 ","工程","教育用建築工程 ","811787577","811787577","112/10/20","112/11/07","高雄市－楠梓區 ","否","","非中央政府辦理新臺幣一億元以上之公共工程,非受中央政府補助比率逾工程建造經費百分之五十且補助經費達新臺幣一億元以上之個案公共工程,規劃取得綠建築標章之建築工程 "]
["307","高雄市政府 ","高雄市立高雄女子高級中學 ","無 ","112年度水電保養維護(後續擴充) ","勞務","建築服務 ","420000","420000","112/11/14","112/11/16","高雄市－前金區 ","否","","非中央政府辦理新臺幣一億元以上之公共工程,非受中央政府補助比率逾工程建造經費百分之五十且補助經費達新臺幣一億元以上之個案公共工程 "]
["308","高雄市政府 ","高雄市立大仁國民中學 ","教育部體育署 ","大仁國中籃球場及排球場整修工程委託規劃設計監造技術服務 ","勞務","工程服務 ","579925","550929","112/11/01","112/11/22","高雄市－苓雅區 ","否","","整修工程、拆除工程、疏濬工程、結構補強工程 "]
["309","高雄市政府 ","高雄市立英明國民中學 ","教育部 ","羽球場地坪整建工程委託規畫設計監造服務 ","勞務","工程服務 ","498700","498700","112/10/20","112/11/06","高雄市－苓雅區 ","否","","整修工程、拆除工程、疏濬工程、結構補強工程 "]
["310","高雄市政府 ","高雄市新興區七賢國民小學 ","高雄市政府教育局 ","忠孝樓屋頂鋼構及側牆拆除工程委託規劃設計監造技術服務案 ","勞務","工程服務 ","300000","300000","112/10/25","112/11/06","高雄市－新興區 ","否","","非中央政府辦理新臺幣一億元以上之公共工程,整修工程、拆除工程、疏濬工程、結構補強工程 "]
["311","高雄市政府 ","高雄市鹽埕區鹽埕國民小學 ","高雄市政府教育局、內政部國土管理署 ","鹽埕國民小學大勇路通學步道改善計畫-委託規劃、設計暨監造技術服務 ","勞務","工程服務 ","536231","536000","112/11/09","112/11/16","高雄市－鹽埕區 ","否","","非中央政府辦理新臺幣一億元以上之公共工程,非受中央政府補助比率逾工程建造經費百分之五十且補助經費達新臺幣一億元以上之個案公共工程 "]
["312","高雄市政府 ","高雄市鹽埕區鹽埕國民小學 ","無 ","忠孝樓2-3樓廁所整建工程委託規劃設計監造技術服務 ","勞務","工程服務 ","424006","420000","112/10/25","112/11/15","高雄市－鹽埕區 ","否","","非中央政府辦理新臺幣一億元以上之公共工程,非受中央政府補助比率逾工程建造經費百分之五十且補助經費達新臺幣一億元以上之個案公共工程,整修工程、拆除工程、疏濬工程、結構補強工程 "]
["313","高雄市政府 ","高雄市左營區勝利國民小學 ","內政部國土管理署、高雄市政府教育局 ","高雄市左營區勝利國小南屏路與新南街通學步道改善工程委託規劃設計暨監造技術服務 ","勞務","綜合工程服務 ","780000","780000","112/11/22","112/11/29","高雄市－左營區 ","否","","非中央政府辦理新臺幣一億元以上之公共工程 "]
["314","高雄市政府 ","高雄市小港區小港國民小學 ","內政部國土管理署、高雄市政府教育局 ","「高雄市小港區小港國民小學平和路、平和二路、平和四路通學步道改善工程」委託規劃設計監造技術服務 ","勞務","工程服務 ","782783","780000","112/11/10","112/11/20","南部地區－全區 ","已依規定納入辦理節能減碳檢核 ","計畫提報核定階段納入辦理節能減碳檢核 ",""]
["315","高雄市政府 ","高雄市大樹區九曲國民小學 ","高雄市政府教育局 ","112年度九曲國小運動操場及周邊設施整建工程委託規畫設計暨監造技術服務案 ","勞務","工程服務 ","620010","620010","112/10/04","112/11/16","高雄市－大樹區 ","否","","非受中央政府補助比率逾工程建造經費百分之五十且補助經費達新臺幣一億元以上之個案公共工程 ，整建工程"]
["316","高雄市政府 ","高雄市燕巢區安招國民小學 ","內政部國土管理署、高雄市政府教育局 ","安招國小安招路及瓊招路通學道改善工程-委託規劃、設計暨監造技術服務 ","勞務","工程服務 ","784615","779908","112/11/10","112/11/16","南部地區－全區 ","否","","整修工程、拆除工程、疏濬工程、結構補強工程 "]
["317","高雄市政府 ","高雄市桃源區寶山國民小學 ","高雄市政府教育局 ","高雄市桃源區寶山國小東側擋土牆強化規劃設計 ","勞務","工程服務 ","187000","185000","112/11/14","112/11/15","高雄市－桃源區 ","否","","非中央政府辦理新臺幣一億元以上之公共工程,整修工程、拆除工程、疏濬工程、結構補強工程 "]
["318","高雄市政府 ","高雄市仁武區登發國民小學 ","無 ","「高雄市仁武區登發國民小學通學道暨交通設施改善計畫」委託規劃設計監造 ","勞務","工程服務 ","1171330","1171330","112/11/24","112/11/27","高雄市－仁武區 ","否","","非中央政府辦理新臺幣一億元以上之公共工程,整修工程、拆除工程、疏濬工程、結構補強工程 "]
["319","高雄市政府 ","高雄市岡山區竹圍國民小學 ","內政部營建署、高雄市政府教育局 ","竹圍北街及大仁路175巷通學步道改善工程計畫規劃設計監造 ","勞務","工程服務 ","1132538","1109887","112/08/09","112/11/10","高雄市－岡山區 ","否","","整修工程、拆除工程、疏濬工程、結構補強工程 "]
["320","高雄市政府 ","高雄市政府工務局 ","經濟部中央地質調查所 ","「110年度土壤液化調查與風險評估計畫」專業總顧問委託技術服務工作 ","勞務","工程服務 ","870000","850000","112/11/13","112/11/23","高雄市－全區 ","否","","非中央政府辦理新臺幣一億元以上之公共工程,非受中央政府補助比率逾工程建造經費百分之五十且補助經費達新臺幣一億元以上之個案公共工程 "]
["321","高雄市政府 ","高雄市政府工務局新建工程處 ","內政部警政署 ","「高雄市政府警察局鳳山分局重建工程」委託規劃設計暨監造技術服務（第一次變更服務） ","勞務","建築服務 ","2202587","2160229","112/11/21","112/11/24","高雄市－鳳山區 ","否","","規劃取得綠建築標章之建築工程 "]
["322","高雄市政府 ","高雄市政府工務局新建工程處 ","無 ","「高雄軟體園區擴區（二期）開發工程道路新闢案」委託規劃設計及監造技術服務第一次變更服務 ","勞務","工程服務 ","404250","380000","112/11/08","112/11/10","高雄市－前鎮區 ","否","","非中央政府辦理新臺幣一億元以上之公共工程,非受中央政府補助比率逾工程建造經費百分之五十且補助經費達新臺幣一億元以上之個案公共工程 "]
["323","高雄市政府 ","高雄市政府工務局道路養護工程處 ","無 ","112年度高雄市道路改善工程委託設計及監造服務案 (開口契約)(第一優勝廠商)契約變更-第1次後續擴充 ","勞務","工程服務 ","1000000","1000000","112/11/22","112/11/24","高雄市－全區 ","否","","非受中央政府補助比率逾工程建造經費百分之五十且補助經費達新臺幣一億元以上之個案公共工程 "]
["324","高雄市政府 ","高雄市政府工務局道路養護工程處 ","無 ","112年度高雄市道路改善工程委託設計及監造服務案 (開口契約) (第3優勝廠商)契約變更－第2次後續擴充 ","勞務","工程服務 ","5620000","5620000","112/11/09","112/11/17","高雄市－全區 ","否","","非中央政府辦理新臺幣一億元以上之公共工程,非受中央政府補助比率逾工程建造經費百分之五十且補助經費達新臺幣一億元以上之個案公共工程 "]
["325","高雄市政府 ","高雄市政府工務局道路養護工程處 ","無 ","112年度本市人行環境改善工程委託規劃設計及監造技術服務案(開口契約) ","勞務","工程服務 ","8000000","7800000","112/11/23","112/11/24","高雄市－全區 ","否","","非受中央政府補助比率逾工程建造經費百分之五十且補助經費達新臺幣一億元以上之個案公共工程 "]
["326","高雄市政府 ","高雄市政府工務局公園處 ","無 ","110年度全市鄰里公園及遊戲場新闢及改造工程委託規劃設計及監造技術服務案(開口契約)(第二標)-第1次後續擴充契約變更 ","勞務","工程服務 ","2399280","2399280","112/10/31","112/11/15","高雄市－全區 ","已依規定納入辦理節能減碳檢核 ","計畫提報核定階段納入辦理節能減碳檢核 ",""]
["327","高雄市政府 ","高雄市政府工務局公園處 ","無 ","111年度全市鄰里公園及遊戲場新闢及改造工程委託規劃設計及監造技術服務案(開口契約)(第一標)-第2次後續擴充 ","勞務","工程服務 ","2300000","2300000","112/11/24","112/11/29","高雄市－全區 ","已依規定納入辦理節能減碳檢核 ","計畫提報核定階段納入辦理節能減碳檢核 ",""]
["328","高雄市政府 ","高雄市政府工務局公園處 ","無 ","111年度全市公園遊戲場修繕及改造工程委託規劃設計及監造技術服務案（開口契約）（第2標）-第二次後續擴充追加契約變更 ","勞務","工程服務 ","2700000","2700000","112/11/13","112/11/20","高雄市－新興區,高雄市－前金區,高雄市－苓雅區,高雄市－鹽埕區,高雄市－鼓山區,高雄市－旗津區,高雄市－前鎮區,高雄市－三民區,高雄市－楠梓區,高雄市－小港區,高雄市－左營區 ","已依規定納入辦理節能減碳檢核 ","計畫提報核定階段納入辦理節能減碳檢核 ",""]
["329","高雄市政府 ","高雄市政府工務局公園處 ","無 ","112年度全市公園遊戲場統包工程委託監造技術服務（開口契約）(第一標) ","勞務","綜合工程服務 ","5000000","4750000","112/11/23","112/11/24","高雄市－全區 ","已依規定納入辦理節能減碳檢核 ","計畫提報核定階段納入辦理節能減碳檢核 ",""]
["330","高雄市政府 ","高雄市政府工務局公園處 ","無 ","「112年度本市道路、公園、橋梁等照明景觀改善工程(開口契約)工程規劃、設計及監造服務案」-第1次後續擴充 ","勞務","工程服務 ","1160000","1160000","112/11/14","112/11/16","高雄市－全區 ","已依規定納入辦理節能減碳檢核 ","計畫提報核定階段納入辦理節能減碳檢核 ",""]
["331","高雄市政府 ","高雄市政府工務局公園處 ","無 ","112年度旗美六區等公園設施維護改善及緊急搶修工程委託設計及監造技術服務案(開口契約) ","勞務","工程服務 ","1000000","967797","112/11/16","112/11/17","高雄市－全區 ","已依規定納入辦理節能減碳檢核 ","計畫提報核定階段納入辦理節能減碳檢核 ",""]
["332","高雄市政府 ","高雄市立聯合醫院 ","無 ","三樓手術室內部動線調整及獨立防火區劃改善工程規劃設計監造技術服務案 ","勞務","建築服務 ","680297","659888","112/09/15","112/11/10","高雄市－鼓山區 ","否","","整修工程、拆除工程、疏濬工程、結構補強工程 "]
["333","高雄市政府 ","高雄市政府環境保護局 ","無 ","112年北鳳山區清潔隊環保設施重置計畫委託設計監造 ","勞務","建築服務 ","4773777","4706467","112/11/09","112/11/14","高雄市－全區 ","否","","非中央政府辦理新臺幣一億元以上之公共工程 "]
["334","高雄市政府 ","高雄市政府環境保護局中區資源回收廠 ","無 ","113年度景觀美綠化服務 ","勞務","都市計劃及景觀建築服務 ","459600","409888","112/11/01","112/11/15","高雄市－三民區 ","否","","非中央政府辦理新臺幣一億元以上之公共工程,非受中央政府補助比率逾工程建造經費百分之五十且補助經費達新臺幣一億元以上之個案公共工程 "]
["335","高雄市政府 ","高雄市政府水利局 ","內政部營建署 ","高雄市污水下水道系統發展計畫委託專業服務案  ","勞務","工程服務 ","8152000","8100000","112/11/14","112/11/16","南部地區－全區 ","否","","非受中央政府補助比率逾工程建造經費百分之五十且補助經費達新臺幣一億元以上之個案公共工程 "]
["336","高雄市政府 ","高雄市政府水利局 ","無 ","113年污水下水道系統維護及維修開口契約工程委託設計監造 ","勞務","工程服務 ","6997365","6822430","112/11/14","112/11/16","高雄市－全區 ","否","","非受中央政府補助比率逾工程建造經費百分之五十且補助經費達新臺幣一億元以上之個案公共工程 "]
["337","高雄市政府 ","高雄市政府水利局 ","無 ","112-114年度岡山等9區區域排水清疏及維護工程委託設計監造 ","勞務","工程服務 ","4890000","4523250","112/11/16","112/11/22","高雄市－岡山區,高雄市－路竹區,高雄市－阿蓮區,高雄市－田寮區,高雄市－梓官區,高雄市－彌陀區,高雄市－永安區,高雄市－湖內區,高雄市－茄萣區 ","否","","非受中央政府補助比率逾工程建造經費百分之五十且補助經費達新臺幣一億元以上之個案公共工程 "]
["338","高雄市政府 ","高雄市政府水利局 ","無 ","113年度高雄市前鎮等3區排水設施維護及清疏工程委託設計監造案 ","勞務","工程服務 ","5195000","4966420","112/11/02","112/11/03","高雄市－旗津區,高雄市－前鎮區,高雄市－小港區 ","否","","非受中央政府補助比率逾工程建造經費百分之五十且補助經費達新臺幣一億元以上之個案公共工程 "]
["339","高雄市政府 ","高雄市政府水利局 ","無 ","112年度荖濃溪高美大橋下游（斷面94-97）河段疏濬作業委託測設、監督及監控工作 ","勞務","工程服務 ","2792000","2723000","112/11/07","112/11/09","高雄市－美濃區 ","否","","非受中央政府補助比率逾工程建造經費百分之五十且補助經費達新臺幣一億元以上之個案公共工程 "]
["340","高雄市政府 ","高雄市政府水利局 ","經濟部水利署 ","高屏溪、鳳山水庫及阿公店水庫水質水量保護區水源保育與回饋計畫查核案 ","勞務","工程服務 ","2530000","2445000","112/11/02","112/11/03","高雄市－小港區,高雄市－岡山區,高雄市－田寮區,高雄市－燕巢區,高雄市－大寮區,高雄市－林園區,高雄市－大樹區,高雄市－旗山區,高雄市－美濃區,高雄市－六龜區,高雄市－內門區,高雄市－杉林區,高雄市－甲仙區,高雄市－桃源區,高雄市－那瑪夏區,高雄市－茂林區,屏東縣－三地門,屏東縣－霧臺,屏東縣－瑪家,屏東縣－九如,屏東縣－里港,屏東縣－高樹,屏東縣－鹽埔,屏東縣－內埔,屏東縣－泰武 ","否","","非受中央政府補助比率逾工程建造經費百分之五十且補助經費達新臺幣一億元以上之個案公共工程 "]
["341","高雄市政府 ","高雄市政府交通局 ","交通部 ","111-112年度增設交通號誌工程委託設計監造案第1次後續擴充(契約變更) ","勞務","工程服務 ","1372895","1372895","112/11/10","112/11/14","高雄市－全區 ","否","","非受中央政府補助比率逾工程建造經費百分之五十且補助經費達新臺幣一億元以上之個案公共工程 "]
["342","高雄市政府 ","高雄市政府交通局 ","交通部公路總局 ","漢民公園地下停車場新建工程委託設計監造技術服務案 ","勞務","建築服務 ","27712341","27352080","112/11/02","112/11/20","高雄市－小港區 ","否","","規劃取得綠建築標章之建築工程 "]
["343","高雄市政府 ","高雄市政府文化局 ","文化部 ","高雄市歷史建築永安黃家古厝修復工程規劃設計案（含因應計畫） ","勞務","建築服務 ","2100000","2100000","112/08/21","112/11/24","高雄市－永安區 ","否","","非受中央政府補助比率逾工程建造經費百分之五十且補助經費達新臺幣一億元以上之個案公共工程 "]
["344","高雄市政府 ","高雄市政府文化局 ","文化部 ","見城之道-南門廣場營造與東門銜接工程委託規劃設計案 ","勞務","工程服務 ","5527665","5527665","112/09/12","112/11/24","高雄市－左營區 ","否","","非受中央政府補助比率逾工程建造經費百分之五十且補助經費達新臺幣一億元以上之個案公共工程 "]
["345","高雄市政府 ","高雄市政府文化局 ","文化部文化資產局 ","岡山樂群村建物整修工程(第一期)-A1宿舍監造及工作報告書委託技術服務(後續服務) ","勞務","工程服務 ","3450000","3400000","112/08/04","112/11/24","高雄市－岡山區 ","否","","非受中央政府補助比率逾工程建造經費百分之五十且補助經費達新臺幣一億元以上之個案公共工程 "]
["346","高雄市政府 ","高雄市政府客家事務委員會 ","無 ","112年鳳山黃埔新村東五巷126號眷舍因應計畫工程委託規劃設計監造技術服務案 ","勞務","工程服務 ","800000","800000","112/11/24","112/11/30","高雄市－鳳山區 ","否","","非中央政府辦理新臺幣一億元以上之公共工程,非受中央政府補助比率逾工程建造經費百分之五十且補助經費達新臺幣一億元以上之個案公共工程 "]
["347","高雄市政府 ","高雄市政府都市發展局 ","無 ","前鎮亞灣智慧公宅（第一期）新建統包工程委託耐震特別監督技術服務案 ","勞務","建築服務 ","16080000","16080000","112/11/23","112/11/24","高雄市－苓雅區,高雄市－前鎮區 ","否","","非受中央政府補助比率逾工程建造經費百分之五十且補助經費達新臺幣一億元以上之個案公共工程 "]
["348","高雄市政府 ","高雄市政府海洋局 ","無 ","鼓山漁港遊艇碼頭災損復建工程委託設計及監造服務 ","勞務","工程服務 ","2989000","2929220","112/11/27","112/11/30","高雄市－鼓山區 ","否","","災後緊急處理、搶修、搶險 "]
["349","高雄市政府 ","高雄市政府海洋局 ","農業部漁業署 ","112林園區中芸漁港魚市場設施改善工程(第二期)委託設計及監造服務 ","勞務","工程服務 ","1310400","1264536","112/11/02","112/11/16","高雄市－林園區 ","否","","整修工程、拆除工程、疏濬工程、結構補強工程 "]
["350","高雄市政府 ","高雄市政府海洋局 ","農業部漁業署 ","興達養殖漁業生產區大湖埤排水一中排改善工程委託監造服務 ","勞務","工程服務 ","3079363","3017776","112/10/19","112/11/03","高雄市－路竹區,高雄市－茄萣區 ","否","","非中央政府辦理新臺幣一億元以上之公共工程 "]
["351","高雄市政府 ","高雄市政府海洋局 ","農業部漁業署 ","興達養殖漁業生產區湖內排水二中排改善工程委託監造服務 ","勞務","工程服務 ","749402","679708","112/11/02","112/11/07","高雄市－茄萣區 ","否","","整修工程、拆除工程、疏濬工程、結構補強工程 "]
["352","高雄市政府 ","高雄市楠梓區公所 ","無 ","113年度高雄市楠梓區道路、排水等公共設施改善工程設計及監造技術服務(開口契約) ","勞務","工程服務 ","981398","951956","112/11/27","112/11/28","高雄市－楠梓區 ","否","","非中央政府辦理新臺幣一億元以上之公共工程 "]
["353","高雄市政府 ","高雄市大寮區公所 ","無 ","113年度高雄市大寮區工程採購案委託規劃設計監造技術服務(開口契約) ","勞務","工程服務 ","4496000","4181280","112/11/08","112/11/10","高雄市－大寮區 ","否","","非中央政府辦理新臺幣一億元以上之公共工程 "]
["354","高雄市政府 ","高雄市橋頭區公所 ","農業部農村發展及水土保持署 ","112年橋頭區小型工程委託設計監造(開口契約)-第二標 ","勞務","工程服務 ","1020000","999600","112/11/16","112/11/16","高雄市－橋頭區 ","已依規定納入辦理節能減碳檢核 ","計畫提報核定階段納入辦理節能減碳檢核 ",""]
["355","高雄市政府 ","高雄市田寮區公所 ","高雄市政府 ","田寮區112年下半年度6公尺以下C2道路復建工程委託技術服務開口合約 ","勞務","工程服務 ","1396500","1298745","112/10/31","112/11/06","高雄市－田寮區 ","否","","非中央政府辦理新臺幣一億元以上之公共工程,非受中央政府補助比率逾工程建造經費百分之五十且補助經費達新臺幣一億元以上之個案公共工程,災後原地復建 "]
["356","高雄市政府 ","高雄市湖內區公所 ","無 ","湖內區小型工程委託設計監造技術服務 ","勞務","工程服務 ","1580000","1548400","112/10/31","112/11/06","高雄市－湖內區 ","否","","非受中央政府補助比率逾工程建造經費百分之五十且補助經費達新臺幣一億元以上之個案公共工程 "]
["357","高雄市政府 ","高雄市彌陀區公所 ","高雄市政府水利局 ","113年度高雄市彌陀區道路、排水、公共設施等緊急搶修及經常性維護工作委託設計監造（開口契約） ","勞務","工程服務 ","953819","934743","112/11/15","112/11/15","高雄市－彌陀區 ","否","","整修工程、拆除工程、疏濬工程、結構補強工程 "]
["358","高雄市政府 ","高雄市六龜區公所 ","無 ","112年度六龜區里環境改善作業(開口契約) ","勞務","都市計劃及景觀建築服務 ","482000","442260","112/10/31","112/11/08","高雄市－六龜區 ","否","","整修工程、拆除工程、疏濬工程、結構補強工程 "]
["359","高雄市政府 ","高雄市甲仙區公所 ","文化部 ","112年度甲仙化石館漏水修繕工程委託設計監造案 ","勞務","工程服務 ","629000","629000","112/09/13","112/11/30","高雄市－甲仙區 ","否","","非受中央政府補助比率逾工程建造經費百分之五十且補助經費達新臺幣一億元以上之個案公共工程 "]
["360","高雄市政府 ","高雄市甲仙區公所 ","無 ","112年度甲仙區地方創生推動計畫委託勞務案 ","勞務","工程服務 ","850000","850000","112/10/31","112/11/03","高雄市－甲仙區 ","否","","非受中央政府補助比率逾工程建造經費百分之五十且補助經費達新臺幣一億元以上之個案公共工程 "]
["361","高雄市政府 ","高雄市甲仙區公所 ","無 ","113年甲仙區公設與景觀及災害搶修等興建維護工作委託設計監造技術服務開口契約 ","勞務","工程服務 ","3300000","3278000","112/11/07","112/11/17","高雄市－甲仙區 ","否","","非中央政府辦理新臺幣一億元以上之公共工程 "]
["362","高雄市政府 ","高雄市茂林區公所 ","無 ","112-113年度茂林區觀光產業發展暨基礎建設公共工程委託技術服務開口契約 ","勞務","工程服務 ","7900000","7268000","112/11/24","112/11/27","高雄市－茂林區 ","否","","非中央政府辦理新臺幣一億元以上之公共工程,非受中央政府補助比率逾工程建造經費百分之五十且補助經費達新臺幣一億元以上之個案公共工程 "]
["363","高雄市政府 ","高雄市桃源區公所 ","無 ","「少年溪溫泉前置作業暨開發工程」委託地下水位變化監測及規劃設計監造技術服務 ","勞務","工程服務 ","6280000","5880000","112/11/13","112/11/16","高雄市－桃源區 ","否","","非中央政府辦理新臺幣一億元以上之公共工程 "]
["364","國史館 ","國史館 ","無 ","國史館113年度園藝整理維護工作勞務委外案 ","勞務","建築服務 ","500000","478000","112/11/15","112/11/17","臺北市－中正區 ","否","","非中央政府辦理新臺幣一億元以上之公共工程 "]
["365","國立故宮博物院 ","國立故宮博物院 ","無 ","北部院區安全監控系統設備採購委託技術服務案 ","勞務","綜合工程服務 ","850000","850000","112/11/15","112/11/20","臺北市－士林區 ","否","","非中央政府辦理新臺幣一億元以上之公共工程 "]
["366","國防部 ","國防部 ","無 ","空軍P003統包工程 ","工程","其他用途建築工程 ","3889359000","3889359000","112/11/02","112/11/08","臺中市－大雅區 ","否","","非受中央政府補助比率逾工程建造經費百分之五十且補助經費達新臺幣一億元以上之個案公共工程 "]
["367","國防部 ","國防部 ","無 ","「坑子口訓練場整建工程」統包工程 ","工程","其他用途建築工程 ","913722000","913722000","112/08/24","112/11/16","新竹縣－新豐 ","否","","非受中央政府補助比率逾工程建造經費百分之五十且補助經費達新臺幣一億元以上之個案公共工程 "]
["368","國防部 ","國防部 ","無 ","高登、亮島碼頭整建統包工程 ","工程","水道、海港、水壩及其他水利工程 ","474531965","474500000","112/11/17","112/11/28","連江縣－北竿 ","否","","整修工程、拆除工程、疏濬工程、結構補強工程 "]
["369","國防部 ","國防部陸軍司令部 ","無 ","手榴彈投擲場邊坡補強暨周邊設施整修工程委託規劃設計技術服務 ","勞務","綜合工程服務 ","491457","491457","112/11/16","112/11/24","桃園市－楊梅區 ","否","","非受中央政府補助比率逾工程建造經費百分之五十且補助經費達新臺幣一億元以上之個案公共工程 "]
["370","國防部 ","國防部陸軍司令部 ","無 ","大漢營區崑崙樓門廳、走廊及無障礙設施整建工程」委託規劃設計 ","勞務","工程服務 ","1434600","1434600","112/11/22","112/11/27","北部地區－全區 ","否","","非中央政府辦理新臺幣一億元以上之公共工程 "]
["371","國防部 ","國防部陸軍司令部 ","無 ","陸軍司令部113年度電力設備檢測 ","勞務","工程服務 ","699000","568000","112/11/09","112/11/16","北部地區－全區 ","否","","非中央政府辦理新臺幣一億元以上之公共工程 "]
["372","國防部 ","國防部陸軍司令部 ","無 ","大漢營區水電設施維護開口合約勞務 ","勞務","工程服務 ","1400000","952000","112/11/02","112/11/08","北部地區－全區 ","否","","整修工程、拆除工程、疏濬工程、結構補強工程 "]
["373","國防部 ","陸軍金門防衛指揮部 ","無 ","中興崗營區新建工程委託設計暨監造服務案 ","勞務","工程服務 ","1511000","1511000","112/06/09","112/11/30","金門縣－全區 ","否","","非中央政府辦理新臺幣一億元以上之公共工程 "]
["374","國防部 ","國防部海軍司令部 ","無 ","「馬祖基地指揮部住辦大樓新建工程」暨「東指部營區新建工程」監造委託技術服務 ","勞務","綜合工程服務 ","8800000","8800000","112/10/26","112/11/24","連江縣－全區 ","否","","非中央政府辦理新臺幣一億元以上之公共工程 "]
["375","國防部 ","國防部海軍司令部 ","無 ","海軍陸戰隊指揮部營區設施修繕工程委託規劃設計暨監造服務 ","勞務","工程服務 ","4950000","4950000","112/10/31","112/11/16","高雄市－全區,臺北市－北投區,桃園市－龜山區,屏東縣－車城,屏東縣－恆春,金門縣－烏坵,其他－其他 ","否","","非中央政府辦理新臺幣一億元以上之公共工程,整修工程、拆除工程、疏濬工程、結構補強工程 "]
["376","國防部 ","國防醫學院 ","無 ","澎湖分院各類型工程委託規劃設計及監造技術服務開口契約 ","勞務","工程服務 ","3000000","3000000","112/11/07","112/11/09","離島地區－全區 ","否","","整修工程、拆除工程、疏濬工程、結構補強工程 "]
["377","國防部 ","國防醫學院 ","無 ","配電場遷移及變電站電器設備更新委託設計監造技術服務案 ","勞務","工程服務 ","992690","944048","112/11/08","112/11/22","臺北市－北投區 ","否","","整修工程、拆除工程、疏濬工程、結構補強工程 "]
["378","國軍退除役官兵輔導委員會 ","國軍退除役官兵輔導委員會福壽山農場 ","無 ","113年度國軍退除役官兵輔導委員會福壽山農場營繕工程委託設計及監造技術服務案 ","勞務","綜合工程服務 ","1033600","988122","112/10/31","112/11/01","臺中市－和平區 ","否","","非中央政府辦理新臺幣一億元以上之公共工程 "]
["379","國軍退除役官兵輔導委員會 ","國軍退除役官兵輔導委員會清境農場 ","無 ","113年度清境農場轄區工程委託技術服務 ","勞務","工程服務 ","2991500","2812010","112/11/16","112/11/21","南投縣－仁愛 ","否","","非中央政府辦理新臺幣一億元以上之公共工程,整修工程、拆除工程、疏濬工程、結構補強工程 "]
["380","國軍退除役官兵輔導委員會 ","臺中榮民總醫院埔里分院 ","無 ","112年廊道外牆與屋頂防水整修暨中庭景觀改善工程委託設計監造技術服務採購案(第一次變更設計) ","勞務","建築服務 ","157351","150000","112/11/16","112/11/21","南投縣－埔里 ","否","","整修工程、拆除工程、疏濬工程、結構補強工程 "]
["381","國家科學及技術委員會 ","國家科學及技術委員會新竹科學園區管理局 ","無 ","國立新竹科學園區實驗高級中等學校綜合教學大樓新建工程 ","工程","教育用建築工程 ","589073945","589000000","112/11/29","112/11/30","新竹市－東區 ","否","","非中央政府辦理新臺幣一億元以上之公共工程,規劃取得綠建築標章之建築工程 "]
["382","國家科學及技術委員會 ","國家科學及技術委員會中部科學園區管理局 ","無 ","113-114年度中科公共設施巡查與維護工程設計及監造委託技術服務 ","勞務","工程服務 ","21097600","20879866","112/11/13","112/11/22","臺中市－西屯區,彰化縣－二林,南投縣－南投,雲林縣－虎尾 ","否","","非中央政府辦理新臺幣一億元以上之公共工程 "]
["383","國家科學及技術委員會 ","國家科學及技術委員會南部科學園區管理局 ","無 ","南科臺南園區擴建土地開發工程(第一區)等2項合併 ","工程","其他土木工程 ","1583948144","1470000000","112/10/27","112/11/01","臺南市－新市區 ","已依規定納入辦理節能減碳檢核 ","計畫提報核定階段納入辦理節能減碳檢核 ",""]
["384","國家科學及技術委員會 ","國家科學及技術委員會南部科學園區管理局 ","無 ","113-114年南科園區公設、景觀及水電交通等維護業務委託履約督導服務 ","勞務","工程服務 ","35917000","35917000","112/10/30","112/11/01","臺南市－新市區,高雄市－路竹區 ","否","","非中央政府辦理新臺幣一億元以上之公共工程 "]
["385","國家發展委員會 ","國家發展委員會檔案管理局 ","教育部國民及學前教育署 ","行政院新莊聯合辦公大樓各進駐機關員工子女非營利幼兒園建築物裝修工程委託規劃設計監造技術服務案 ","勞務","建築服務 ","278140","270000","112/10/27","112/11/15","新北市－新莊區 ","否","","非中央政府辦理新臺幣一億元以上之公共工程 "]
["386","基隆市政府 ","基隆市政府 ","內政部 ","「希望之丘中正公園天鵝洞周邊社區廊帶串聯規劃設計」(後續擴充監造)委託技術服務案 ","勞務","都市計劃及景觀建築服務 ","2115875","2115875","112/11/23","112/11/27","基隆市－信義區,基隆市－中正區 ","否","","非中央政府辦理新臺幣一億元以上之公共工程 "]
["387","基隆市政府 ","基隆市政府 ","內政部國土管理署 ","112年校園周邊暨行車安全道路改善計畫－基隆市中和國小等11校校園周邊改善計畫委託設計技術服務案(含後續擴充監造) ","勞務","工程服務 ","3874520","3860000","112/11/24","112/11/30","基隆市－全區 ","否","","非中央政府辦理新臺幣一億元以上之公共工程,非受中央政府補助比率逾工程建造經費百分之五十且補助經費達新臺幣一億元以上之個案公共工程 "]
["388","基隆市政府 ","基隆市政府 ","內政部國土管理署 ","基隆市合作住宅發展歷史調查研究計畫(後續擴充) ","勞務","都市計劃及景觀建築服務 ","400000","400000","112/11/03","112/11/07","基隆市－全區 ","否","","非中央政府辦理新臺幣一億元以上之公共工程,非受中央政府補助比率逾工程建造經費百分之五十且補助經費達新臺幣一億元以上之個案公共工程 "]
["389","基隆市政府 ","基隆市政府 ","內政部營建署 ","基隆市仁愛區及中正區騎樓整平工程委託監造(含變更設計檢討)勞務採購案 ","勞務","建築服務 ","1121419","1121419","112/11/22","112/11/23","基隆市－仁愛區,基隆市－中正區 ","否","","非中央政府辦理新臺幣一億元以上之公共工程,非受中央政府補助比率逾工程建造經費百分之五十且補助經費達新臺幣一億元以上之個案公共工程,整修工程、拆除工程、疏濬工程、結構補強工程 "]
["390","基隆市政府 ","基隆市政府 ","無 ","泰安瀑布環山步道(卡努颱風)災後復建工程委託設計監造技術服務案 ","勞務","工程服務 ","868455","848000","112/11/02","112/11/07","北部地區－全區 ","否","","災後原地復建 "]
["391","基隆市政府 ","基隆市政府 ","無 ","基隆市南榮公墓生命典藏館新建工程委託監造技術服務 ","勞務","建築服務 ","12700171","12573169","112/11/28","112/11/29","基隆市－仁愛區 ","否","","非受中央政府補助比率逾工程建造經費百分之五十且補助經費達新臺幣一億元以上之個案公共工程 "]
["392","基隆市政府 ","基隆市政府 ","無 ","配合「基隆捷運（第一階段）」擬定大眾運輸導向都市發展之都市計畫土地使用管制委託技術服務案 ","勞務","都市計劃及景觀建築服務 ","4000000","4000000","112/11/14","112/11/17","基隆市－全區 ","否","","非中央政府辦理新臺幣一億元以上之公共工程,非受中央政府補助比率逾工程建造經費百分之五十且補助經費達新臺幣一億元以上之個案公共工程 "]
["393","基隆市政府 ","基隆市政府 ","無 ","基隆中正路舊公車修理站土地招商規劃委託技術服務案 ","勞務","都市計劃及景觀建築服務 ","7200000","7200000","112/10/31","112/11/02","北部地區－全區 ","否","","非中央政府辦理新臺幣一億元以上之公共工程,非受中央政府補助比率逾工程建造經費百分之五十且補助經費達新臺幣一億元以上之個案公共工程 "]
["394","基隆市政府 ","基隆市政府 ","無 ","「基隆市設計實驗行動計畫-惠隆市場基地」委託專業服務案 ","勞務","都市計劃及景觀建築服務 ","2000000","1990000","112/11/17","112/11/20","基隆市－全區 ","否","","非中央政府辦理新臺幣一億元以上之公共工程 "]
["395","基隆市政府 ","基隆市中山區公所 ","無 ","113年度中山區租用安一路16號民宅作為安平里民活動中心 ","勞務","建築服務 ","300000","300000","112/11/15","112/11/20","基隆市－中山區 ","否","","非中央政府辦理新臺幣一億元以上之公共工程 "]
["396","基隆市政府 ","基隆市安樂區公所 ","無 ","基隆市五福里民活動中心整修工程委託設計監造技術服務案 ","勞務","工程服務 ","1448476","1410000","112/11/16","112/11/20","基隆市－安樂區 ","否","","非中央政府辦理新臺幣一億元以上之公共工程 "]
["397","基隆市政府 ","基隆市立銘傳國民中學 ","基隆市政府 ","基隆市銘傳國中行政大樓右側屋頂及外牆防水隔熱改善工程委託設計監造技術服務案 ","勞務","工程服務 ","346369","342905","112/11/03","112/11/03","基隆市－仁愛區 ","否","","整修工程、拆除工程、疏濬工程、結構補強工程 "]
["398","基隆市政府 ","基隆市信義區信義國民小學 ","基隆市政府 ","校門口及周邊改善工程委託規劃設計監造技術服務 ","勞務","建築服務 ","380804","380000","112/11/01","112/11/09","基隆市－仁愛區 ","否","","非受中央政府補助比率逾工程建造經費百分之五十且補助經費達新臺幣一億元以上之個案公共工程 "]
["399","基隆市政府 ","基隆市信義區信義國民小學 ","基隆市政府 ","基隆市仁二路臨校側人行道改善工程規劃、設計及監造委託技術服務 ","勞務","建築服務 ","148000","140000","112/08/14","112/11/10","基隆市－仁愛區 ","否","","非中央政府辦理新臺幣一億元以上之公共工程 "]
["400","基隆市政府 ","基隆市信義區信義國民小學 ","基隆市政府 ","信義國小活動中心後方山坡護坡工程規劃、設計及監造委託技術服務第一次變更議價 ","勞務","建築服務 ","25617","25000","112/11/21","112/11/21","基隆市－仁愛區 ","否","","非中央政府辦理新臺幣一億元以上之公共工程 "]
["401","基隆市政府 ","基隆市信義區信義國民小學 ","教育部體育署 ","112年度期中修整建運動場地活動中心地面鋪設工程委託規劃設計監造技術服務案 ","勞務","建築服務 ","163658","163658","112/11/01","112/11/08","基隆市－仁愛區 ","否","","非中央政府辦理新臺幣一億元以上之公共工程 "]
["402","教育部 ","國立自然科學博物館 ","無 ","『礦物廳』常設展示委託設計監造技術服務採購(第1次契約變更) ","勞務","工程服務 ","229089","224507","112/11/09","112/11/15","臺中市－北區 ","否","","整修工程、拆除工程、疏濬工程、結構補強工程 "]
["403","教育部 ","國立臺灣大學 ","無 ","國立臺灣大學中正段二小段220地號等2筆教職員宿舍新建工程委託設計監造技術服務勞務採購案第1次契約變更 ","勞務","工程服務 ","1370000","1350000","112/11/02","112/11/07","臺北市－中正區 ","否","","非中央政府辦理新臺幣一億元以上之公共工程 "]
["404","教育部 ","國立臺灣大學 ","無 ","展書樓(舊館)外牆整修工程委託技術服務 ","勞務","建築服務 ","558000","538000","112/11/02","112/11/09","臺北市－大安區 ","否","","整修工程、拆除工程、疏濬工程、結構補強工程 "]
["405","教育部 ","國立臺灣大學 ","無 ","管理學院二號館4~5樓廁所及交誼區整修工程委託技術服務 ","勞務","建築服務 ","776000","751000","112/11/14","112/11/27","臺北市－大安區 ","否","","整修工程、拆除工程、疏濬工程、結構補強工程 "]
["406","教育部 ","國立臺灣大學 ","無 ","生傳系建置錄音室整修工程委託技術服務 ","勞務","建築服務 ","394116","380000","112/11/14","112/11/30","臺北市－大安區 ","否","","整修工程、拆除工程、疏濬工程、結構補強工程 "]
["407","教育部 ","國立臺灣大學 ","無 ","國立臺灣大學計算機及資訊網路中心耐震能力詳細評估勞務採購 ","勞務","綜合工程服務 ","675550","650000","112/11/09","112/11/13","臺北市－大安區 ","否","","整修工程、拆除工程、疏濬工程、結構補強工程 "]
["408","教育部 ","國立臺灣大學 ","無 ","國立臺灣大學工科二館修繕工程委託技術服務 ","勞務","建築服務 ","241132","228000","112/11/21","112/11/27","臺北市－大安區 ","否","","整修工程、拆除工程、疏濬工程、結構補強工程 "]
["409","教育部 ","國立臺灣大學 ","無 ","工綜新館電力監視系統建置工程委託設計監造技術服務 ","勞務","工程服務 ","936646","898000","112/11/21","112/11/28","臺北市－大安區 ","否","","非受中央政府補助比率逾工程建造經費百分之五十且補助經費達新臺幣一億元以上之個案公共工程 "]
["410","教育部 ","國立清華大學 ","無 ","西院道路改善暨支管工程委託設計監造 ","勞務","工程服務 ","1493796","1475890","112/10/27","112/11/01","新竹市－東區 ","否","","非中央政府辦理新臺幣一億元以上之公共工程,非受中央政府補助比率逾工程建造經費百分之五十且補助經費達新臺幣一億元以上之個案公共工程 "]
["411","教育部 ","國立清華大學 ","無 ","北校門既設高壓總變電站MOF2迴路至機電中心既設高壓變電站高壓主幹電纜線汰換工程委託規畫設計及監造技術服務案 ","勞務","工程服務 ","1004616","1000000","112/11/03","112/11/27","新竹市－東區 ","否","","非中央政府辦理新臺幣一億元以上之公共工程 "]
["412","教育部 ","國立臺灣師範大學 ","無 ","直轄市市定古蹟福州街11號日式宿舍修復工程委託監造及工作報告書技術服務第2次契約變更 ","勞務","建築服務 ","160000","158000","112/11/27","112/11/28","臺北市－大安區 ","否","","非受中央政府補助比率逾工程建造經費百分之五十且補助經費達新臺幣一億元以上之個案公共工程,整修工程、拆除工程、疏濬工程、結構補強工程 "]
["413","教育部 ","國立臺灣師範大學 ","無 ","和平校區II綜合大樓1樓空間改善工程委託技術服務 ","勞務","建築服務 ","200000","200000","112/11/01","112/11/01","臺北市－大安區 ","否","","整修工程、拆除工程、疏濬工程、結構補強工程 "]
["414","教育部 ","國立成功大學 ","無 ","自強校區電資學院研究大樓增建擴充工程委託規劃設計監造技術服務第一次契約變更 ","勞務","建築服務 ","222446","222446","112/11/29","112/11/30","臺南市－東區 ","否","","整修工程、拆除工程、疏濬工程、結構補強工程 "]
["415","教育部 ","國立成功大學 ","無 ","勝利三舍建築物耐震補強工程委託規劃設計監造技術服務 ","勞務","工程服務 ","1037292","1037292","112/11/15","112/11/16","臺南市－東區 ","否","","整修工程、拆除工程、疏濬工程、結構補強工程 "]
["416","教育部 ","國立成功大學 ","無 ","科技大樓暨綜合二館地下室變電站設備汰換工程委託規畫設計監造技術服務 ","勞務","工程服務 ","1151863","1151863","112/11/13","112/11/14","臺南市－東區 ","否","","整修工程、拆除工程、疏濬工程、結構補強工程 "]
["417","教育部 ","國立成功大學醫學院附設醫院 ","無 ","沙崙醫療服務與創新園區第一階段(F區第一期)沙崙醫院新建工程委託辦理基本設計技術服務 ","勞務","建築服務 ","50675000","50168000","112/08/24","112/11/17","臺南市－北區,臺南市－歸仁區 ","已依規定納入辦理節能減碳檢核 ","規劃設計階段納入辦理節能減碳檢核 ",""]
["418","教育部 ","國立中興大學 ","行政院 ","112年度南投分部高低壓用電設備及消防安全設備定期檢驗(第一次後續擴充) ","勞務","工程服務 ","600000","600000","112/10/30","112/11/01","南投縣－南投 ","否","","非中央政府辦理新臺幣一億元以上之公共工程,非受中央政府補助比率逾工程建造經費百分之五十且補助經費達新臺幣一億元以上之個案公共工程 "]
["419","教育部 ","國立中興大學 ","無 ","112年度校區機電修繕工程委託技術服務(開口契約)(第1次後續擴充) ","勞務","工程服務 ","1000000","1000000","112/10/25","112/11/01","臺中市－南區 ","否","","非中央政府辦理新臺幣一億元以上之公共工程,非受中央政府補助比率逾工程建造經費百分之五十且補助經費達新臺幣一億元以上之個案公共工程 "]
["420","教育部 ","國立彰化師範大學 ","教育部體育署 ","寶山校區排球場整建工程委託規劃設計監造技術服務 ","勞務","建築服務 ","371580","341854","112/11/27","112/11/29","彰化縣－彰化 ","否","","整修工程、拆除工程、疏濬工程、結構補強工程 "]
["421","教育部 ","國立高雄師範大學附屬高級中學 ","無 ","雋永樓耐震能力補強工程委託設計監造服務 ","勞務","工程服務 ","877500","860000","112/11/02","112/11/20","高雄市－苓雅區 ","否","","整修工程、拆除工程、疏濬工程、結構補強工程 "]
["422","教育部 ","國立體育大學 ","無 ","二期學生宿舍外牆立面防水及鋁門窗整修工程委託規劃、設計暨監造技術服務 ","勞務","建築服務 ","1843050","1806189","112/10/17","112/11/28","桃園市－龜山區 ","否","","整修工程、拆除工程、疏濬工程、結構補強工程 "]
["423","教育部 ","國立暨南國際大學 ","無 ","汽車聯外道路改善工程工程委託設計監造技術服務 ","勞務","工程服務 ","1254244","1091192","112/11/24","112/11/30","南投縣－埔里 ","否","","非中央政府辦理新臺幣一億元以上之公共工程 "]
["424","教育部 ","國立基隆高級中學 ","文化部文化資產局 ","歷史建築基隆中學校官舍緊急加固工程委託設計監造 ","勞務","建築服務 ","400000","400000","112/11/24","112/11/28","基隆市－暖暖區 ","否","","非中央政府辦理新臺幣一億元以上之公共工程,非受中央政府補助比率逾工程建造經費百分之五十且補助經費達新臺幣一億元以上之個案公共工程 "]
["425","教育部 ","國立宜蘭高級中學 ","教育部國民及學前教育署 ","「職務宿舍耐震補強工程」委託設計監造服務 ","勞務","工程服務 ","324784","310000","112/10/18","112/11/24","宜蘭縣－宜蘭 ","否","","非中央政府辦理新臺幣一億元以上之公共工程,非受中央政府補助比率逾工程建造經費百分之五十且補助經費達新臺幣一億元以上之個案公共工程,整修工程、拆除工程、疏濬工程、結構補強工程 "]
["426","教育部 ","國立嘉義高級中學 ","教育部國民及學前教育署 ","嘉義高中圍牆修繕工程監造勞務採購案 ","勞務","工程服務 ","221574","210495","112/11/24","112/11/28","嘉義市－全區 ","否","","整修工程、拆除工程、疏濬工程、結構補強工程 "]
["427","教育部 ","國立中科實驗高級中學 ","無 ","112年游泳池整建工程委託規劃設計監造技術服務 ","勞務","工程服務 ","192420","192420","112/09/08","112/11/07","中部地區－全區 ","否","","非受中央政府補助比率逾工程建造經費百分之五十且補助經費達新臺幣一億元以上之個案公共工程,整修工程、拆除工程、疏濬工程、結構補強工程 "]
["428","教育部 ","國立花蓮高級農業職業學校 ","文化部、教育部國民及學前教育署 ","歷史建築花蓮高級農業職業學校舊校長宿舍修復工程規劃設計案(含因應計畫) ","勞務","建築服務 ","1700000","1680000","112/10/27","112/11/06","東部地區－全區 ","否","","整修工程、拆除工程、疏濬工程、結構補強工程 "]
["429","教育部 ","國立員林高級農工職業學校 ","彰化縣政府、內政部營建署 ","國立員林農工校園人行、車行通道暨周邊環境改善計畫委託規劃設 計監造服務案 ","勞務","工程服務 ","748937","740228","112/10/27","112/11/06","彰化縣－員林 ","否","","整修工程、拆除工程、疏濬工程、結構補強工程 "]
["430","教育部 ","國立北門高級農工職業學校 ","教育部國民及學前教育署 ","113高中排水系統改善計畫-日新大樓前庭校園排水系統工程委託規劃設計監造技術服務 ","勞務","工程服務 ","376346","365056","112/11/09","112/11/10","臺南市－佳里區 ","否","","整修工程、拆除工程、疏濬工程、結構補強工程 "]
["431","教育部 ","國立旗山高級農工職業學校 ","教育部國民及學前教育署 ","校園排水溝改善工程委託規劃設計及監造技術服務案 ","勞務","工程服務 ","271790","271790","112/11/16","112/11/23","高雄市－旗山區 ","否","","非受中央政府補助比率逾工程建造經費百分之五十且補助經費達新臺幣一億元以上之個案公共工程 "]
["432","教育部 ","國立蘇澳高級海事水產職業學校 ","教育部國民及學前教育署 ","校園排水系統工程委託規劃設計監造技術服務 ","勞務","工程服務 ","325621","303479","112/10/30","112/11/01","宜蘭縣－蘇澳 ","否","","整修工程、拆除工程、疏濬工程、結構補強工程 "]
["433","教育部 ","國立臺南高級海事水產職業學校 ","無 ","同平路通學步道基地環境排蓄水系統改善工程設計監造 ","勞務","工程服務 ","286087","286087","112/11/07","112/11/08","臺南市－安平區 ","否","","非受中央政府補助比率逾工程建造經費百分之五十且補助經費達新臺幣一億元以上之個案公共工程,整修工程、拆除工程、疏濬工程、結構補強工程 "]
["434","教育部 ","國立臺灣藝術大學 ","無 ","「音樂大樓北側通道鋪面更新工程」委託規劃設計及監造技術服務 ","勞務","工程服務 ","384232","384232","112/11/16","112/11/22","新北市－板橋區 ","否","","整修工程、拆除工程、疏濬工程、結構補強工程 "]
["435","教育部 ","國立臺東大學 ","衛生福利部 ","臺東校區日照中心室內裝修工程委託設計及監造服務 ","勞務","建築服務 ","2597057","2493175","112/11/29","112/11/30","臺東縣－臺東 ","否","","非中央政府辦理新臺幣一億元以上之公共工程 "]
["436","教育部 ","國立臺南藝術大學 ","無 ","圖資大樓及南北畫廊外牆馬賽克修繕工程委託規劃設計及監造技術服務-第一次契約變更 ","勞務","建築服務 ","249045","249045","112/11/10","112/11/13","臺南市－官田區 ","否","","整修工程、拆除工程、疏濬工程、結構補強工程 "]
["437","教育部 ","國立臺中教育大學 ","無 ","無障礙校園環境改善工程委託規劃、設計、監造技術服務 ","勞務","建築服務 ","1086000","1064280","112/10/26","112/11/07","臺中市－西區 ","否","","非中央政府辦理新臺幣一億元以上之公共工程,整修工程、拆除工程、疏濬工程、結構補強工程 "]
["438","教育部 ","國立臺中科技大學 ","無 ","113年度全校消防設備年度檢修申報及定期巡檢保養 ","勞務","工程服務 ","2781345","2550000","112/11/28","112/11/30","臺中市－北區 ","否","","非中央政府辦理新臺幣一億元以上之公共工程 "]
["439","教育部 ","國立屏東大學 ","無 ","113年度全校區冰水主機暨箱型空調機維護保養 ","勞務","綜合工程服務 ","1499400","1493400","112/11/29","112/11/30","屏東縣－屏東 ","否","","非中央政府辦理新臺幣一億元以上之公共工程,非受中央政府補助比率逾工程建造經費百分之五十且補助經費達新臺幣一億元以上之個案公共工程 "]
["440","教育部 ","國立陽明交通大學 ","無 ","博愛校區宿舍整體先期規劃及財務評估委託技術服務 ","勞務","建築服務 ","1200000","1195000","112/11/02","112/11/06","新竹市－東區 ","否","","整修工程、拆除工程、疏濬工程、結構補強工程 "]
["441","教育部 ","國立陽明交通大學 ","無 ","光復校區西區戶外球場地坪整修規劃設計監造案 ","勞務","建築服務 ","1300000","1288500","112/11/16","112/11/20","新竹市－全區 ","否","","整修工程、拆除工程、疏濬工程、結構補強工程 "]
["442","教育部 ","國立成功大學附屬臺南工業高級中等學校 ","無 ","B棟教學大樓排水系統整修工程委託設計監造服務 ","勞務","工程服務 ","338850","338850","112/11/21","112/11/21","臺南市－永康區 ","否","","非中央政府辦理新臺幣一億元以上之公共工程,非受中央政府補助比率逾工程建造經費百分之五十且補助經費達新臺幣一億元以上之個案公共工程,整修工程、拆除工程、疏濬工程、結構補強工程 "]
["443","教育部 ","國立新竹科學園區實驗高級中等學校 ","無 ","113年行政大樓暨中學部變電站設備改善工程委託規劃設計及監造技術服務案 ","勞務","工程服務 ","920000","920000","112/11/08","112/11/08","新竹市－全區 ","否","","整修工程、拆除工程、疏濬工程、結構補強工程 "]
["444","教育部 ","國立新竹科學園區實驗高級中等學校 ","無 ","113年全校監視及電話機系統汰換委託規劃設計及監造技術服務 ","勞務","工程服務 ","1480000","1480000","112/11/15","112/11/15","新竹市－全區 ","否","","整修工程、拆除工程、疏濬工程、結構補強工程 "]
["445","連江縣政府 ","連江縣交通旅遊局 ","交通部公路總局 ","馬祖介壽公共立體停車場統包工程委託專案管理(含監造)技術服務 ","勞務","綜合工程服務 ","2488127","2480000","112/11/16","112/11/23","連江縣－南竿 ","否","","規劃取得綠建築標章之建築工程 "]
["446","勞動部 ","勞動部勞動力發展署北基宜花金馬分署 ","無 ","羅東就業中心辦公廳舍室內裝修工程委託規劃設計監造技術服務案 ","勞務","工程服務 ","892762","887405","112/11/09","112/11/09","宜蘭縣－羅東 ","否","","整修工程、拆除工程、疏濬工程、結構補強工程 "]
["447","勞動部 ","勞動部勞動力發展署桃竹苗分署 ","無 ","110年度幼獅職業訓練場整修工程委託規劃設計監造技術服務第2次變更設計 ","勞務","建築服務 ","1129921","1107323","112/11/02","112/11/08","桃園市－楊梅區 ","否","","整修工程、拆除工程、疏濬工程、結構補強工程 "]
["448","勞動部 ","勞動部勞動力發展署桃竹苗分署 ","無 ","113年度本分署訓練四館及訓練五館外牆整修工程委託規劃設計監造案 ","勞務","工程服務 ","1012331","992084","112/11/15","112/11/16","桃園市－楊梅區 ","否","","整修工程、拆除工程、疏濬工程、結構補強工程 "]
["449","勞動部 ","勞動部勞動力發展署中彰投分署 ","無 ","113年汽車工場門窗及實習區空間改善工程委託規劃、設計、監造案 ","勞務","建築服務 ","1945000","1880000","112/11/07","112/11/09","臺中市－西屯區 ","否","","非中央政府辦理新臺幣一億元以上之公共工程,非受中央政府補助比率逾工程建造經費百分之五十且補助經費達新臺幣一億元以上之個案公共工程 "]
["450","勞動部 ","勞動部勞動力發展署雲嘉南分署 ","無 ","113年職業訓練場整修工程委託設計監造技術服務 ","勞務","建築服務 ","3095928","3095928","112/11/24","112/11/27","臺南市－官田區 ","否","","非中央政府辦理新臺幣一億元以上之公共工程,非受中央政府補助比率逾工程建造經費百分之五十且補助經費達新臺幣一億元以上之個案公共工程,整修工程、拆除工程、疏濬工程、結構補強工程 "]
["451","雲林縣政府 ","雲林縣政府 ","內政部國土管理署 ","研擬雲林縣國土計畫因地制宜土地使用管制原則案 ","勞務","都市計劃及景觀建築服務 ","3000000","2975000","112/11/24","112/11/28","雲林縣－全區 ","否","","非受中央政府補助比率逾工程建造經費百分之五十且補助經費達新臺幣一億元以上之個案公共工程 "]
["452","雲林縣政府 ","雲林縣政府 ","內政部營建署 ","雲林縣虎尾鎮新舊城區縫合計畫(二期)設計競賽 ","勞務","綜合工程服務 ","19500000","19000000","112/10/02","112/11/08","雲林縣－虎尾 ","否","","非受中央政府補助比率逾工程建造經費百分之五十且補助經費達新臺幣一億元以上之個案公共工程 "]
["453","雲林縣政府 ","雲林縣政府 ","無 ","「虎尾高鐵運動園區(田徑場+暖身場)規劃設計監造勞務採購案」變更契約 ","勞務","建築服務 ","4991000","4900000","112/11/14","112/11/20","雲林縣－虎尾 ","否","","非受中央政府補助比率逾工程建造經費百分之五十且補助經費達新臺幣一億元以上之個案公共工程,規劃取得綠建築標章之建築工程 "]
["454","雲林縣政府 ","雲林縣政府 ","無 ","虎尾高鐵運動園區(田徑場及暖身場)興建工程 ","工程","運動及娛樂工程 ","1420618411","1420599999","112/11/07","112/11/09","雲林縣－虎尾 ","已依規定納入辦理節能減碳檢核 ","計畫提報核定階段納入辦理節能減碳檢核 ",""]
["455","雲林縣政府 ","雲林縣政府 ","無 ","113年度雲林縣一般小型零星工程委託規劃設計監造開口契約 ","勞務","工程服務 ","5966640","5966640","112/11/21","112/11/22","雲林縣－全區 ","否","","非受中央政府補助比率逾工程建造經費百分之五十且補助經費達新臺幣一億元以上之個案公共工程 "]
["456","雲林縣政府 ","雲林縣政府 ","無 ","口湖鄉下崙福德宮廁所改善工程委託設計監造 ","勞務","工程服務 ","472000","470000","112/10/24","112/11/14","雲林縣－口湖 ","否","","非中央政府辦理新臺幣一億元以上之公共工程 "]
["457","雲林縣政府 ","雲林縣政府 ","無 ","歷史建築二崙分駐所眷舍修復工程委託監造(含因應計畫) ","勞務","建築服務 ","1300000","1250000","112/10/06","112/11/03","雲林縣－二崙 ","否","","非中央政府辦理新臺幣一億元以上之公共工程,整修工程、拆除工程、疏濬工程、結構補強工程 "]
["458","雲林縣政府 ","雲林縣政府 ","無 ","歷史建築二崙分駐所眷舍修復工程委託工作報告書 ","勞務","工程服務 ","1200000","1190000","112/10/06","112/11/03","雲林縣－二崙 ","否","","非中央政府辦理新臺幣一億元以上之公共工程,整修工程、拆除工程、疏濬工程、結構補強工程 "]
["459","雲林縣政府 ","雲林縣政府 ","無 ","雲林縣虎尾產業園區設置委託技術服務案 ","勞務","工程服務 ","40000000","40000000","112/11/15","112/11/17","雲林縣－虎尾 ","否","","非中央政府辦理新臺幣一億元以上之公共工程,非受中央政府補助比率逾工程建造經費百分之五十且補助經費達新臺幣一億元以上之個案公共工程 "]
["460","雲林縣政府 ","雲林縣政府 ","經濟部水利署 ","牛挑灣溪排水牛挑灣橋上游第一期治理工程 ","工程","其他土木工程 ","181663000","171900000","112/11/01","112/11/09","雲林縣－水林,雲林縣－四湖 ","否","","12/25電洽釐清本案為111年8月前核定案件，毋須辦理節能減碳檢核"]
["461","雲林縣政府 ","雲林縣警察局 ","雲林縣政府 ","雲林縣警察局虎尾分局高鐵派出辦公廳舍可行性評估及申請多目標許可技術服務案 ","勞務","建築服務 ","700000","690200","112/11/23","112/11/27","雲林縣－全區 ","否","","非中央政府辦理新臺幣一億元以上之公共工程 "]
["462","雲林縣政府 ","雲林縣立體育場 ","教育部體育署 ","雲林縣立斗南田徑場及西螺鎮羽球館耐震補強工程規劃設計監造  ","勞務","建築服務 ","2216200","2105390","112/11/07","112/11/13","雲林縣－全區 ","否","","非中央政府辦理新臺幣一億元以上之公共工程,整修工程、拆除工程、疏濬工程、結構補強工程 "]
["463","雲林縣政府 ","雲林縣斗南鎮公所 ","無 ","112年度斗南鎮田頭等里道路及排水設施改善工程委託設計監造技術服務 ","勞務","工程服務 ","448868","418944","112/11/01","112/11/09","雲林縣－斗南 ","否","","非受中央政府補助比率逾工程建造經費百分之五十且補助經費達新臺幣一億元以上之個案公共工程 "]
["464","雲林縣政府 ","雲林縣虎尾鎮公所 ","行政院環境保護署 ","雲林縣虎尾鎮清潔隊備勤室耐震補強計畫工程委託技術服務 ","勞務","工程服務 ","221295","210000","112/10/26","112/11/10","雲林縣－虎尾 ","否","","整修工程、拆除工程、疏濬工程、結構補強工程 "]
["465","雲林縣政府 ","雲林縣虎尾鎮公所 ","雲林縣政府 ","虎尾鎮安溪里路面改善工程委託技術服務 ","勞務","工程服務 ","421000","407000","112/10/31","112/11/14","雲林縣－虎尾 ","否","","整修工程、拆除工程、疏濬工程、結構補強工程 "]
["466","雲林縣政府 ","雲林縣西螺鎮公所 ","內政部營建署 ","「雲林縣西螺鎮西螺農工周邊人行道改善工程」設計監造 ","勞務","工程服務 ","1384560","1204567","112/10/31","112/11/01","雲林縣－西螺 ","否","","整修工程、拆除工程、疏濬工程、結構補強工程 "]
["467","雲林縣政府 ","雲林縣土庫鎮公所 ","無 ","土庫鎮順天納骨堂4及5樓納骨櫃增設工程委託規劃設計監造技術服務 ","勞務","工程服務 ","1457937","1414198","112/11/09","112/11/21","雲林縣－土庫 ","否","","整修工程、拆除工程、疏濬工程、結構補強工程 "]
["468","雲林縣政府 ","雲林縣土庫鎮公所 ","雲林縣政府 ","「土庫鎮多功能籃球場整修工程」委託規劃設計監造技術服務 ","勞務","工程服務 ","225335","205055","112/10/12","112/11/01","雲林縣－土庫 ","否","","非受中央政府補助比率逾工程建造經費百分之五十且補助經費達新臺幣一億元以上之個案公共工程 "]
["469","雲林縣政府 ","雲林縣北港鎮公所 ","教育部、雲林縣政府 ","雲林縣北港鎮立幼兒園新建工程 ","工程","教育用建築工程 ","141923146","141500000","112/10/13","112/11/01","雲林縣－北港 ","否","","規劃取得綠建築標章之建築工程 "]
["470","雲林縣政府 ","雲林縣北港鎮公所 ","雲林縣政府 ","「北港鎮圓環改善工程」委託規劃設計監造 ","勞務","工程服務 ","1318700","1305513","112/11/09","112/11/13","雲林縣－北港 ","否","","整修工程、拆除工程、疏濬工程、結構補強工程 "]
["471","雲林縣政府 ","雲林縣古坑鄉公所 ","行政院環境保護署 ","古坑鄉廢棄物資源回收貯存場暨細分類廠新建工程委託技術服務工作 ","勞務","建築服務 ","1976097","1936575","112/10/04","112/11/01","雲林縣－古坑 ","否","","非中央政府辦理新臺幣一億元以上之公共工程 "]
["472","雲林縣政府 ","雲林縣古坑鄉公所 ","雲林縣政府 ","古坑鄉新生重劃區公共設施改善工程委託設計監造工作 ","勞務","工程服務 ","463655","431199","112/10/26","112/11/24","雲林縣－古坑 ","否","","非中央政府辦理新臺幣一億元以上之公共工程 "]
["473","雲林縣政府 ","雲林縣古坑鄉公所 ","雲林縣政府 ","古坑鄉華山村環狀步道串聯改善工程規劃設計委託技術服務 ","勞務","工程服務 ","2522000","2450000","112/11/03","112/11/27","雲林縣－古坑 ","否","","非中央政府辦理新臺幣一億元以上之公共工程 "]
["474","雲林縣政府 ","雲林縣古坑鄉公所 ","經濟部 ","古坑鄉東和公有零售市場(右棟)建築物耐震能力補強工程委託設計監造工作 ","勞務","建築服務 ","299238","290261","112/10/31","112/11/27","雲林縣－古坑 ","否","","非中央政府辦理新臺幣一億元以上之公共工程 "]
["475","雲林縣政府 ","雲林縣古坑鄉公所 ","農業部農村發展及水土保持署 ","華山小天梯社區農路改善工程委託設計監造工作 ","勞務","工程服務 ","570028","541527","112/10/06","112/11/06","雲林縣－古坑 ","否","","整修工程、拆除工程、疏濬工程、結構補強工程 "]
["476","雲林縣政府 ","雲林縣古坑鄉公所 ","嘉義縣政府 ","112年度樟湖村活動中心屋頂修繕工程委託設計監造工作 ","勞務","工程服務 ","162511","154385","112/10/06","112/11/03","雲林縣－古坑 ","否","","整修工程、拆除工程、疏濬工程、結構補強工程 "]
["477","雲林縣政府 ","雲林縣二崙鄉公所 ","雲林縣政府 ","二崙鄉大庄村酒姑路道路改善工程設計監造 ","勞務","工程服務 ","348600","195216","112/10/31","112/11/22","雲林縣－二崙 ","否","","非中央政府辦理新臺幣一億元以上之公共工程,非受中央政府補助比率逾工程建造經費百分之五十且補助經費達新臺幣一億元以上之個案公共工程 "]
["478","雲林縣政府 ","雲林縣麥寮鄉公所 ","無 ","麥寮鄉公園景觀設施改善工程委託規劃設計及監造（開口契約） ","勞務","工程服務 ","1256400","1231272","112/11/14","112/11/17","雲林縣－麥寮 ","否","","非中央政府辦理新臺幣一億元以上之公共工程,非受中央政府補助比率逾工程建造經費百分之五十且補助經費達新臺幣一億元以上之個案公共工程,整修工程、拆除工程、疏濬工程、結構補強工程 "]
["479","雲林縣政府 ","雲林縣東勢鄉公所 ","無 ","112年度東勢鄉道路路面及公共設施改善及維護工程(預估) 委託設計及監造技術服務 ","勞務","工程服務 ","537171","329017","112/11/09","112/11/10","雲林縣－東勢 ","否","","非中央政府辦理新臺幣一億元以上之公共工程,非受中央政府補助比率逾工程建造經費百分之五十且補助經費達新臺幣一億元以上之個案公共工程 "]
["480","雲林縣政府 ","雲林縣臺西鄉公所 ","無 ","113年度臺西鄉道路及排水溝等改善工程(開口契約)委託設計監造技術服務案 ","勞務","工程服務 ","580556","580556","112/11/21","112/11/22","雲林縣－全區 ","否","","非受中央政府補助比率逾工程建造經費百分之五十且補助經費達新臺幣一億元以上之個案公共工程 "]
["481","雲林縣政府 ","雲林縣臺西鄉公所 ","雲林縣政府 ","臺西鄉台興段325地號旁排水復建工程等二件委託設計監造技術服務案 ","勞務","工程服務 ","972778","904683","112/11/14","112/11/15","雲林縣－臺西 ","否","","災後原地復建 "]
["482","雲林縣政府 ","雲林縣臺西鄉公所 ","雲林縣政府 ","臺西鄉新興段277-131地號旁護岸復建工程等二件委託設計監造技術服務案 ","勞務","工程服務 ","1223696","1174748","112/11/14","112/11/15","雲林縣－臺西 ","否","","災後原地復建 "]
["483","雲林縣政府 ","雲林縣元長鄉公所 ","內政部營建署 ","雲林縣元長鄉鹿南、卓運、後湖、五塊等四村聯外道路改善工程委託設計及監造 ","勞務","工程服務 ","765478","736776","112/11/23","112/11/24","雲林縣－元長 ","否","","整修工程、拆除工程、疏濬工程、結構補強工程 "]
["484","雲林縣政府 ","雲林縣元長鄉公所 ","內政部營建署 ","雲林縣元長鄉長北、合和、子茂等三村聯外道路改善工程委託設計及監造 ","勞務","工程服務 ","676000","659100","112/11/23","112/11/24","雲林縣－元長 ","否","","整修工程、拆除工程、疏濬工程、結構補強工程 "]
["485","雲林縣政府 ","雲林縣元長鄉公所 ","雲林縣政府 ","元長鄉鹿北鹿南安全欄杆等設施改善工程委託設計及監造 ","勞務","工程服務 ","284130","270600","112/11/21","112/11/22","雲林縣－元長 ","否","","非受中央政府補助比率逾工程建造經費百分之五十且補助經費達新臺幣一億元以上之個案公共工程 "]
["486","雲林縣政府 ","雲林縣四湖鄉公所 ","雲林縣政府 ","老人文康活動中心周邊環境改善工程委託規畫設計監造服務 ","勞務","工程服務 ","164087","159985","112/10/26","112/11/03","雲林縣－四湖 ","否","","整修工程、拆除工程、疏濬工程、結構補強工程 "]
["487","雲林縣政府 ","雲林縣立水林國民中學 ","雲林縣政府 ","112年後棟大樓外牆磁磚修繕委託規劃設計監造勞務採購 ","勞務","工程服務 ","950000","950000","112/11/13","112/11/21","南部地區－全區 ","否","","整修工程、拆除工程、疏濬工程、結構補強工程 "]
["488","雲林縣政府 ","雲林縣立大埤國民中學 ","雲林縣政府 ","111年度大埤國中老舊校舍拆除重建工程 ","工程","教育用建築工程 ","241880000","241800000","112/09/25","112/11/20","中部地區－全區 ","已依規定納入辦理節能減碳檢核 ","計畫提報核定階段納入辦理節能減碳檢核;規劃設計階段納入辦理節能減碳檢核 ",""]
["489","雲林縣政府 ","雲林縣立樟湖生態國民中小學 ","教育部國民及學前教育署 ","「樟湖生態國中小教職員工宿舍擋土牆災後復建工程」委託設計監造 ","勞務","建築服務 ","1272805","1200000","112/10/27","112/11/01","雲林縣－古坑 ","否","","非中央政府辦理新臺幣一億元以上之公共工程,災後緊急處理、搶修、搶險 "]
["490","雲林縣政府 ","雲林縣立古坑國民中小學 ","雲林縣政府 ","112年度國中部長榮大樓西側及國小部A樓老舊廁所整修設計監造技術服務採購案 ","勞務","建築服務 ","399129","380000","112/11/03","112/11/06","雲林縣－古坑 ","否","","非中央政府辦理新臺幣一億元以上之公共工程,整修工程、拆除工程、疏濬工程、結構補強工程 "]
["491","雲林縣政府 ","雲林縣斗南鎮大東國民小學 ","雲林縣政府 ","大東國小北棟廁所及南棟廁所整修工程委託設計與監造服務案 ","勞務","工程服務 ","177406","177406","112/10/31","112/11/07","中部地區－全區 ","否","","非中央政府辦理新臺幣一億元以上之公共工程,整修工程、拆除工程、疏濬工程、結構補強工程 "]
["492","雲林縣政府 ","雲林縣斗南鎮重光國民小學 ","無 ","雲林縣斗南鎮重光國小綜合球場整建工程委託設計監造技術服務 ","勞務","工程服務 ","169093","169093","112/11/13","112/11/14","雲林縣－全區 ","否","","非中央政府辦理新臺幣一億元以上之公共工程,整修工程、拆除工程、疏濬工程、結構補強工程 "]
["493","雲林縣政府 ","雲林縣大埤鄉大埤國民小學 ","雲林縣政府 ","108年度大埤國小老舊校舍拆除重建工程委託技術服務第二次契約變更(規劃設計增加) ","勞務","建築服務 ","709102","700000","112/11/10","112/11/13","雲林縣－大埤 ","否","","整修工程、拆除工程、疏濬工程、結構補強工程 "]
["494","雲林縣政府 ","雲林縣大埤鄉大埤國民小學 ","雲林縣政府 ","110年度大埤國小老舊校舍拆除重建工程委託監造服務第一次契約變更 ","勞務","工程服務 ","617212","500411","112/11/10","112/11/13","雲林縣－大埤 ","否","","整修工程、拆除工程、疏濬工程、結構補強工程 "]
["495","雲林縣政府 ","雲林縣虎尾鎮立仁國民小學 ","無 ","立仁國小東棟教室廁所整修工程委託規劃設計監造技術服務 ","勞務","建築服務 ","228146","228146","112/11/13","112/11/17","雲林縣－虎尾 ","否","","整修工程、拆除工程、疏濬工程、結構補強工程 "]
["496","雲林縣政府 ","雲林縣臺西鄉臺西國民小學 ","雲林縣政府 ","臺西國小112年老舊廁所整修工程委託設計監造服務 ","勞務","建築服務 ","257086","257000","112/11/21","112/11/22","雲林縣－全區 ","否","","非中央政府辦理新臺幣一億元以上之公共工程,非受中央政府補助比率逾工程建造經費百分之五十且補助經費達新臺幣一億元以上之個案公共工程 "]
["497","雲林縣政府 ","雲林縣北港鎮北辰國民小學 ","教育部國民及學前教育署、雲林縣政府 ","北辰國小活動中心拆除重建工程 ","工程","教育用建築工程 ","211046904","210801361","112/11/15","112/11/22","雲林縣－北港 ","已依規定納入辦理節能減碳檢核 ","規劃設計階段納入辦理節能減碳檢核 ",""]
["498","新北市政府 ","新北市立金山高級中學 ","新北市政府教育局 ","國中部A棟及國中部C棟校舍補領使用執照勞務採購案 ","勞務","工程服務 ","743920","743920","112/11/17","112/11/21","新北市－金山區 ","否","","非中央政府辦理新臺幣一億元以上之公共工程,非受中央政府補助比率逾工程建造經費百分之五十且補助經費達新臺幣一億元以上之個案公共工程 "]
["499","新北市政府 ","新北市立清水高級中學 ","教育部國民及學前教育署 ","113學年度新設非營利幼兒園建築物裝修工程委託技術服務 ","勞務","工程服務 ","674768","674768","112/11/10","112/11/14","新北市－全區 ","否","","整修工程、拆除工程、疏濬工程、結構補強工程 "]
["500","新北市政府 ","新北市立海山高級中學 ","教育部體育署 ","新北市立海山高級中學112年度游泳池整建維修工程委託技術服務第1次契約變更 ","勞務","工程服務 ","173329","173329","112/11/27","112/11/30","北部地區－全區 ","否","","整修工程、拆除工程、疏濬工程、結構補強工程 "]
["501","新北市政府 ","新北市立安康高級中學 ","新北市政府教育局 ","污水下水道用戶接管工程委託規劃設計（監造為後續擴充）案第1次契約變更 ","勞務","工程服務 ","79390","79390","112/10/20","112/11/16","新北市－新店區 ","否","","非中央政府辦理新臺幣一億元以上之公共工程,非受中央政府補助比率逾工程建造經費百分之五十且補助經費達新臺幣一億元以上之個案公共工程 "]
["502","新北市政府 ","新北市立鶯歌高級工商職業學校 ","教育部體育署 ","籃球場整修工程委託技術服務採購案 ","勞務","工程服務 ","290177","289000","112/10/05","112/11/01","新北市－鶯歌區 ","否","","非中央政府辦理新臺幣一億元以上之公共工程,非受中央政府補助比率逾工程建造經費百分之五十且補助經費達新臺幣一億元以上之個案公共工程,整修工程、拆除工程、疏濬工程、結構補強工程 "]
["503","新北市政府 ","新北市立淡水高級商工職業學校 ","新北市政府教育局 ","視聽教室設備維護修繕 ","勞務","工程服務 ","874200","851000","112/11/07","112/11/08","新北市－淡水區 ","否","","整修工程、拆除工程、疏濬工程、結構補強工程 "]
["504","新北市政府 ","新北市立蘆洲國民中學 ","新北市政府教育局 ","新北市立蘆洲國民中學附設幼兒園多功能遊戲場-中庭地坪改善工程委託技術服務採購案 ","勞務","工程服務 ","440350","440350","112/11/08","112/11/10","新北市－蘆洲區 ","否","","非中央政府辦理新臺幣一億元以上之公共工程 "]
["505","新北市政府 ","新北市立中正國民中學 ","新北市政府教育局 ","112年度新北市資優教育資源中心辦公室建置工程委託技術服務採購案 ","勞務","建築服務 ","188045","188045","112/11/16","112/11/20","新北市－土城區 ","否","","非中央政府辦理新臺幣一億元以上之公共工程,整修工程、拆除工程、疏濬工程、結構補強工程 "]
["506","新北市政府 ","新北市立中正國民中學 ","新北市政府教育局 ","112年充實設施設備計畫中央走道高壓地磚破損整修工程委託技術服務 ","勞務","工程服務 ","146435","146435","112/11/15","112/11/20","新北市－土城區 ","否","","非中央政府辦理新臺幣一億元以上之公共工程,整修工程、拆除工程、疏濬工程、結構補強工程 "]
["507","新北市政府 ","新北市立正德國民中學 ","新北市政府教育局 ","112年度新北市職業試探暨體驗教育中心-正德賢孝中心後續優化計畫委託設計及監造技術服務 ","勞務","工程服務 ","207982","207982","112/10/27","112/11/23","新北市－淡水區 ","否","","整修工程、拆除工程、疏濬工程、結構補強工程 "]
["508","新北市政府 ","新北市立大觀國民中學 ","無 ","113年度校園保全安全防護服務 ","勞務","工程服務 ","168000","166000","112/11/23","112/11/28","新北市－板橋區 ","否","","非中央政府辦理新臺幣一億元以上之公共工程 "]
["509","新北市政府 ","新北市立鷺江國民中學 ","教育部 ","老舊廁所整修工程委託設計規劃監造技術服務採購案 ","勞務","建築服務 ","798000","689953","112/11/13","112/11/14","新北市－蘆洲區 ","否","","非中央政府辦理新臺幣一億元以上之公共工程 "]
["510","新北市政府 ","新北市永和區永平國民小學 ","新北市政府教育局 ","新建簡易練習球場及練習跑道工程委託技術服務 ","勞務","工程服務 ","290454","290454","112/11/27","112/11/29","新北市－永和區 ","否","","非中央政府辦理新臺幣一億元以上之公共工程,非受中央政府補助比率逾工程建造經費百分之五十且補助經費達新臺幣一億元以上之個案公共工程 "]
["511","新北市政府 ","新北市三重區五華國民小學 ","新北市政府教育局、教育部國民及學前教育署 ","新北市三重區五華國民小學112年度三信門校園地坪改善工程委託技術服務採購 ","勞務","工程服務 ","237376","237376","112/11/01","112/11/02","新北市－三重區 ","否","","整修工程、拆除工程、疏濬工程、結構補強工程 "]
["512","新北市政府 ","新北市政府採購處 ","內政部營建署 ","新北市樹林地區污水下水道系統第二期第十七標工程 ","工程","水管及排水設施鋪設工程 ","199973000","197969888","112/11/07","112/11/24","新北市－樹林區 ","已依規定納入辦理節能減碳檢核 ","計畫提報核定階段納入辦理節能減碳檢核;規劃設計階段納入辦理節能減碳檢核 ",""]
["513","新北市政府 ","新北市政府採購處 ","交通部公路總局 ","三重玫瑰立體停車場多目標新建工程 ","工程","其他用途建築工程 ","850000000","850000000","112/10/25","112/11/14","新北市－三重區 ","否","","規劃取得綠建築標章之建築工程 "]
["514","新北市政府 ","新北市政府採購處 ","無 ","捷運汐止東湖線要徑工程 ","工程","快速道路(不含高架快速道路), 街道, 馬路, 鐵路及機場跑道 ","395262475","395260000","112/11/15","112/11/27","新北市－汐止區 ","否","","整修工程、拆除工程、疏濬工程、結構補強工程 "]
["515","新北市政府 ","新北市政府養護工程處 ","無 ","112年新北市橋梁、隧道巡查、搶修及改善工程(A區)委託技術服務案-第1次契約變更  ","勞務","綜合工程服務 ","1606324","1606324","112/11/15","112/11/16","新北市－全區 ","否","","整修工程、拆除工程、疏濬工程、結構補強工程 "]
["516","新北市政府 ","新北市政府養護工程處 ","無 ","112年新北市橋梁、隧道委託安檢、耐震評估及設計服務(A區)  -第1次契約變更 ","勞務","綜合工程服務 ","6200167","5950000","112/11/03","112/11/14","新北市－全區 ","否","","整修工程、拆除工程、疏濬工程、結構補強工程 "]
["517","新北市政府 ","新北市政府養護工程處 ","無 ","112年新北市橋梁、隧道委託安檢、耐震評估及設計服務(B區) -第1次契約變更 ","勞務","綜合工程服務 ","4880715","4650000","112/11/03","112/11/14","新北市－全區 ","否","","整修工程、拆除工程、疏濬工程、結構補強工程 "]
["518","新北市政府 ","新北市政府家庭暴力暨性侵害防治中心 ","無 ","新北市家防中心第三辦公室第二期室內裝修工程委託技術服務 ","勞務","建築服務 ","342647","342647","112/11/23","112/11/24","新北市－板橋區 ","否","","非受中央政府補助比率逾工程建造經費百分之五十且補助經費達新臺幣一億元以上之個案公共工程 "]
["519","新北市政府 ","新北市政府經濟發展局 ","內政部 ","新北市產業部門計劃-訂定地方產業發展策略計畫委託專業服務案 ","勞務","都市計劃及景觀建築服務 ","2050000","2048000","112/11/08","112/11/10","新北市－全區 ","否","","非中央政府辦理新臺幣一億元以上之公共工程,非受中央政府補助比率逾工程建造經費百分之五十且補助經費達新臺幣一億元以上之個案公共工程 "]
["520","新北市政府 ","新北市政府水利局 ","內政部國土管理署下水道工程分署 ","新北市鶯歌區中正二路與八德路（正義平交道）排水改善工程委託技術服務第1次契約變更 ","勞務","綜合工程服務 ","774060","774060","112/10/13","112/11/17","新北市－鶯歌區 ","已依規定納入辦理節能減碳檢核 ","規劃設計階段納入辦理節能減碳檢核 ",""]
["521","新北市政府 ","新北市政府水利局 ","無 ","新北市新店區安和路2段排水改善及中和區壽德公園滯洪池工程委託技術服務第1次契約變更 ","勞務","綜合工程服務 ","272481","272481","112/09/01","112/11/14","新北市－新店區,新北市－中和區 ","否","","非中央政府辦理新臺幣一億元以上之公共工程 "]
["522","新北市政府 ","新北市政府高灘地工程管理處 ","無 ","108暨109年度新北市高灘地園區河岸景觀（一區）工作評估、規劃及設計委託技術服務第2次變更契約採購案 ","勞務","工程服務 ","1372557","1372557","112/10/30","112/11/13","新北市－全區 ","否","","非中央政府辦理新臺幣一億元以上之公共工程 "]
["523","新北市政府 ","新北市政府城鄉發展局 ","無 ","「新北市中正橋派出所及青年社會住宅工程委託專案管理技術服務」契約變更（第2次） ","勞務","建築服務 ","676061","676061","112/11/01","112/11/10","北部地區－全區 ","否","","規劃取得綠建築標章之建築工程 "]
["524","新北市政府 ","新北市政府交通局 ","無 ","112年度新北市交通號誌及路側設備維護案暨緊急搶修工程委託監造服務(後續擴充) ","勞務","工程服務 ","390170","390170","112/08/16","112/11/15","新北市－全區 ","否","","非中央政府辦理新臺幣一億元以上之公共工程 "]
["525","新北市政府 ","新北市政府觀光旅遊局 ","文化部文化資產局 ","「新北市歷史建築瑞芳瑞三礦業選煤廠修復工程監造暨工作報告書」第1次契約變更 ","勞務","建築服務 ","552191","550000","112/10/19","112/11/06","新北市－瑞芳區 ","否","","整修工程、拆除工程、疏濬工程、結構補強工程 "]
["526","新北市政府 ","新北市政府消防局 ","內政部消防署 ","第一大隊、海山中隊暨莒光分隊廳舍興建工程 ","工程","其他用途建築工程 ","463827086","463827000","112/10/17","112/11/10","新北市－全區 ","否","","非受中央政府補助比率逾工程建造經費百分之五十且補助經費達新臺幣一億元以上之個案公共工程 "]
["527","新北市政府 ","新北市政府捷運工程局 ","無 ","三鶯線捷運系統計畫基本設計及專案管理顧問委託技術服務案第7次契約變更案(第二次工期展延(EOT2)專管顧問增加服務費用案) ","勞務","綜合工程服務 ","73990800","73500000","112/11/24","112/11/29","新北市－土城區,新北市－三峽區,新北市－鶯歌區 ","否","","12/26電洽釐清本案為111年8月前核定案件，毋須辦理節能減碳檢核"]
["528","新北市政府 ","新北市板橋區公所 ","無 ","111年下半年至112年度新北市板橋區改善公廁暨提升優質公廁工程委託設計監造技術服務第1次契約變更 ","勞務","工程服務 ","16716","16716","112/11/20","112/11/27","新北市－板橋區 ","否","","非受中央政府補助比率逾工程建造經費百分之五十且補助經費達新臺幣一億元以上之個案公共工程 "]
["529","新北市政府 ","新北市板橋區公所 ","無 ","新北市板橋區112年市民活動中心內部及周邊相關設施零星整修工程委託設計監造技術服務第一次契約變更 ","勞務","工程服務 ","350000","350000","112/11/03","112/11/10","新北市－板橋區 ","否","","非受中央政府補助比率逾工程建造經費百分之五十且補助經費達新臺幣一億元以上之個案公共工程 "]
["530","新北市政府 ","新北市板橋區公所 ","無 ","新北市板橋區重慶公園特色遊戲場工程委託規劃設計及後續擴充（監造）技術服務 ","勞務","工程服務 ","636201","636201","112/11/29","112/11/30","新北市－板橋區 ","否","","非受中央政府補助比率逾工程建造經費百分之五十且補助經費達新臺幣一億元以上之個案公共工程 "]
["531","新北市政府 ","新北市板橋區公所 ","無 ","新北市板橋區百壽介壽市民活動中心耐震補強工程委託設計監造技術服務 ","勞務","工程服務 ","139293","130000","112/11/10","112/11/14","新北市－板橋區 ","否","","非受中央政府補助比率逾工程建造經費百分之五十且補助經費達新臺幣一億元以上之個案公共工程 "]
["532","新北市政府 ","新北市板橋區公所 ","無 ","新北市板橋區五權公園市民活動中心耐震補強工程委託規劃設計及後續擴充（監造）技術服務 ","勞務","建築服務 ","1094100","1094100","112/10/31","112/11/02","新北市－板橋區 ","否","","非中央政府辦理新臺幣一億元以上之公共工程 "]
["533","新北市政府 ","新北市中和區公所 ","無 ","中和區20處市民活動中心建築合規可行性評估委託技術服務 ","勞務","建築服務 ","480000","465000","112/11/16","112/11/20","新北市－中和區 ","否","","非中央政府辦理新臺幣一億元以上之公共工程,非受中央政府補助比率逾工程建造經費百分之五十且補助經費達新臺幣一億元以上之個案公共工程 "]
["534","新北市政府 ","新北市中和區公所 ","新北市政府民政局 ","中和區頂南等5處市民活動中心公共安全改善工程委託設計監造及簡易室內裝修許可服務 ","勞務","建築服務 ","800000","800000","112/11/01","112/11/02","新北市－中和區 ","否","","非中央政府辦理新臺幣一億元以上之公共工程,非受中央政府補助比率逾工程建造經費百分之五十且補助經費達新臺幣一億元以上之個案公共工程 "]
["535","新北市政府 ","新北市新莊區公所 ","無 ","新北市新莊區公所112年度公共工程(含土木、水利等公共設施)委託技術服務(開口合約)（A區）第1次契約變更後續擴充 ","勞務","工程服務 ","4000000","4000000","112/10/13","112/11/24","新北市－新莊區 ","否","","非受中央政府補助比率逾工程建造經費百分之五十且補助經費達新臺幣一億元以上之個案公共工程 "]
["536","新北市政府 ","新北市新莊區公所 ","無 ","新北市新莊區公所112年度公共工程(含土木、水利等公共設施)委託技術服務(開口合約)（B區）第1次契約變更後續擴充 ","勞務","工程服務 ","4000000","4000000","112/10/24","112/11/27","新北市－新莊區 ","否","","非中央政府辦理新臺幣一億元以上之公共工程 "]
["537","新北市政府 ","新北市新莊區公所 ","無 ","【新北市新莊區公所112年度綜合公共工程委託技術服務(開口合約)】第1次契約變更 ","勞務","工程服務 ","2000000","2000000","112/10/26","112/11/16","新北市－新莊區 ","否","","非受中央政府補助比率逾工程建造經費百分之五十且補助經費達新臺幣一億元以上之個案公共工程 "]
["538","新北市政府 ","新北市鶯歌區公所 ","無 ","新北市鶯歌區古鐘樓公園無縫地墊改善更新工程委託技術(設計、監造)服務案 ","勞務","工程服務 ","505541","505541","112/11/22","112/11/24","新北市－鶯歌區 ","否","","非受中央政府補助比率逾工程建造經費百分之五十且補助經費達新臺幣一億元以上之個案公共工程 "]
["539","新北市政府 ","新北市鶯歌區公所 ","新北市政府民政局 ","新北市鶯歌區尖山市民活動中心門窗更新及油漆工程暨永昌市民活動中心屋頂施作熱熔式防水毯工程委託設計監造案 ","勞務","工程服務 ","225604","225604","112/11/08","112/11/10","新北市－鶯歌區 ","否","","非中央政府辦理新臺幣一億元以上之公共工程,非受中央政府補助比率逾工程建造經費百分之五十且補助經費達新臺幣一億元以上之個案公共工程 "]
["540","新北市政府 ","新北市三峽區公所 ","無 ","112年度三峽區道路路面改善工程(開口合約)委託監造技術服務 -第1次後續擴充 ","勞務","工程服務 ","188100","188100","112/11/21","112/11/22","新北市－三峽區 ","否","","非中央政府辦理新臺幣一億元以上之公共工程 "]
["541","新北市政府 ","新北市淡水區公所 ","無 ","新北淡水112年道路養護道路橋梁其附屬設施災搶交通設施及補助型案件工程(開口)（A區）委託設計監造技術服務第4次契約變更 ","勞務","工程服務 ","421330","421330","112/11/14","112/11/16","新北市－淡水區 ","否","","災後緊急處理、搶修、搶險 "]
["542","新北市政府 ","新北市淡水區公所 ","無 ","新北市淡水112年道路養護橋梁及其附屬設施災搶、交通設施補助型案件工程(開口)（B區）委託設計監造技術服務第一次契約變更 ","勞務","工程服務 ","1458149","1458149","112/11/03","112/11/07","新北市－淡水區 ","否","","災後緊急處理、搶修、搶險 "]
["543","新北市政府 ","新北市淡水區公所 ","無 ","112年度新北市淡水區綠美化工程委託監造案(開口合約)第一次契約變更 ","勞務","工程服務 ","28747","28747","112/11/08","112/11/09","新北市－淡水區 ","否","","整修工程、拆除工程、疏濬工程、結構補強工程 "]
["544","新北市政府 ","新北市瑞芳區公所 ","無 ","新北市瑞芳區上天長興里民休閒場所結構補強工程、上天里活動中心及東和里康樂台結構補強工程設計監造技術服務第1次變更 ","勞務","工程服務 ","1595","1595","112/11/03","112/11/28","新北市－瑞芳區 ","否","","非中央政府辦理新臺幣一億元以上之公共工程 "]
["545","新北市政府 ","新北市五股區公所 ","無 ","113年五股區公園綠美化搶災及設施改善工程委託設計監造技術服務 ","勞務","工程服務 ","1540000","1540000","112/11/10","112/11/20","新北市－五股區 ","否","","災後緊急處理、搶修、搶險 "]
["546","新北市政府 ","新北市五股區公所 ","無 ","五股區113年度工程委託設計監造技術服務 ","勞務","工程服務 ","7400000","7400000","112/10/31","112/11/09","新北市－五股區 ","否","","整修工程、拆除工程、疏濬工程、結構補強工程 "]
["547","新北市政府 ","新北市泰山區公所 ","無 ","泰山區112年公共工程委託技術服務案後續擴充 ","勞務","工程服務 ","4430258","4430258","112/10/31","112/11/01","北部地區－全區 ","否","","非中央政府辦理新臺幣一億元以上之公共工程 "]
["548","新北市政府 ","新北市林口區公所 ","無 ","112年新北市林口區水利河道相關工程委託技術服務(開口合約)第1次契約變更 ","勞務","工程服務 ","3500000","3500000","112/11/02","112/11/06","新北市－林口區 ","否","","非受中央政府補助比率逾工程建造經費百分之五十且補助經費達新臺幣一億元以上之個案公共工程,整修工程、拆除工程、疏濬工程、結構補強工程 "]
["549","新北市政府 ","新北市林口區公所 ","無 ","112年新北市林口區道路橋梁附屬設施及搶災相關工程委託技術服務(開口合約)第1次契約變更 ","勞務","工程服務 ","4200000","4200000","112/11/10","112/11/22","新北市－林口區 ","否","","非中央政府辦理新臺幣一億元以上之公共工程,非受中央政府補助比率逾工程建造經費百分之五十且補助經費達新臺幣一億元以上之個案公共工程,災後緊急處理、搶修、搶險 "]
["550","新北市政府 ","新北市石碇區公所 ","內政部營建署、新北市政府養護工程處 ","新北市石碇區永安里柑腳橋至直潭福德宮段道路改善工程委託設計監造技術服務 ","勞務","工程服務 ","517945","517945","112/11/10","112/11/15","新北市－石碇區 ","否","","非中央政府辦理新臺幣一億元以上之公共工程,非受中央政府補助比率逾工程建造經費百分之五十且補助經費達新臺幣一億元以上之個案公共工程 "]
["551","新北市政府 ","新北市石碇區公所 ","內政部營建署、新北市政府養護工程處 ","新北市石碇區豐田里豐彭環山道路改善工程委託設計監造技術服務 ","勞務","工程服務 ","982855","982855","112/11/10","112/11/15","新北市－石碇區 ","否","","非中央政府辦理新臺幣一億元以上之公共工程,非受中央政府補助比率逾工程建造經費百分之五十且補助經費達新臺幣一億元以上之個案公共工程 "]
["552","新北市政府 ","新北市石碇區公所 ","交通部觀光署 ","112年度新北市石碇區災害緊急搶修復建作業等工程委託設計監造技術服務(開口合約)-第1次後續擴充 ","勞務","工程服務 ","363891","363891","112/06/05","112/11/20","新北市－石碇區 ","否","","非中央政府辦理新臺幣一億元以上之公共工程 "]
["553","新北市政府 ","新北市坪林區公所 ","無 ","坪林區北勢溪自行車道災害復建工程委託設計監造技術服務(第1次契約變更) ","勞務","工程服務 ","651619","651619","112/11/17","112/11/20","新北市－平溪區 ","否","","非中央政府辦理新臺幣一億元以上之公共工程 "]
["554","新北市政府 ","新北市坪林區公所 ","新北市政府水利局 ","111年坪林區無自來水地區簡易自來水(含延管)工程改善計畫案設計、結算、監造技術服務開口契約(第2次後續擴充) ","勞務","工程服務 ","229500","229500","112/10/27","112/11/23","新北市－坪林區 ","否","","非中央政府辦理新臺幣一億元以上之公共工程 "]
["555","新北市政府 ","新北市三芝區公所 ","無 ","新北市三芝區113年度水利工程及補助型案件工程(開口合約)委託設計監造技術服務 ","勞務","工程服務 ","1277238","1238921","112/11/01","112/11/06","新北市－三芝區 ","否","","非受中央政府補助比率逾工程建造經費百分之五十且補助經費達新臺幣一億元以上之個案公共工程 "]
["556","新北市政府 ","新北市萬里區公所 ","無 ","113年度新北市萬里區天然災害緊急搶修復、治山防洪及農路零星改善工程委託設計監造工作(開口契約) ","勞務","綜合工程服務 ","210000","210000","112/11/01","112/11/06","新北市－全區 ","否","","災後緊急處理、搶修、搶險 "]
["557","新北市政府 ","新北市萬里區公所 ","無 ","113年度新北市萬里區天然災害緊急搶修復、治山防洪及農路零星改善工程委託設計監造工作(開口契約) ","勞務","綜合工程服務 ","210000","210000","112/11/01","112/11/06","新北市－萬里區 ","否","","災後緊急處理、搶修、搶險 "]
["558","新北市政府 ","新北市土城區公所 ","新北市政府綠美化環境景觀處 ","新北市土城區永寧廣場改善工程委託設計監造技術服務 ","勞務","工程服務 ","1000000","929343","112/11/02","112/11/03","新北市－土城區 ","否","","非中央政府辦理新臺幣一億元以上之公共工程,非受中央政府補助比率逾工程建造經費百分之五十且補助經費達新臺幣一億元以上之個案公共工程,整修工程、拆除工程、疏濬工程、結構補強工程 "]
["559","新北市政府 ","新北市蘆洲區公所 ","無 ","蘆洲區公所行政大樓之法定空地及自願保留地申請變更為室外停車場用地委託技術服務 ","勞務","建築服務 ","1153314","1090000","112/11/01","112/11/06","新北市－蘆洲區 ","否","","整修工程、拆除工程、疏濬工程、結構補強工程 "]
["560","新竹市政府 ","新竹市政府 ","內政部營建署 ","新竹市中華路四段(中山路口)至中華路六段(內湖路口)道路環境改善工程 ","工程","快速道路(不含高架快速道路), 街道, 馬路, 鐵路及機場跑道 ","220848571","215000000","112/11/23","112/11/28","新竹市－香山區 ","已依規定納入辦理節能減碳檢核 ","規劃設計階段納入辦理節能減碳檢核 ",""]
["561","新竹市政府 ","新竹市政府 ","行政院環境保護署 ","新竹市公有零售市場公廁修繕工程委託設計及監造 ","勞務","工程服務 ","769500","769500","112/09/14","112/11/03","新竹市－東區,新竹市－北區 ","否","","非中央政府辦理新臺幣一億元以上之公共工程,整修工程、拆除工程、疏濬工程、結構補強工程 "]
["562","新竹市政府 ","新竹市政府 ","教育部體育署 ","「香山綜合運動館工程委託規劃、設計暨監造委託服務案」第二次契約變更(新增價格採購) ","勞務","工程服務 ","2862500","2790937","112/11/14","112/11/27","新竹市－香山區 ","否","","規劃取得綠建築標章之建築工程 "]
["563","新竹市政府 ","新竹市政府 ","無 ","新竹市青草湖國小校園整體規劃暨多功能活動中心工程委託規劃、設計及監造第三次契約變更議價案   ","勞務","綜合工程服務 ","477755","477755","112/11/21","112/11/27","新竹市－東區 ","否","","非中央政府辦理新臺幣一億元以上之公共工程 "]
["564","新竹市政府 ","新竹市政府 ","無 ","「港南運河淨化計畫委託規劃設計監造」第一次契約變(新增價格) ","勞務","工程服務 ","192388","192380","112/11/14","112/11/17","新竹市－香山區 ","否","","非受中央政府補助比率逾工程建造經費百分之五十且補助經費達新臺幣一億元以上之個案公共工程 "]
["565","新竹市政府 ","新竹市政府 ","無 ","介壽路沿線交通改善工程委託規劃設計案 ","勞務","工程服務 ","3800000","3620000","112/10/31","112/11/14","新竹市－東區 ","否","","非受中央政府補助比率逾工程建造經費百分之五十且補助經費達新臺幣一億元以上之個案公共工程 "]
["566","新竹市政府 ","新竹市政府 ","無 ","南寮市民活動中心興建工程委託規劃設計監造技術服務案 ","勞務","建築服務 ","1894658","1887028","112/11/09","112/11/15","新竹市－北區 ","否","","非中央政府辦理新臺幣一億元以上之公共工程 "]
["567","新竹市政府 ","新竹市政府 ","無 ","介壽路金山街口號誌纜線地下化工程委託設計監造案 ","勞務","綜合工程服務 ","366904","359566","112/11/21","112/11/30","新竹市－東區 ","否","","非中央政府辦理新臺幣一億元以上之公共工程,非受中央政府補助比率逾工程建造經費百分之五十且補助經費達新臺幣一億元以上之個案公共工程 "]
["568","新竹市政府 ","新竹市環境保護局 ","無 ","新竹市浸水掩埋場道路及作業地坪改善補強措施計畫委託規劃設計（含監造）技術服務 ","勞務","工程服務 ","505408","504397","112/11/02","112/11/20","新竹市－全區 ","否","","整修工程、拆除工程、疏濬工程、結構補強工程 "]
["569","新竹市政府 ","新竹市環境保護局 ","無 ","浸水掩埋場廢污水改善工程委託設計監造技術服務計畫 ","勞務","工程服務 ","425047","420800","112/11/02","112/11/20","新竹市－全區 ","否","","整修工程、拆除工程、疏濬工程、結構補強工程 "]
["570","新竹市政府 ","新竹市立動物園 ","無 ","新竹市立動物園112年動物棲地欄舍等設施整修及新設工程委託規劃及設計監造 ","勞務","工程服務 ","1337612","1309522","112/11/21","112/11/23","新竹市－全區 ","否","","非中央政府辦理新臺幣一億元以上之公共工程 "]
["571","新竹市政府 ","新竹市文化局 ","文化部 ","眷村博物館提升旗艦型計畫館舍整建工程委託監造技術服務(含室內裝修許可及其他設施檢討申請) ","勞務","工程服務 ","937376","933449","112/11/22","112/11/22","新竹市－全區 ","否","","非中央政府辦理新臺幣一億元以上之公共工程 "]
["572","新竹市政府 ","新竹市文化局 ","無 ","「新竹國際展演中心暨停車場新建統包工程」委託中途結算作業服務案 ","勞務","工程服務 ","700000","700000","112/11/21","112/11/23","新竹市－全區 ","否","","非中央政府辦理新臺幣一億元以上之公共工程 "]
["573","新竹市政府 ","新竹市東區新竹國民小學 ","文化部 ","市定古蹟新竹國小百齡樓修復工程委託監造及工作報告書案 ","勞務","工程服務 ","8263753","8263753","112/11/24","112/11/29","新竹市－東區 ","否","","非中央政府辦理新臺幣一億元以上之公共工程,整修工程、拆除工程、疏濬工程、結構補強工程 "]
["574","新竹市政府 ","新竹市東區竹蓮國民小學 ","新竹市政府 ","112年度學校運動操場及周邊設施整建工程委託規畫設計監造技術服務勞務採購增購 ","勞務","工程服務 ","341187","341187","112/11/02","112/11/07","新竹市－東區 ","否","","非中央政府辦理新臺幣一億元以上之公共工程 "]
["575","新竹市政府 ","新竹市東區關東國民小學 ","新竹市政府 ","關馨樓排水及教室環境改善工程設計監造委託技術服務案(第一次契約變更) ","勞務","工程服務 ","127865","127865","112/11/23","112/11/23","新竹市－全區 ","否","","非中央政府辦理新臺幣一億元以上之公共工程,非受中央政府補助比率逾工程建造經費百分之五十且補助經費達新臺幣一億元以上之個案公共工程,整修工程、拆除工程、疏濬工程、結構補強工程 "]
["576","新竹縣政府 ","新竹縣政府 ","內政部國土管理署 ","新竹縣竹北市興隆路增設汽機車左轉道與路口改善工程 (博愛南路至自強南路) 委託規劃設計監造技術服務 ","勞務","工程服務 ","3600000","3480000","112/11/21","112/11/22","新竹縣－竹北 ","否","","整修工程、拆除工程、疏濬工程、結構補強工程 "]
["577","新竹縣政府 ","新竹縣政府 ","內政部營建署 ","新竹縣竹北市污水下水道系統第三期實施計畫-污水管線系統工程設計及監造委託技術服務 ","勞務","工程服務 ","178830000","174287718","112/11/14","112/11/21","新竹縣－竹北 ","否","","非受中央政府補助比率逾工程建造經費百分之五十且補助經費達新臺幣一億元以上之個案公共工程 "]
["578","新竹縣政府 ","新竹縣政府 ","內政部營建署 ","「湖口鄉『觀星夕照：心靈的後花園』環境景觀整備計畫」 第二期委託監造技術服務案 ","勞務","工程服務 ","2210687","2079000","112/11/16","112/11/20","新竹縣－湖口 ","否","","非受中央政府補助比率逾工程建造經費百分之五十且補助經費達新臺幣一億元以上之個案公共工程 "]
["579","新竹縣政府 ","新竹縣政府 ","交通部公路局 ","台1線替代道路(118線至台68線)新闢工程環境監測委託專業服務案 ","勞務","工程服務 ","23076900","21130000","112/11/07","112/11/08","新竹縣－竹北 ","已依規定納入辦理節能減碳檢核 ","規劃設計階段納入辦理節能減碳檢核 ",""]
["580","新竹縣政府 ","新竹縣政府 ","原住民族委員會 ","112年新竹縣部落永續建設藍圖規畫-部落安全防 (減)災類 ","勞務","工程服務 ","8820000","8480000","112/11/16","112/11/17","新竹縣－關西,新竹縣－五峰,新竹縣－尖石 ","否","","非中央政府辦理新臺幣一億元以上之公共工程,非受中央政府補助比率逾工程建造經費百分之五十且補助經費達新臺幣一億元以上之個案公共工程 "]
["581","新竹縣政府 ","新竹縣政府 ","無 ","112年度國家重要節慶新竹縣政府國旗插掛採購案 ","勞務","工程服務 ","570000","561000","112/09/27","112/11/15","新竹縣－全區 ","否","","非中央政府辦理新臺幣一億元以上之公共工程 "]
["582","新竹縣政府 ","新竹縣政府 ","無 ","新竹縣飛鳳山風景特定區申請暨周邊環境規劃案 ","勞務","都市計劃及景觀建築服務 ","2500000","2436000","112/11/14","112/11/17","新竹縣－全區 ","否","","非受中央政府補助比率逾工程建造經費百分之五十且補助經費達新臺幣一億元以上之個案公共工程 "]
["583","新竹縣政府 ","新竹縣政府消防局 ","內政部 ","113年度消防廳舍內部設施改善委託規劃、設計監造A案(第二大隊及湖口、新豐、寶山、二重、竹東分隊) ","勞務","工程服務 ","750209","735205","112/11/24","112/11/28","新竹縣－湖口,新竹縣－新豐,新竹縣－寶山,新竹縣－竹東 ","否","","非中央政府辦理新臺幣一億元以上之公共工程,整修工程、拆除工程、疏濬工程、結構補強工程 "]
["584","新竹縣政府 ","新竹縣新埔鎮公所 ","內政部國土管理署 ","新竹縣新埔鎮鹿鳴里、新北里村鄰聯絡道路品質改善工程-委託設計監造 ","勞務","工程服務 ","728213","728213","112/11/14","112/11/15","新竹縣－新埔 ","否","","整修工程、拆除工程、疏濬工程、結構補強工程 "]
["585","新竹縣政府 ","新竹縣新埔鎮公所 ","無 ","代辦112年度鳳山溪泰和一二號堤防、文山堤防及新埔堤防構造物維修改善工程委託設計監造(開口契約) ","勞務","工程服務 ","1380000","1242000","112/11/07","112/11/07","新竹縣－新埔 ","否","","非中央政府辦理新臺幣一億元以上之公共工程 "]
["586","新竹縣政府 ","新竹縣竹東鎮公所 ","無 ","擴大及變更竹東主要計畫(第六次通盤檢討)委託專業服務案 ","勞務","都市計劃及景觀建築服務 ","15540000","15540000","112/11/22","112/11/24","新竹縣－竹東 ","否","","非中央政府辦理新臺幣一億元以上之公共工程,非受中央政府補助比率逾工程建造經費百分之五十且補助經費達新臺幣一億元以上之個案公共工程 "]
["587","新竹縣政府 ","新竹縣竹東鎮公所 ","無 ","新竹縣竹東鎮北興路道路品質及人本環境改善工程 ","工程","其他土木工程 ","108616720","108600000","112/11/22","112/11/28","新竹縣－竹東 ","否","","非受中央政府補助比率逾工程建造經費百分之五十且補助經費達新臺幣一億元以上之個案公共工程 "]
["588","新竹縣政府 ","新竹縣竹東鎮公所 ","無 ","竹東鎮中興河道周邊環境改善工程委託設計及監造技術服務案 ","勞務","工程服務 ","400000","399000","112/11/22","112/11/27","新竹縣－竹東 ","否","","規劃取得綠建築標章之建築工程 "]
["589","新竹縣政府 ","新竹縣湖口鄉公所 ","內政部國土管理署 ","112年度新竹縣湖口鄉都市計畫區內生活道路養護整建工程委託設計監造技術服務 ","勞務","工程服務 ","974565","950000","112/11/01","112/11/02","新竹縣－湖口 ","否","","整修工程、拆除工程、疏濬工程、結構補強工程 "]
["590","新竹縣政府 ","新竹縣湖口鄉公所 ","無 ","112年度新竹縣湖口鄉新湖國小周邊人行步道改善工程委託設計監造服務 ","勞務","建築服務 ","1480000","1400000","112/11/22","112/11/24","新竹縣－湖口 ","否","","整修工程、拆除工程、疏濬工程、結構補強工程 "]
["591","新竹縣政府 ","新竹縣寶山鄉公所 ","無 ","寶山鄉寶斗村集會所暨寶斗村衛生室外觀彩繪委外設計與施作勞務採購案 ","勞務","工程服務 ","1400000","1350000","112/11/08","112/11/10","新竹縣－寶山 ","否","","非中央政府辦理新臺幣一億元以上之公共工程,非受中央政府補助比率逾工程建造經費百分之五十且補助經費達新臺幣一億元以上之個案公共工程 "]
["592","新竹縣政府 ","新竹縣竹北市公所 ","無 ","蓮花公園景觀改善工程委託設計監造案 ","勞務","工程服務 ","576333","569142","112/11/09","112/11/13","新竹縣－竹北 ","否","","非中央政府辦理新臺幣一億元以上之公共工程 "]
["593","新竹縣政府 ","新竹縣竹北市公所 ","無 ","鳳崎步道災後損毀復建工程委託設計監造案 ","勞務","工程服務 ","198000","172179","112/11/02","112/11/07","新竹縣－竹北 ","否","","災後原地復建,整修工程、拆除工程、疏濬工程、結構補強工程 "]
["594","新竹縣政府 ","新竹縣竹北市公所 ","無 ","水月橋橋墩景觀投射燈新設工程委託設計監造案 ","勞務","工程服務 ","350000","330000","112/11/13","112/11/13","新竹縣－竹北 ","否","","非受中央政府補助比率逾工程建造經費百分之五十且補助經費達新臺幣一億元以上之個案公共工程 "]
["595","新竹縣政府 ","新竹縣立六家高級中學 ","新竹縣政府 ","新竹縣立六家高級中學南棟校舍拆除重建工程 ","工程","教育用建築工程 ","250458795","250420805","112/10/26","112/11/01","新竹縣－竹北 ","否","","整修工程、拆除工程、疏濬工程、結構補強工程,規劃取得綠建築標章之建築工程 "]
["596","新竹縣政府 ","新竹縣尖石鄉新樂國民小學 ","新竹縣政府 ","112年度充實設備設施-教學辦公大樓外牆防水整修工程規劃設計暨監造委託案   ","勞務","建築服務 ","451960","451957","112/11/29","112/11/29","新竹縣－尖石 ","否","","非中央政府辦理新臺幣一億元以上之公共工程 "]
["597","新竹縣政府 ","新竹縣尖石鄉新光國民小學 ","新竹縣政府 ","新竹縣尖石鄉新光國民小學司馬庫斯分班興辦事業計畫委託技術服務案 ","勞務","綜合工程服務 ","2200000","2198000","112/11/24","112/11/30","新竹縣－尖石 ","否","","非中央政府辦理新臺幣一億元以上之公共工程 "]
["598","新竹縣政府 ","新竹縣竹北市新社國民小學 ","新竹縣政府教育局 ","新竹縣新社國民小學112年度校園周邊暨行車安全道路改善計畫-工程委託規劃設計監造勞務採購 ","勞務","工程服務 ","1791347","1786800","112/09/27","112/11/17","北部地區－全區 ","否","","整修工程、拆除工程、疏濬工程、結構補強工程 "]
["599","新竹縣政府 ","新竹縣竹北市十興國民小學 ","新竹縣政府、內政部營建署 ","新竹縣竹北市十興國小通學步道暨行車安全道路改善計畫案委託規劃設計監造技術服務勞務採購案 ","勞務","工程服務 ","2567000","2567000","112/11/06","112/11/07","新竹縣－竹北 ","否","","非受中央政府補助比率逾工程建造經費百分之五十且補助經費達新臺幣一億元以上之個案公共工程 "]
["600","經濟部 ","台灣糖業股份有限公司柳營尖山埤渡假村 ","無 ","112、113年尖山埤水庫清淤案委託規劃設計監造 ","勞務","工程服務 ","6880440","6600000","112/11/09","112/11/14","臺南市－柳營區 ","否","","非受中央政府補助比率逾工程建造經費百分之五十且補助經費達新臺幣一億元以上之個案公共工程 "]
["601","經濟部 ","台灣糖業股份有限公司高雄區處 ","文化部文化資產局 ","高雄市定古蹟橋仔頭糖廠保警分隊修復工程-監造工作委託技術服務案(含工作報告書) ","勞務","建築服務 ","1490000","1488000","112/11/20","112/11/22","高雄市－橋頭區 ","否","","非中央政府辦理新臺幣一億元以上之公共工程,非受中央政府補助比率逾工程建造經費百分之五十且補助經費達新臺幣一億元以上之個案公共工程,整修工程、拆除工程、疏濬工程、結構補強工程 "]
["602","經濟部 ","台灣電力股份有限公司 ","無 ","集集南岸新建段S6-S8跌水小水力發電計畫可行性研究第1次契約變更 ","勞務","工程服務 ","314475","283500","112/11/02","112/11/06","北部地區－全區,中部地區－全區 ","否","","非中央政府辦理新臺幣一億元以上之公共工程 "]
["603","經濟部 ","台灣電力股份有限公司 ","無 ","離岸風力發電加強電力網第一期計畫大潭發電廠梅湖線新設161kV電抗器、GIS、電纜及附屬設備工程 ","工程","電力工程 ","496526100","483888000","112/11/15","112/11/21","桃園市－觀音區 ","否","","整修工程、拆除工程、疏濬工程、結構補強工程 "]
["604","經濟部 ","台灣電力股份有限公司 ","無 ","協和發電廠珠山分廠擴建4部柴油機組工程 ","工程","電力工程 ","2080369830","2080365000","112/10/27","112/11/03","連江縣－南竿 ","否","","整修工程、拆除工程、疏濬工程、結構補強工程 "]
["605","經濟部 ","台灣電力股份有限公司 ","無 ","離岸風力發電加強電力網計畫(第一階段區塊開發)台中發電廠345kV(中)開關場更新工程 ","工程","電力工程 ","492124500","480000000","112/10/23","112/11/01","臺中市－龍井區 ","否","","整修工程、拆除工程、疏濬工程、結構補強工程 "]
["606","經濟部 ","台灣電力股份有限公司 ","無 ","雲林區營業處材料貯存大樓新建統包工程 ","工程","倉儲及工業建築工程 ","1053887500","1053887500","112/10/27","112/11/10","雲林縣－斗六 ","否","","規劃取得綠建築標章之建築工程 "]
["607","經濟部 ","台灣電力股份有限公司高屏供電區營運處 ","無 ","161kV大林~南工一二四路電纜線路工程 ","工程","電力工程 ","195000000","168862888","112/11/07","112/11/24","高雄市－小港區 ","否","","非中央政府辦理新臺幣一億元以上之公共工程 "]
["608","經濟部 ","台灣電力股份有限公司核能火力發電工程處 ","無 ","通霄電廠更新擴建計畫委託技術服務工作第7次契約變更案 ","勞務","工程服務 ","117274500","111615000","112/10/26","112/11/10","苗栗縣－通霄 ","否","","規劃取得綠建築標章之建築工程 "]
["609","經濟部 ","台灣電力股份有限公司輸變電工程處中區施工處 ","無 ","北港P/S暨所內連接站土建統包改建工程 ","工程","電力工程 ","1600000000","1598000000","112/10/25","112/11/23","雲林縣－水林 ","否","","規劃取得綠建築標章之建築工程 "]
["610","經濟部 ","台灣電力股份有限公司輸變電工程處中區施工處 ","無 ","161kV彰工~亞彰線電纜管路等四件工程 ","工程","電力工程 ","340000000","249980000","112/10/26","112/11/09","彰化縣－鹿港,彰化縣－線西 ","否","","非中央政府辦理新臺幣一億元以上之公共工程 "]
["611","經濟部 ","台灣電力股份有限公司輸變電工程處南區施工處 ","無 ","新吉一次配電變電所新建工程委託技術服務工作 ","勞務","工程服務 ","18690000","17300000","112/10/18","112/11/02","南部地區－全區 ","否","","非中央政府辦理新臺幣一億元以上之公共工程 "]
["612","經濟部 ","台灣電力股份有限公司輸變電工程處南區施工處 ","無 ","「高雄~雄積三、四路(高雄~高煉線)配合翠華路拓寬(明潭路至世運大道)土建工程」委託技術服務 ","勞務","工程服務 ","1249500","1239000","112/10/19","112/11/01","南部地區－全區 ","否","","非中央政府辦理新臺幣一億元以上之公共工程 "]
["613","經濟部 ","台灣電力股份有限公司水力施工處 ","無 ","明湖水庫壩頂加高工程 ","工程","水道、海港、水壩及其他水利工程 ","183660094","175000000","112/11/07","112/11/09","南投縣－水里 ","否","","整修工程、拆除工程、疏濬工程、結構補強工程 "]
["614","經濟部 ","台灣中油股份有限公司 ","無 ","海管室112年度台中至大潭海管外部檢測工作 ","勞務","綜合工程服務 ","46083492","27686610","112/11/22","112/11/27","其他－其他 ","否","","非中央政府辦理新臺幣一億元以上之公共工程 "]
["615","經濟部 ","台灣中油股份有限公司 ","無 ","永安至通霄第二條海底輸氣管線綜合規劃設計工作 ","勞務","工程服務 ","129146415","119917108","112/11/13","112/11/14","其他－其他 ","否","","非中央政府辦理新臺幣一億元以上之公共工程 "]
["616","經濟部 ","台灣中油股份有限公司 ","無 ","林園石化廠108水塔檢修工作 ","勞務","綜合工程服務 ","45664227","40000000","112/11/07","112/11/08","高雄市－全區 ","否","","非中央政府辦理新臺幣一億元以上之公共工程 "]
["617","經濟部 ","台灣中油股份有限公司液化天然氣工程處 ","無 ","L10502計畫36吋陸上輸氣管線工程設計技術服務工作第3次契約變更 ","勞務","綜合工程服務 ","1700022","1650000","112/11/16","112/11/29","其他－其他 ","否","","非中央政府辦理新臺幣一億元以上之公共工程 "]
["618","經濟部 ","台灣中油股份有限公司石化事業部 ","無 ","前鎮所標識牌更新製裝及字體書寫油漆工作 ","勞務","綜合工程服務 ","3135000","3135000","112/11/24","112/11/27","高雄市－前鎮區,其他－其他 ","否","","整修工程、拆除工程、疏濬工程、結構補強工程 "]
["619","經濟部 ","台灣中油股份有限公司天然氣事業部台中液化天然氣廠 ","無 ","台中廠112年FRP管線零星修繕工作長期合約 ","勞務","綜合工程服務 ","4979246","4480166","112/11/15","112/11/22","臺中市－梧棲區 ","否","","非中央政府辦理新臺幣一億元以上之公共工程,非受中央政府補助比率逾工程建造經費百分之五十且補助經費達新臺幣一億元以上之個案公共工程 "]
["620","經濟部 ","台灣自來水股份有限公司北區工程處 ","無 ","暖暖淨水場改建工程規劃 ","勞務","工程服務 ","9200000","9086000","112/09/26","112/11/17","基隆市－暖暖區 ","已依規定納入辦理節能減碳檢核 ","計畫提報核定階段納入辦理節能減碳檢核;規劃設計階段納入辦理節能減碳檢核 ",""]
["621","經濟部 ","經濟部水利署北區水資源分署 ","無 ","石門水庫至新竹聯通管工程計畫-寶二水庫溢流堰體改善環境監測分析 ","勞務","工程服務 ","12356925","11180000","112/11/23","112/11/30","桃園市－龍潭區,桃園市－大溪區,桃園市－復興區,新竹縣－寶山,新竹縣－竹東 ","否","","非中央政府辦理新臺幣一億元以上之公共工程 "]
["622","經濟部 ","經濟部水利署中區水資源分署 ","無 ","烏溪伏流水第三期(工區2)統包工程 ","工程","水道、海港、水壩及其他水利工程 ","709000000","709000000","112/11/03","112/11/23","臺中市－霧峰區 ","已依規定納入辦理節能減碳檢核 ","規劃設計階段納入辦理節能減碳檢核 ",""]
["623","經濟部 ","經濟部水利署南區水資源分署 ","無 ","曾文水庫邊坡整治工程委託設計 ","勞務","工程服務 ","149100","149100","112/10/16","112/11/15","臺南市－楠西區 ","已依規定納入辦理節能減碳檢核 ","規劃設計階段納入辦理節能減碳檢核 ",""]
["624","經濟部 ","經濟部水利署第二河川分署 ","無 ","113年度第二河川分署轄管水利建造物安全檢測（開口合約） ","勞務","工程服務 ","3880000","3575000","112/11/07","112/11/08","新竹市－全區,新竹縣－全區,桃園市－全區,苗栗縣－全區 ","否","","整修工程、拆除工程、疏濬工程、結構補強工程 "]
["625","經濟部 ","經濟部產業園區管理局 ","無 ","仁武科技產業園區設置相關作業委託技術服務案 ","勞務","工程服務 ","26600000","26020000","112/11/21","112/11/28","高雄市－楠梓區,高雄市－仁武區 ","已依規定納入辦理節能減碳檢核 ","規劃設計階段納入辦理節能減碳檢核 ",""]
["626","經濟部 ","經濟部產業園區管理局 ","無 ","高雄楠梓科技產業園區作業單位服務大樓工程委託專案管理(含監造)技術服務案 ","勞務","綜合工程服務 ","6476074","6265000","112/11/20","112/11/24","高雄市－楠梓區 ","否","","非中央政府辦理新臺幣一億元以上之公共工程 "]
["627","經濟部 ","經濟部產業園區管理局臺北分局 ","無 ","113年度新北產業園區污水處理廠迴轉生物圓盤設備汰舊換新委託設計監造技術服務案 ","勞務","工程服務 ","572727","567000","112/11/24","112/11/28","新北市－五股區 ","否","","非中央政府辦理新臺幣一億元以上之公共工程,整修工程、拆除工程、疏濬工程、結構補強工程 "]
["628","經濟部 ","經濟部產業園區管理局臺中分局 ","無 ","113年度經濟部大甲幼獅產業園區污水管線增設改善工程 委託設計監造技術服務 ","勞務","工程服務 ","1207996","1005096","112/10/31","112/11/03","臺中市－全區 ","否","","非中央政府辦理新臺幣一億元以上之公共工程 "]
["629","經濟部 ","經濟部產業園區管理局臺中分局 ","無 ","大里產業園區113年度道路復舊工程委託設計監造技術服務案 ","勞務","工程服務 ","320621","320621","112/11/21","112/11/22","臺中市－大里區 ","否","","非中央政府辦理新臺幣一億元以上之公共工程 "]
["630","經濟部 ","經濟部產業園區管理局臺中分局 ","無 ","大里產業園區113年度路燈汰換工程委託設計監造技術服務案 ","勞務","工程服務 ","339189","339150","112/11/17","112/11/20","臺中市－大里區 ","否","","非中央政府辦理新臺幣一億元以上之公共工程 "]
["631","經濟部 ","經濟部產業園區管理局臺南分局 ","無 ","113年豐田、元長產業園區路燈維護工作 ","勞務","工程服務 ","198000","156500","112/11/21","112/11/23","雲林縣－大埤,雲林縣－元長 ","否","","非中央政府辦理新臺幣一億元以上之公共工程,非受中央政府補助比率逾工程建造經費百分之五十且補助經費達新臺幣一億元以上之個案公共工程 "]
["632","經濟部 ","經濟部產業園區管理局臺南分局 ","無 ","113年雲林產業園區道路及人行道修復工程委託設計監造技術服務 ","勞務","工程服務 ","868843","867214","112/11/27","112/11/30","雲林縣－斗六 ","否","","非中央政府辦理新臺幣一億元以上之公共工程,非受中央政府補助比率逾工程建造經費百分之五十且補助經費達新臺幣一億元以上之個案公共工程 "]
["633","經濟部 ","經濟部產業園區管理局臺南分局 ","無 ","113年度安平產業園區服務大樓外觀優化改善工程委託設計監造技術服務案 ","勞務","建築服務 ","475414","456397","112/11/02","112/11/06","臺南市－南區 ","否","","非中央政府辦理新臺幣一億元以上之公共工程,整修工程、拆除工程、疏濬工程、結構補強工程 "]
["634","經濟部 ","經濟部產業園區管理局高屏分局 ","無 ","113年度高雄臨海產業園區路燈維護勞務採購案 ","勞務","工程服務 ","950000","840647","112/11/08","112/11/13","南部地區－全區 ","否","","非中央政府辦理新臺幣一億元以上之公共工程 "]
["635","經濟部 ","經濟部產業園區管理局高屏分局 ","無 ","113年度林園產業園區路燈維修勞務採購 ","勞務","工程服務 ","350000","284493","112/11/21","112/11/23","高雄市－林園區 ","否","","非中央政府辦理新臺幣一億元以上之公共工程 "]
["636","農業部 ","農業部林業及自然保育署南投分署 ","無 ","113-114年度國有林治理工程生態檢核及追蹤調查委託專業服務案 ","勞務","工程服務 ","4000000","4000000","112/09/21","112/11/02","臺中市－全區,彰化縣－全區,南投縣－全區,雲林縣－全區 ","否","","非中央政府辦理新臺幣一億元以上之公共工程 "]
["637","農業部 ","農業部林業及自然保育署南投分署 ","無 ","113年度南投分署轄(竹山鹿谷水里集集地區)工程委託規劃設計及監造技術服務 ","勞務","工程服務 ","3930000","3930000","112/11/17","112/11/22","南投縣－集集,南投縣－水里,南投縣－鹿谷 ","否","","非中央政府辦理新臺幣一億元以上之公共工程,災後緊急處理、搶修、搶險,整修工程、拆除工程、疏濬工程、結構補強工程 "]
["638","農業部 ","農業部林業及自然保育署南投分署 ","無 ","奧萬大森林遊樂區推行國產材小木屋可行性評估作業委託技術服務 ","勞務","工程服務 ","3000000","3000000","112/10/26","112/11/10","南投縣－仁愛 ","已依規定納入辦理節能減碳檢核 ","計畫提報核定階段納入辦理節能減碳檢核;規劃設計階段納入辦理節能減碳檢核 ",""]
["639","農業部 ","農業部林業及自然保育署南投分署 ","無 ","113年度水電及空調設備維護保養勞務採購案 ","勞務","綜合工程服務 ","729853","720000","112/11/23","112/11/28","南投縣－草屯 ","否","","非中央政府辦理新臺幣一億元以上之公共工程,整修工程、拆除工程、疏濬工程、結構補強工程 "]
["640","農業部 ","農業部林業及自然保育署宜蘭分署 ","無 ","森林經營路網林道設施改善調查工作（棲蘭地區） ","勞務","工程服務 ","1755000","1755000","112/11/01","112/11/14","北部地區－全區 ","否","","非中央政府辦理新臺幣一億元以上之公共工程"]
["641","農業部 ","農業部農村發展及水土保持署臺北分署 ","無 ","112-113年度桃園市、新北市及基隆市等農路設施改善、坡地保育工程暨戶外教室委託設計及監造技術服務 ","勞務","工程服務 ","6300000","6048000","112/11/08","112/11/09","其他－其他 ","否","","非中央政府辦理新臺幣一億元以上之公共工程 "]
["642","農業部 ","農業部農村發展及水土保持署臺北分署 ","無 ","112-113年度新竹縣第2區等農路設施改善暨坡地保育工程委託設計及監造技術服務 ","勞務","工程服務 ","6300000","6111000","112/11/08","112/11/09","其他－其他 ","否","","非中央政府辦理新臺幣一億元以上之公共工程 "]
["643","農業部 ","農業部農村發展及水土保持署臺北分署 ","無 ","112-113年度宜蘭縣南區等農路設施改善暨坡地保育工程委託設計及監造技術服務 ","勞務","工程服務 ","6300000","5953500","112/11/08","112/11/09","其他－其他 ","否","","非中央政府辦理新臺幣一億元以上之公共工程 "]
["644","農業部 ","農業部農村發展及水土保持署臺南分署 ","無 ","112年度萬山、寶山、來義等五處大規模崩塌地區監測計畫 ","勞務","工程服務 ","7283398","7283398","112/07/03","112/11/14","高雄市－六龜區,高雄市－杉林區,高雄市－桃源區,高雄市－茂林區,屏東縣－來義 ","否","","非中央政府辦理新臺幣一億元以上之公共工程 "]
["645","農業部 ","農業部農村發展及水土保持署臺南分署 ","無 ","玉穗溪整體治理方案評估研擬 ","勞務","工程服務 ","2100000","2000000","112/11/24","112/11/27","高雄市－桃源區 ","否","","非中央政府辦理新臺幣一億元以上之公共工程 "]
["646","農業部 ","農業部農田水利署 ","無 ","八卦山名間鄉旱灌區既有貯水池及蓄水池結構及附屬設施韌性工程委託設計監造服務 ","勞務","工程服務 ","16812489","15635615","112/10/31","112/11/10","南投縣－名間 ","否","","非中央政府辦理新臺幣一億元以上之公共工程,非受中央政府補助比率逾工程建造經費百分之五十且補助經費達新臺幣一億元以上之個案公共工程 "]
["647","農業部 ","農業部農田水利署 ","無 ","八卦山旱灌區S1~S3系統生態檢核工作計畫委託專業服務 ","勞務","工程服務 ","5800000","5500000","112/10/26","112/11/06","南投縣－名間 ","否","","非中央政府辦理新臺幣一億元以上之公共工程,非受中央政府補助比率逾工程建造經費百分之五十且補助經費達新臺幣一億元以上之個案公共工程 "]
["648","農業部 ","農業部農田水利署 ","無 ","八卦山旱灌區P15池及管線韌性工程委託設計監造技術服務 ","勞務","工程服務 ","17766352","17233361","112/11/03","112/11/15","南投縣－名間 ","否","","非中央政府辦理新臺幣一億元以上之公共工程,非受中央政府補助比率逾工程建造經費百分之五十且補助經費達新臺幣一億元以上之個案公共工程 "]
["649","農業部 ","農業部農田水利署 ","無 ","八卦山名間鄉旱灌區輸水幹管韌性工程委託設計監造技術服務  ","勞務","工程服務 ","21877210","21002122","112/11/08","112/11/21","南投縣－名間 ","否","","非中央政府辦理新臺幣一億元以上之公共工程,非受中央政府補助比率逾工程建造經費百分之五十且補助經費達新臺幣一億元以上之個案公共工程 "]
["650","農業部 ","農業部農田水利署 ","無 ","新營分處辦公大樓建築物耐震能力補強工程委託設計監造技術服務(變更) ","勞務","建築服務 ","404088","380000","112/10/25","112/11/01","臺南市－新營區 ","否","","整修工程、拆除工程、疏濬工程、結構補強工程 "]
["651","農業部 ","農業部農田水利署 ","無 ","112～113年度嘉南管理處灌排設施改善委託設計及監造技術服務開口契約(新營分處) ","勞務","工程服務 ","3510000","3510000","112/09/01","112/11/23","臺南市－新營區,臺南市－後壁區,臺南市－東山區,臺南市－柳營區,臺南市－鹽水區 ","已依規定納入辦理節能減碳檢核 ","規劃設計階段納入辦理節能減碳檢核 ",""]
["652","農業部 ","農業部農田水利署 ","無 ","112~113年度嘉南管理處灌排設施改善委託設計及監造技術服務開口契約(白河水庫分處) ","勞務","工程服務 ","5186000","5186000","112/11/07","112/11/14","臺南市－白河區 ","已依規定納入辦理節能減碳檢核 ","規劃設計階段納入辦理節能減碳檢核 ",""]
["653","農業部 ","農業部農田水利署 ","無 ","112-113年度嘉南地區農田水利工程文化資產施工監看委外專業服務(開口契約) ","勞務","工程服務 ","1680000","1650000","112/11/15","112/11/16","嘉義市－全區,嘉義縣－全區,臺南市－全區 ","否","","非中央政府辦理新臺幣一億元以上之公共工程,非受中央政府補助比率逾工程建造經費百分之五十且補助經費達新臺幣一億元以上之個案公共工程 "]
["654","農業部 ","農業部農田水利署 ","無 ","北埔圳幹線(2k+800~5k+200)蓄存強化工程委託監造技術服務 ","勞務","工程服務 ","1335690","1335690","112/11/23","112/11/24","花蓮縣－新城,花蓮縣－秀林 ","否","","非中央政府辦理新臺幣一億元以上之公共工程 "]
["655","農業部 ","農業部農田水利署 ","無 ","大禹圳2幹線等灌溉系統強化工程委託規劃設計監造技術服務 ","勞務","工程服務 ","4760000","4760000","112/11/16","112/11/20","花蓮縣－玉里 ","否","","非中央政府辦理新臺幣一億元以上之公共工程 "]
["656","農業部 ","農業部農田水利署 ","無 ","112年度南投縣中寮鄉擴大灌溉服務推動計畫委託技術服務 ","勞務","工程服務 ","4600000","4275000","112/10/31","112/11/13","南投縣－中寮 ","否","","非中央政府辦理新臺幣一億元以上之公共工程 "]
["657","農業部 ","農業部農田水利署 ","無 ","112~113年度南投管理處水利設施改善委託設計及監造技術服務開口契約(第一工區) ","勞務","工程服務 ","10000000","9550000","112/11/06","112/11/10","臺中市－全區,南投縣－全區 ","否","","非中央政府辦理新臺幣一億元以上之公共工程 "]
["658","農業部 ","農業部農田水利署 ","無 ","112~113年度南投管理處水利設施改善委託設計及監造技術服務開口契約(第二工區) ","勞務","工程服務 ","10000000","9550000","112/11/06","112/11/13","南投縣－國姓,南投縣－埔里,南投縣－仁愛,南投縣－魚池 ","否","","非中央政府辦理新臺幣一億元以上之公共工程 "]
["659","農業部 ","農業部農田水利署 ","無 ","112年度本處水利設施改善工程委託測設監造等技術服務開口契約(第二工區)後續擴充 ","勞務","工程服務 ","3000000","3000000","112/10/31","112/11/02","臺中市－大里區,臺中市－霧峰區,臺中市－烏日區,臺中市－豐原區,臺中市－新社區,臺中市－潭子區,臺中市－大雅區,臺中市－神岡區,臺中市－大肚區,臺中市－沙鹿區,臺中市－龍井區,臺中市－梧棲區,臺中市－清水區,臺中市－大甲區 ","否","","非中央政府辦理新臺幣一億元以上之公共工程 "]
["660","農業部 ","農業部農田水利署 ","無 ","濁幹線北港溪渡槽工程 ","工程","水道、海港、水壩及其他水利工程 ","1074970000","1074900000","112/10/31","112/11/06","雲林縣－全區 ","已依規定納入辦理節能減碳檢核 ","規劃設計階段納入辦理節能減碳檢核 ",""]
["661","農業部 ","農業部農業試驗所 ","無 ","行政大樓空調設備額外項 ","勞務","工程服務 ","1145025","1120000","112/11/03","112/11/06","臺中市－霧峰區 ","否","","非中央政府辦理新臺幣一億元以上之公共工程 "]
["662","農業部 ","農業部林業試驗所 ","無 ","113年度嘉義樹木園建築展示與周邊設施整建工程委託設計暨監造服務工作 ","勞務","建築服務 ","1398112","1286263","112/11/20","112/11/22","嘉義市－東區 ","否","","非中央政府辦理新臺幣一億元以上之公共工程 "]
["663","嘉義市政府 ","嘉義市政府 ","無 ","嘉義市中央排水(0k+000~0k+347)治理工程委託設計監造技 術服務 ","勞務","工程服務 ","3572000","3572000","112/11/08","112/11/16","嘉義市－全區,屏東縣－全區 ","否","","規劃取得綠建築標章之建築工程 "]
["664","嘉義市政府 ","嘉義市政府 ","無 ","嘉義市文化新絲路2.0之中山路（民族路至文化路）及森鐵車庫園區街廓人行道改善工程委託技術服務案 ","勞務","工程服務 ","5055000","5055000","112/11/16","112/11/30","嘉義市－全區 ","否","","非受中央政府補助比率逾工程建造經費百分之五十且補助經費達新臺幣一億元以上之個案公共工程 "]
["665","嘉義市政府 ","嘉義市政府 ","無 ","112年嘉義市湖內抽水站沉水式抽水馬達維修 ","勞務","工程服務 ","990000","980000","112/10/31","112/11/17","嘉義市－全區 ","否","","非受中央政府補助比率逾工程建造經費百分之五十且補助經費達新臺幣一億元以上之個案公共工程 "]
["666","嘉義市政府 ","嘉義市政府警察局 ","無 ","嘉義市歷史建築東門派出所地方創生文化環境營造計畫委託監造技術服務辦理變更設計工作議價案 ","勞務","工程服務 ","350000","342560","112/11/16","112/11/16","嘉義市－全區 ","否","","非中央政府辦理新臺幣一億元以上之公共工程,整修工程、拆除工程、疏濬工程、結構補強工程 "]
["667","嘉義市政府 ","嘉義市政府文化局 ","無 ","嘉義市立博物館升降設備汰換暨室內外無障礙動線改善工程規劃設計監造委託服務案 ","勞務","建築服務 ","881318","881318","112/11/21","112/11/22","嘉義市－東區 ","否","","非中央政府辦理新臺幣一億元以上之公共工程,非受中央政府補助比率逾工程建造經費百分之五十且補助經費達新臺幣一億元以上之個案公共工程,整修工程、拆除工程、疏濬工程、結構補強工程 "]
["668","嘉義市政府 ","嘉義市東區區公所 ","無 ","113年度嘉義市東區小型零星工程維護開口契約委託設計監造案 ","勞務","工程服務 ","1211250","1211250","112/11/06","112/11/14","嘉義市－全區 ","否","","非中央政府辦理新臺幣一億元以上之公共工程 "]
["669","嘉義市政府 ","嘉義市世賢國民小學 ","教育部國民及學前教育署、嘉義市政府 ","嘉義市世賢國民小學112年度老舊廁所整修工程委託規劃設計監造技術服務案 ","勞務","工程服務 ","566361","566361","112/11/20","112/11/21","南部地區－全區 ","否","","整修工程、拆除工程、疏濬工程、結構補強工程 "]
["670","嘉義縣政府 ","嘉義縣政府 ","無 ","「嘉義縣大林鎮公二市地重劃案」市地重劃工程委託規劃設計及監造技術服務案(第一次契約變更) ","勞務","工程服務 ","326370","326370","112/10/23","112/11/24","嘉義縣－大林 ","否","","非受中央政府補助比率逾工程建造經費百分之五十且補助經費達新臺幣一億元以上之個案公共工程 "]
["671","嘉義縣政府 ","嘉義縣政府 ","無 ","112年度嘉義縣政府轄內道路刨鋪及附屬工程開口契約-第一工區 ","工程","快速道路(不含高架快速道路), 街道, 馬路, 鐵路及機場跑道 ","136600000","136600000","112/10/20","112/11/02","嘉義縣－朴子,嘉義縣－東石,嘉義縣－六腳,嘉義縣－大林,嘉義縣－溪口,嘉義縣－義竹,嘉義縣－布袋 ","否","","非受中央政府補助比率逾工程建造經費百分之五十且補助經費達新臺幣一億元以上之個案公共工程 "]
["672","嘉義縣政府 ","嘉義縣政府 ","無 ","112-113年度嘉義縣大埔美精密機械園區公共設施維護修繕作業委託設計及監造服務開口契約 ","勞務","工程服務 ","3371121","3371121","112/11/07","112/11/21","嘉義縣－梅山,嘉義縣－大林 ","否","","非中央政府辦理新臺幣一億元以上之公共工程 "]
["673","嘉義縣政府 ","嘉義縣政府 ","衛生福利部 ","「嘉義縣新港鄉衛生所新建工程委託勘測規劃、設計及監造之追加工作項目」（第一次契約變更） ","勞務","建築服務 ","625352","625352","112/10/31","112/11/06","嘉義縣－新港 ","否","","非受中央政府補助比率逾工程建造經費百分之五十且補助經費達新臺幣一億元以上之個案公共工程 "]
["674","嘉義縣政府 ","嘉義縣消防局 ","無 ","嘉義縣消防局第三大隊太平分隊辦理興辦事業計畫、簡易水土保持計畫暨用地變更編定委託技術服務 ","勞務","綜合工程服務 ","800000","790000","112/11/02","112/11/02","嘉義縣－梅山 ","否","","非中央政府辦理新臺幣一億元以上之公共工程,非受中央政府補助比率逾工程建造經費百分之五十且補助經費達新臺幣一億元以上之個案公共工程 "]
["675","嘉義縣政府 ","嘉義縣民雄鄉公所 ","衛生福利部 ","「嘉義縣民雄鄉興中村及頂崙村等2處社區活動中心耐震補強計畫」委託規劃、設計及監造技術服務 ","勞務","建築服務 ","254873","251909","112/11/06","112/11/07","嘉義縣－民雄 ","否","","整修工程、拆除工程、疏濬工程、結構補強工程 "]
["676","嘉義縣政府 ","嘉義縣六腳鄉公所 ","無 ","「嘉義縣六腳鄉第六公園化公墓園區第三納骨堂」委託勘測規劃、設計及監造技術服務 ","勞務","建築服務 ","6510575","6496670","112/11/28","112/11/30","嘉義縣－六腳 ","否","","規劃取得綠建築標章之建築工程 "]
["677","嘉義縣政府 ","嘉義縣東石鄉公所 ","內政部 ","112年度提升道路品質改善計畫(內政部)2.0之東石鄉塭仔村後埔聚落聯絡道路改善工程等3案委託勘測設計及監造案 ","勞務","工程服務 ","3653760","3525541","112/11/14","112/11/15","嘉義縣－東石 ","否","","非中央政府辦理新臺幣一億元以上之公共工程,非受中央政府補助比率逾工程建造經費百分之五十且補助經費達新臺幣一億元以上之個案公共工程,災後緊急處理、搶修、搶險,災後原地復建,整修工程、拆除工程、疏濬工程、結構補強工程,規劃取得綠建築標章之建築工程 "]
["678","嘉義縣政府 ","嘉義縣水上鄉公所 ","無 ","變更水上都市計畫(都市計畫圖重製專案通盤檢討)都市計畫樁位測定委託技術服務案 ","勞務","都市計劃及景觀建築服務 ","700000","647000","112/11/14","112/11/15","嘉義縣－水上 ","否","","非中央政府辦理新臺幣一億元以上之公共工程 "]
["679","嘉義縣政府 ","嘉義縣水上鄉公所 ","無 ","112~113年度水上鄉轄內各項工程委託勘測設計及監造技術服務開口契約 ","勞務","工程服務 ","8315625","7933929","112/11/23","112/11/27","嘉義縣－水上 ","否","","非中央政府辦理新臺幣一億元以上之公共工程 "]
["680","嘉義縣政府 ","嘉義縣中埔鄉公所 ","衛生福利部 ","中埔鄉同仁及頂埔等2棟社區活動中心耐震補強工程委託規劃設計及監造案 ","勞務","工程服務 ","300000","281000","112/11/02","112/11/03","嘉義縣－中埔 ","否","","整修工程、拆除工程、疏濬工程、結構補強工程 "]
["681","嘉義縣政府 ","嘉義縣竹崎鄉公所 ","無 ","112至113年度本鄉轄內各類公共工程委託勘測設計及監造服務案開口契約1  ","勞務","工程服務 ","9665000","9389500","112/11/10","112/11/20","嘉義縣－竹崎 ","否","","災後緊急處理、搶修、搶險,災後原地復建,整修工程、拆除工程、疏濬工程、結構補強工程 "]
["682","嘉義縣政府 ","嘉義縣竹崎鄉公所 ","無 ","112至113年度本鄉轄內各類公共工程委託勘測設計及監造服務案開口契約2  ","勞務","工程服務 ","9665000","9389500","112/11/10","112/11/20","嘉義縣－竹崎 ","否","","災後緊急處理、搶修、搶險,災後原地復建,整修工程、拆除工程、疏濬工程、結構補強工程 "]
["683","嘉義縣政府 ","嘉義縣竹崎鄉公所 ","無 ","112至113年度本鄉轄內各類公共工程委託勘測設計及監造服務案開口契約3  ","勞務","工程服務 ","9665000","9389500","112/11/10","112/11/22","嘉義縣－竹崎 ","否","","災後緊急處理、搶修、搶險,災後原地復建,整修工程、拆除工程、疏濬工程、結構補強工程 "]
["684","嘉義縣政府 ","嘉義縣梅山鄉公所 ","無 "," 112年7月杜蘇芮及8月卡努颱風-梅山鄉安靖村錦湖山農路復建工程等3件合併案」等4案委託規劃設計及監造技術服務 ","勞務","工程服務 ","757280","748265","112/11/14","112/11/15","嘉義縣－梅山 ","否","","災後緊急處理、搶修、搶險 "]
["685","嘉義縣政府 ","嘉義縣梅山鄉公所 ","無 "," 112年7月杜蘇芮及8月卡努颱風-梅山鄉雙溪村下雙溪野溪災害復建工程等2件合併案等2案委託規劃設計及監造技術服務 ","勞務","工程服務 ","821999","812213","112/11/14","112/11/15","嘉義縣－梅山 ","否","","災後原地復建 "]
["686","嘉義縣政府 ","嘉義縣梅山鄉公所 ","無 ","112年7月杜蘇芮及8月卡努颱風-梅山鄉安靖村詔安寮簡易自來水災害復建工程等2件合併案等2件工程委託規劃設計及監造技術服務 ","勞務","工程服務 ","813280","803598","112/11/14","112/11/15","嘉義縣－梅山 ","否","","災後原地復建 "]
["687","嘉義縣政府 ","嘉義縣梅山鄉公所 ","無 ","112年7月杜蘇芮及8月卡努颱風-梅山鄉半天村12灣支線道路災害復建工程等2件合併案等2件工程委託規劃設計及監造技術服務 ","勞務","工程服務 ","298239","294689","112/11/14","112/11/15","嘉義縣－梅山 ","否","","災後原地復建 "]
["688","嘉義縣政府 ","嘉義縣番路鄉公所 ","無 ","新訂番路都市計畫未來發展地區申請劃設為城鄉發展地區第二類之三委託技術服務案 ","勞務","工程服務 ","2000000","1900000","112/11/09","112/11/16","東部地區－全區 ","否","","整修工程、拆除工程、疏濬工程、結構補強工程 "]
["689","嘉義縣政府 ","嘉義縣番路鄉公所 ","嘉義縣政府 ","112年度圖書館空間改善工程委託勘測設計及監造案 ","勞務","工程服務 ","183022","177419","112/10/30","112/11/07","東部地區－全區 ","否","","整修工程、拆除工程、疏濬工程、結構補強工程 "]
["690","嘉義縣政府 ","嘉義縣大埔鄉公所 ","內政部營建署 ","內政部第三次「提升道路品質計畫(內政部)2.0」等3件工程委託勘測設計及監造服務 ","勞務","工程服務 ","2559612","2546069","112/11/16","112/11/20","嘉義縣－大埔 ","否","","整修工程、拆除工程、疏濬工程、結構補強工程 "]
["691","嘉義縣政府 ","嘉義縣大埔鄉公所 ","經濟部水利署南區水資源分署 ","112年度曾文水庫週邊零星工程-第2期委託勘測設計及監造服務 ","勞務","工程服務 ","375000","375000","112/11/02","112/11/07","嘉義縣－大埔 ","否","","整修工程、拆除工程、疏濬工程、結構補強工程 "]
["692","嘉義縣政府 ","嘉義縣大埔鄉公所 ","經濟部水利署南區水資源分署 ","大埔鄉埔南段908地號臨近曾文水庫蓄水範圍處邊坡保護案委託勘測設計及監造服務 ","勞務","工程服務 ","375000","375000","112/11/16","112/11/17","嘉義縣－大埔 ","否","","非中央政府辦理新臺幣一億元以上之公共工程 "]
["693","嘉義縣政府 ","嘉義縣太保市公所 ","無 ","嘉義縣太保市公所辦公廳舍拆除重建工程委託規劃設計及監造服務第三次勞務契約變更議價案 ","勞務","建築服務 ","446360","406187","112/10/25","112/11/01","嘉義縣－太保 ","否","","規劃取得綠建築標章之建築工程 "]
["694","嘉義縣政府 ","嘉義縣立大林國民中學 ","教育部 ","嘉義縣大林國中老舊廁所整修委託設計監造技術服 務案 ","勞務","建築服務 ","315600","309000","112/11/01","112/11/13","嘉義縣－大林 ","否","","非中央政府辦理新臺幣一億元以上之公共工程 "]
["695","彰化縣政府 ","彰化縣政府 ","內政部營建署 ","彰化縣污水下水道系統發展計畫委託專業服務案 ","勞務","工程服務 ","6180000","5863655","112/10/31","112/11/01","彰化縣－全區 ","否","","非中央政府辦理新臺幣一億元以上之公共工程 "]
["696","彰化縣政府 ","彰化縣政府 ","行政院農業委員會農糧署 ","彰化縣農產冷鏈物流中心委託設計案 ","勞務","建築服務 ","6907068","6561715","112/11/02","112/11/03","彰化縣－溪州 ","否","","規劃取得綠建築標章之建築工程 "]
["697","彰化縣政府 ","彰化縣政府 ","行政院農業委員會漁業署 ","彰化漁港開發案近程(可開港營運)計畫近程第一階段浮動碼頭及漁筏停泊區興建工程(第二期) ","工程","水道、海港、水壩及其他水利工程 ","416000000","416000000","112/10/31","112/11/02","彰化縣－全區 ","已依規定納入辦理節能減碳檢核 ","規劃設計階段納入辦理節能減碳檢核 ",""]
["698","彰化縣政府 ","彰化縣政府 ","無 ","彰化縣員林青年住宅新建統包工程 ","工程","其他用途建築工程 ","242750000","242750000","112/10/31","112/11/01","彰化縣－員林 ","否","","規劃取得綠建築標章之建築工程 "]
["699","彰化縣政府 ","彰化縣政府 ","無 ","彰化縣社會福利場館室內裝修工程委託規劃設計及監造技術服務 ","勞務","建築服務 ","1941540","1941540","112/10/31","112/11/01","彰化縣－彰化 ","否","","非受中央政府補助比率逾工程建造經費百分之五十且補助經費達新臺幣一億元以上之個案公共工程 "]
["700","彰化縣政府 ","彰化縣政府 ","無 ","112年度彰化縣排水系統水利工程委託設計、監造、簽證技術服務開口契約後續擴充 ","勞務","工程服務 ","3720000","3720000","112/10/31","112/11/14","彰化縣－全區 ","否","","非中央政府辦理新臺幣一億元以上之公共工程 "]
["701","彰化縣政府 ","彰化縣彰化市公所 ","無 ","「112年度彰化市民權公有零售市場廁所整修工程委託設計及監造技術服務」採購案 ","勞務","工程服務 ","314225","307941","112/11/10","112/11/16","彰化縣－彰化 ","否","","整修工程、拆除工程、疏濬工程、結構補強工程 "]
["702","彰化縣政府 ","彰化縣彰化市公所 ","無 ","「彰化市民權市場B1F及3F消防設備改善工程委託設計監造技術服務案」 ","勞務","工程服務 ","838490","813335","112/11/15","112/11/23","彰化縣－彰化 ","否","","整修工程、拆除工程、疏濬工程、結構補強工程 "]
["703","彰化縣政府 ","彰化縣溪湖鎮公所 ","無 ","溪湖鎮興安路等周邊道路品質提升計畫設計監造技術服務 ","勞務","工程服務 ","894670","832043","112/11/23","112/11/23","彰化縣－溪湖 ","否","","非中央政府辦理新臺幣一億元以上之公共工程,非受中央政府補助比率逾工程建造經費百分之五十且補助經費達新臺幣一億元以上之個案公共工程 "]
["704","彰化縣政府 ","彰化縣溪湖鎮公所 ","彰化縣政府 ","溪湖鎮環保自然葬區（樹葬）設置工程委託規劃設計及監造技術服務 ","勞務","工程服務 ","407651","380000","112/11/16","112/11/16","彰化縣－溪湖 ","否","","非中央政府辦理新臺幣一億元以上之公共工程,非受中央政府補助比率逾工程建造經費百分之五十且補助經費達新臺幣一億元以上之個案公共工程 "]
["705","彰化縣政府 ","彰化縣二林鎮公所 ","內政部國土管理署 ","「彰化縣二林鎮廣興里及中西里等既有道路養護整建計畫(一)」委託設計監造 ","勞務","工程服務 ","482000","462720","112/11/10","112/11/13","彰化縣－二林 ","否","","整修工程、拆除工程、疏濬工程、結構補強工程 "]
["706","彰化縣政府 ","彰化縣二林鎮公所 ","內政部國土管理署 ","「彰化縣二林鎮廣興里及中西里等既有道路養護整建計畫(二)」委託設計監造 ","勞務","工程服務 ","482000","462720","112/11/10","112/11/13","彰化縣－二林 ","否","","整修工程、拆除工程、疏濬工程、結構補強工程 "]
["707","彰化縣政府 ","彰化縣二林鎮公所 ","內政部國土管理署 ","「彰化縣二林鎮西庄里及梅芳里等既有道路養護整建計畫」委託設計監造 ","勞務","工程服務 ","482000","462720","112/11/10","112/11/13","彰化縣－二林 ","否","","整修工程、拆除工程、疏濬工程、結構補強工程 "]
["708","彰化縣政府 ","彰化縣二林鎮公所 ","內政部國土管理署 ","「彰化縣二林鎮中正國小校園校園周邊暨行車安全道路改善工程」委託設計監造 ","勞務","工程服務 ","650000","630500","112/11/17","112/11/20","彰化縣－二林 ","否","","整修工程、拆除工程、疏濬工程、結構補強工程 "]
["709","彰化縣政府 ","彰化縣二林鎮公所 ","交通部公路局 ","「二林鎮新生國小通學步道改善工程」委託設計監造 ","勞務","工程服務 ","472500","448875","112/11/17","112/11/17","彰化縣－二林 ","否","","整修工程、拆除工程、疏濬工程、結構補強工程 "]
["710","彰化縣政府 ","彰化縣線西鄉公所 ","內政部營建署 ","「112年彰化縣線西鄉沿海路一段至二段等道路品質提昇計畫」委託規劃設計、監造服務案 ","勞務","工程服務 ","1025000","779000","112/11/23","112/11/29","彰化縣－線西 ","否","","非中央政府辦理新臺幣一億元以上之公共工程 "]
["711","彰化縣政府 ","彰化縣秀水鄉公所 ","無 ","彰化縣秀水鄉秀水村港墘公設活動中心委託設計監造服務案 ","勞務","建築服務 ","1565342","1518382","112/11/16","112/11/17","彰化縣－秀水 ","否","","非受中央政府補助比率逾工程建造經費百分之五十且補助經費達新臺幣一億元以上之個案公共工程 "]
["712","彰化縣政府 ","彰化縣大村鄉公所 ","無 ","彰化縣大村鄉黃厝段451地號興建噍吧哖事件紀念園區興辦事業計畫含簡易水土保持計畫等 ","勞務","綜合工程服務 ","1916250","1858700","112/11/10","112/11/20","彰化縣－大村 ","否","","非中央政府辦理新臺幣一億元以上之公共工程,非受中央政府補助比率逾工程建造經費百分之五十且補助經費達新臺幣一億元以上之個案公共工程 "]
["713","彰化縣政府 ","彰化縣田尾鄉公所 ","無 ","田尾鄉民代表會廳舍整修工程設計監造委託技術服務案 ","勞務","建築服務 ","306556","245245","112/11/02","112/11/06","彰化縣－田尾 ","否","","非受中央政府補助比率逾工程建造經費百分之五十且補助經費達新臺幣一億元以上之個案公共工程 "]
["714","彰化縣政府 ","彰化縣芳苑鄉公所 ","彰化縣政府 ","路上北農地重劃區芳苑鄉芳興段404、芳頂段32地號等農路改善工程等4案委託設計監造技術服務 ","勞務","工程服務 ","429800","429800","112/11/17","112/11/20","彰化縣－芳苑 ","否","","非受中央政府補助比率逾工程建造經費百分之五十且補助經費達新臺幣一億元以上之個案公共工程 "]
["715","彰化縣政府 ","彰化縣芳苑鄉公所 ","彰化縣政府 ","113年度芳苑鄉平地農路改善計畫委託設計監造技術服務 ","勞務","工程服務 ","346250","346250","112/11/17","112/11/20","彰化縣－芳苑 ","否","","非受中央政府補助比率逾工程建造經費百分之五十且補助經費達新臺幣一億元以上之個案公共工程 "]
["716","彰化縣政府 ","彰化縣立陽明國民中學 ","教育部體育署、彰化縣政府 ","陽明運動公園整修工程委託設計監造技術服務 ","勞務","工程服務 ","908581","908581","112/10/31","112/11/01","彰化縣－彰化 ","否","","非中央政府辦理新臺幣一億元以上之公共工程,整修工程、拆除工程、疏濬工程、結構補強工程 "]
["717","彰化縣政府 ","彰化縣立彰泰國民中學 ","彰化縣政府 ","彰泰國中聚英樓南側老舊廁所整修工程規劃設計監造委託技術服務案契約變更 ","勞務","建築服務 ","86992","86992","112/11/10","112/11/10","彰化縣－彰化 ","否","","整修工程、拆除工程、疏濬工程、結構補強工程 "]
["718","彰化縣政府 ","彰化縣彰化市民生國民小學 ","彰化縣政府 ","陽明門球場及周邊整建工程設計監造委託服務 ","勞務","工程服務 ","227455","226318","112/10/30","112/11/02","中部地區－全區 ","否","","非中央政府辦理新臺幣一億元以上之公共工程,非受中央政府補助比率逾工程建造經費百分之五十且補助經費達新臺幣一億元以上之個案公共工程 "]
["719","彰化縣政府 ","彰化縣鹿港鎮鹿港國民小學 ","彰化縣政府 ","「112年度整建教育設施經費－活動中心屋頂防水隔熱工程」委託規劃設計監造技術服務採購案 ","勞務","工程服務 ","252482","252000","112/11/23","112/11/24","彰化縣－全區 ","否","","非中央政府辦理新臺幣一億元以上之公共工程,非受中央政府補助比率逾工程建造經費百分之五十且補助經費達新臺幣一億元以上之個案公共工程 "]
["720","彰化縣政府 ","彰化縣福興鄉日新國民小學 ","彰化縣政府 ","日新國小教室屋頂防水隔熱整修工程委託設計監造案 ","勞務","工程服務 ","206939","206393","112/11/03","112/11/06","彰化縣－福興 ","否","","整修工程、拆除工程、疏濬工程、結構補強工程 "]
["721","彰化縣政府 ","彰化縣大城鄉大城國民小學 ","彰化縣政府 ","大城國小潭墘校區特色遊學宿舍整修工程委託設計監造技術服務採購案 ","勞務","建築服務 ","290520","270184","112/11/01","112/11/01","彰化縣－大城 ","否","","非受中央政府補助比率逾工程建造經費百分之五十且補助經費達新臺幣一億元以上之個案公共工程 "]
["722","彰化縣政府 ","彰化縣溪州鄉南州國民小學 ","教育部體育署 ","112年度南州國小球場修繕工程委託規劃設計監造技術服務 ","勞務","工程服務 ","165322","165322","112/11/02","112/11/06","彰化縣－溪州 ","否","","整修工程、拆除工程、疏濬工程、結構補強工程 "]
["723","臺中市政府 ","臺中市生命禮儀管理處 ","無 ","112年大甲殯儀館舊建築物申請補辦執照可行性評估 ","勞務","建築服務 ","1386000","1344420","112/11/23","112/11/23","臺中市－大甲區 ","否","","整修工程、拆除工程、疏濬工程、結構補強工程 "]
["724","臺中市政府 ","臺中市政府教育局 ","無 ","臺中市立廍子國民中學第一期校舍新建工程 ","工程","教育用建築工程 ","360171164","329000000","112/11/23","112/11/24","中部地區－全區 ","否","","規劃取得綠建築標章之建築工程 "]
["725","臺中市政府 ","臺中市政府教育局 ","無 ","臺中市北屯區南興國民小學第一期校舍新建工程 ","工程","教育用建築工程 ","374646139","312000000","112/11/23","112/11/24","中部地區－全區 ","否","","規劃取得綠建築標章之建築工程 "]
["726","臺中市政府 ","臺中市立新社高級中學 ","教育部國民及學前教育署 ","112年度新龍崗童軍營地修繕工程設計監造 ","勞務","工程服務 ","293348","290415","112/11/15","112/11/16","臺中市－新社區 ","否","","整修工程、拆除工程、疏濬工程、結構補強工程 "]
["727","臺中市政府 ","臺中市立啟聰學校 ","無 ","113年度國中小部建築物修繕工程委託設計監造技術服務案 ","勞務","建築服務 ","798522","798522","112/11/30","112/11/30","臺中市－西屯區 ","否","","整修工程、拆除工程、疏濬工程、結構補強工程 "]
["728","臺中市政府 ","臺中市立東峰國民中學 ","無 ","臺中市立東峰國民中學玉峰館室內裝修工程委託規劃設計監造技術服務 ","勞務","建築服務 ","304832","300000","112/11/24","112/11/27","臺中市－東區 ","否","","整修工程、拆除工程、疏濬工程、結構補強工程 "]
["729","臺中市政府 ","臺中市立五權國民中學 ","教育部國民及學前教育署 ","五權國中109年度至賢館男生、女生老舊廁所整修工程委託規劃設計監造技術服務勞務採購第一次契約變更 ","勞務","工程服務 ","49905","49905","112/11/16","112/11/17","臺中市－北區 ","否","","整修工程、拆除工程、疏濬工程、結構補強工程 "]
["730","臺中市政府 ","臺中市立中山國民中學 ","臺中市政府教育局 ","新建10公尺射擊靶場設計監造技術服務 ","勞務","建築服務 ","467948","460000","112/11/22","112/11/23","臺中市－西屯區 ","否","","非中央政府辦理新臺幣一億元以上之公共工程,非受中央政府補助比率逾工程建造經費百分之五十且補助經費達新臺幣一億元以上之個案公共工程 "]
["731","臺中市政府 ","臺中市立四張犁國民中學 ","臺中市政府教育局 ","臺中市立四張犁國民中學非營利幼兒園-新建公共化幼兒園園舍工程委託規劃設計及監造服務採購案第一次變更 ","勞務","建築服務 ","991904","991904","112/10/20","112/11/17","臺中市－北屯區 ","否","","規劃取得綠建築標章之建築工程 "]
["732","臺中市政府 ","臺中市立潭子國民中學 ","無 ","英才樓無照校舍補領建使照-建築物結構外審勞務委託案 ","勞務","工程服務 ","840000","835987","112/11/22","112/11/23","臺中市－潭子區 ","否","","非中央政府辦理新臺幣一億元以上之公共工程,非受中央政府補助比率逾工程建造經費百分之五十且補助經費達新臺幣一億元以上之個案公共工程 "]
["733","臺中市政府 ","臺中市立太平國民中學 ","臺中市政府教育局 ","｢太平國中-育樂館地板整修工程」規劃設計及監造勞務採購 ","勞務","建築服務 ","300000","300000","112/10/31","112/11/06","臺中市－太平區 ","否","","整修工程、拆除工程、疏濬工程、結構補強工程 "]
["734","臺中市政府 ","臺中市立和平國民中學 ","教育部國民及學前教育署 ","112年度「教學大樓廁所整修工程」委託設計監造技術服務 ","勞務","工程服務 ","280000","280000","112/10/31","112/11/03","臺中市－和平區 ","否","","非中央政府辦理新臺幣一億元以上之公共工程 "]
["735","臺中市政府 ","臺中市西區忠孝國民小學 ","教育部國民及學前教育署 ","「臺中市西區忠孝國民小學三民樓南側及大明樓南側老舊廁所整修工程委託規劃設計監造技術服務」工程決標後新增項目 ","勞務","工程服務 ","186442","186442","112/11/21","112/11/22","臺中市－全區 ","否","","非中央政府辦理新臺幣一億元以上之公共工程,非受中央政府補助比率逾工程建造經費百分之五十且補助經費達新臺幣一億元以上之個案公共工程 "]
["736","臺中市政府 ","臺中市西區大同國民小學 ","教育部國民及學前教育署 ","得藝樓老舊廁所整修工程委託設計監造技術服務 ","勞務","建築服務 ","254430","251471","112/10/18","112/11/17","臺中市－西區 ","否","","非中央政府辦理新臺幣一億元以上之公共工程,整修工程、拆除工程、疏濬工程、結構補強工程 "]
["737","臺中市政府 ","臺中市西區大勇國民小學 ","教育部國民及學前教育署 ","109年度北棟教室東側廁所整修工程-規劃設計監造委託技術服務採購第2次變更契約 ","勞務","建築服務 ","90634","89910","112/10/26","112/11/01","臺中市－西區 ","否","","整修工程、拆除工程、疏濬工程、結構補強工程 "]
["738","臺中市政府 ","臺中市北屯區陳平國民小學 ","無 ","112年後操場體健設施改善工程委託設計及監造技術服務採購案 ","勞務","工程服務 ","190500","189928","112/11/24","112/11/28","臺中市－北屯區 ","否","","非中央政府辦理新臺幣一億元以上之公共工程 "]
["739","臺中市政府 ","臺中市南屯區惠文國民小學 ","臺中市政府教育局 ","臺中市南屯區惠文國民小學112年度老舊廁所整修委託規劃設計監造技術服務 ","勞務","工程服務 ","904244","904244","112/11/01","112/11/08","臺中市－南屯區 ","否","","整修工程、拆除工程、疏濬工程、結構補強工程 "]
["740","臺中市政府 ","臺中市北屯區仁美國民小學 ","無 ","112年「臺中市仁美國民小學新建公共化幼兒園環境裝修工程委託設計監造案JMES1121107」採購案 ","勞務","建築服務 ","498620","498620","112/11/07","112/11/08","臺中市－北屯區 ","否","","非中央政府辦理新臺幣一億元以上之公共工程 "]
["741","臺中市政府 ","臺中市北屯區仁美國民小學 ","無 ","臺中市北屯區仁美國民小學 新建公共化幼兒園空調工程委託設計監造案 ","勞務","工程服務 ","212728","197837","112/11/22","112/11/24","中部地區－全區 ","否","","非中央政府辦理新臺幣一億元以上之公共工程 "]
["742","臺中市政府 ","臺中市大甲區西岐國民小學 ","教育部國民及學前教育署、臺中市政府教育局 ","西岐國小教學大樓廊道改善工程委託規劃設計監造服務 ","勞務","工程服務 ","509172","496442","112/11/03","112/11/07","臺中市－大甲區 ","否","","整修工程、拆除工程、疏濬工程、結構補強工程 "]
["743","臺中市政府 ","臺中市東勢區明正國民小學 ","臺中市政府教育局 ","(112004)112年度臺中市東勢區明正國民小學跑道及周邊整建工程委託規劃設計監造技術服務採購案 ","勞務","建築服務 ","534756","534756","112/11/16","112/11/28","臺中市－東勢區 ","否","","非中央政府辦理新臺幣一億元以上之公共工程,非受中央政府補助比率逾工程建造經費百分之五十且補助經費達新臺幣一億元以上之個案公共工程 "]
["744","臺中市政府 ","臺中市大里區立新國民小學 ","臺中市政府教育局 ","112年公立國中小學老舊廁所整修設計監造勞務委託採購案 ","勞務","建築服務 ","378979","377000","112/09/28","112/11/16","臺中市－大里區 ","否","","整修工程、拆除工程、疏濬工程、結構補強工程 "]
["745","臺中市政府 ","臺中市政府建設局 ","內政部國土管理署 ","西屯區市政路延伸工程-第2標(安和路至環中路三段)(含自來水管線工程) ","工程","其他土木工程 ","2991713750","2991713750","112/11/10","112/11/13","臺中市－西屯區 ","已依規定納入辦理節能減碳檢核 ","規劃設計階段納入辦理節能減碳檢核 ",""]
["746","臺中市政府 ","臺中市政府建設局 ","無 ","臺中市巨蛋體育館興建工程 ","工程","教育用建築工程 ","9172400000","9172400000","112/11/10","112/11/13","臺中市－北屯區 ","否","","非中央政府辦理新臺幣一億元以上之公共工程,非受中央政府補助比率逾工程建造經費百分之五十且補助經費達新臺幣一億元以上之個案公共工程,規劃取得綠建築標章之建築工程 "]
["747","臺中市政府 ","臺中市政府建設局 ","無 ","｢東勢區埤豐橋改建工程｣後續擴充 ","工程","橋樑, 高架快速道路, 隧道及地鐵 ","327700000","327700000","112/11/23","112/11/24","臺中市－豐原區,臺中市－東勢區 ","否","","非中央政府辦理新臺幣一億元以上之公共工程 "]
["748","臺中市政府 ","臺中市政府建設局 ","無 ","臺中市14期重劃區等公園滯洪空間優化改善規劃 ","勞務","綜合工程服務 ","800000","770000","112/09/15","112/11/21","臺中市－北屯區,臺中市－南屯區 ","否","","非中央政府辦理新臺幣一億元以上之公共工程 "]
["749","臺中市政府 ","臺中市新建工程處 ","無 ","臺中綠美圖特殊裝修及設備工程 ","工程","其他用途建築工程 ","488036555","488036555","112/11/13","112/11/14","臺中市－西屯區 ","否","","非中央政府辦理新臺幣一億元以上之公共工程 "]
["750","臺中市政府 ","臺中市新建工程處 ","無 ","112年度臺中市未開闢公共設施保留地(含道路、公園、綠地、廣場)雜草廢棄物清運及圍籬架設案第一次契約變更 ","勞務","工程服務 ","536448","536448","112/11/06","112/11/08","臺中市－全區 ","否","","非受中央政府補助比率逾工程建造經費百分之五十且補助經費達新臺幣一億元以上之個案公共工程 "]
["751","臺中市政府 ","臺中市新建工程處 ","無 ","111年度臺中市共融公園改善工程委託設計監造技術服務(第一標)後續擴充 ","勞務","工程服務 ","1134310","1134310","112/10/30","112/11/06","臺中市－中區,臺中市－東區,臺中市－南區,臺中市－西區,臺中市－北區,臺中市－西屯區,臺中市－沙鹿區,臺中市－梧棲區,臺中市－清水區,臺中市－大甲區,臺中市－外埔區,臺中市－大安區 ","否","","非中央政府辦理新臺幣一億元以上之公共工程,非受中央政府補助比率逾工程建造經費百分之五十且補助經費達新臺幣一億元以上之個案公共工程 "]
["752","臺中市政府 ","臺中市養護工程處 ","內政部營建署 ","臺中市南區忠明南路(南屯路一段至國光路)道路改善工程 ","工程","快速道路(不含高架快速道路), 街道, 馬路, 鐵路及機場跑道 ","138772998","126500000","112/11/14","112/11/16","臺中市－南區 ","已依規定納入辦理節能減碳檢核 ","規劃設計階段納入辦理節能減碳檢核 ",""]
["753","臺中市政府 ","臺中市養護工程處 ","內政部營建署 ","臺中市北屯區及鄰近區域道路及人行道改善工程委託設計監造技術服務案 ","勞務","工程服務 ","13597800","13244874","112/11/22","112/11/27","臺中市－北區,臺中市－北屯區 ","否","","非受中央政府補助比率逾工程建造經費百分之五十且補助經費達新臺幣一億元以上之個案公共工程 "]
["754","臺中市政府 ","臺中市養護工程處 ","內政部營建署 ","臺中市北區及鄰近區域道路及人行道改善工程委託設計監造技術服務案 ","勞務","工程服務 ","13157000","12530385","112/11/22","112/11/27","臺中市－北區,臺中市－北屯區 ","否","","非受中央政府補助比率逾工程建造經費百分之五十且補助經費達新臺幣一億元以上之個案公共工程 "]
["755","臺中市政府 ","臺中市養護工程處 ","無 ","112年度西屯區市政特區及鄰近區域光亮試辦計劃路燈工程委託設計監造技術服務 ","勞務","工程服務 ","983799","931658","112/11/02","112/11/03","臺中市－全區 ","否","","非中央政府辦理新臺幣一億元以上之公共工程 "]
["756","臺中市政府 ","臺中市養護工程處 ","無 ","臺中市節能路燈換裝暨維護委託可行性評估服務案 ","勞務","綜合工程服務 ","500000","486000","112/11/01","112/11/02","臺中市－全區 ","否","","非中央政府辦理新臺幣一億元以上之公共工程 "]
["757","臺中市政府 ","臺中市養護工程處 ","無 ","110年度臺中市后里、東勢等區道路及排水等小型工程委託設計監造技術服務案(第二次契約變更) ","勞務","工程服務 ","757633","757633","112/11/17","112/11/21","臺中市－后里區,臺中市－東勢區 ","否","","非中央政府辦理新臺幣一億元以上之公共工程 "]
["758","臺中市政府 ","臺中市養護工程處 ","無 ","112年度臺中市小型工程委外設計監造案(清水區、大安區及鄰近區域) (第一次後續擴充) ","勞務","工程服務 ","2048000","2048000","112/11/27","112/11/28","臺中市－清水區,臺中市－大安區 ","否","","整修工程、拆除工程、疏濬工程、結構補強工程 "]
["759","臺中市政府 ","臺中市政府經濟發展局 ","無 ","臺中市大肚公有零售市場A棟耐震能力補強工程委託設計監造 ","勞務","工程服務 ","250000","250000","112/11/02","112/11/03","臺中市－大肚區 ","否","","整修工程、拆除工程、疏濬工程、結構補強工程 "]
["760","臺中市政府 ","臺中市政府經濟發展局 ","無 ","臺中市東光公有零售市場B、C、D、E棟耐震能力補強工程委託設計監造 ","勞務","工程服務 ","920000","906200","112/11/02","112/11/06","臺中市－北屯區 ","否","","整修工程、拆除工程、疏濬工程、結構補強工程 "]
["761","臺中市政府 ","臺中市政府交通局 ","無 ","臺中市代辦經費增設交通設施工程委託設計監造 ","勞務","工程服務 ","1192700","1192700","112/11/21","112/11/27","中部地區－全區 ","否","","非受中央政府補助比率逾工程建造經費百分之五十且補助經費達新臺幣一億元以上之個案公共工程 "]
["762","臺中市政府 ","臺中市政府觀光旅遊局 ","內政部國土管理署 ","臺中市石岡區東豐綠廊道周遭綠美化景觀營造工程委託設計監造技術服務 ","勞務","工程服務 ","698622","677663","112/11/14","112/11/16","臺中市－石岡區 ","否","","非中央政府辦理新臺幣一億元以上之公共工程 "]
["763","臺中市政府 ","臺中市政府觀光旅遊局 ","無 ","台中海洋館相關設施及周邊環境改善工程委託設計技術服務 ","勞務","工程服務 ","1341789","1288117","112/11/16","112/11/28","臺中市－清水區 ","否","","非中央政府辦理新臺幣一億元以上之公共工程 "]
["764","臺中市政府 ","臺中市風景區管理所 ","無 ","112年度臺中市風景區天然災害復建工程委託設計監造技術服務-後續擴充 ","勞務","綜合工程服務 ","606271","600085","112/11/02","112/11/08","臺中市－北屯區,臺中市－大甲區,臺中市－大安區 ","否","","非中央政府辦理新臺幣一億元以上之公共工程,災後緊急處理、搶修、搶險 "]
["765","臺中市政府 ","臺中市政府都市發展局 ","內政部營建署 ","臺中市高美地區里海社區及海洋文化推廣計畫 ","勞務","都市計劃及景觀建築服務 ","1000000","1000000","112/11/29","112/11/30","臺中市－清水區 ","否","","非中央政府辦理新臺幣一億元以上之公共工程,非受中央政府補助比率逾工程建造經費百分之五十且補助經費達新臺幣一億元以上之個案公共工程 "]
["766","臺中市政府 ","臺中市政府都市發展局 ","無 ","112年本市8至15層集合式住宅未辦理建築物公共安全檢查申報公寓大廈輔導訪視計畫 ","勞務","建築服務 ","300000","300000","112/10/31","112/11/01","臺中市－全區 ","否","","非中央政府辦理新臺幣一億元以上之公共工程 "]
["767","臺中市政府 ","臺中市政府住宅發展工程處 ","內政部營建署 ","112年度臺中市基本居住水準家戶清查作業及住宅政策研擬委託專業服務案 ","勞務","都市計劃及景觀建築服務 ","1400000","1400000","112/10/26","112/11/20","臺中市－全區 ","否","","非中央政府辦理新臺幣一億元以上之公共工程,非受中央政府補助比率逾工程建造經費百分之五十且補助經費達新臺幣一億元以上之個案公共工程 "]
["768","臺中市政府 ","臺中市政府運動局 ","無 ","臺中市國際足球運動休閒園區興建工程公共藝術設置委託專業服務 ","勞務","工程服務 ","1163794","1160000","112/11/17","112/11/21","臺中市－南屯區 ","否","","非中央政府辦理新臺幣一億元以上之公共工程,非受中央政府補助比率逾工程建造經費百分之五十且補助經費達新臺幣一億元以上之個案公共工程 "]
["769","臺中市政府 ","臺中市豐原區公所 ","無 ","臺中市豐原區戶政事務所無障礙電梯新設工程委託設計監造(第一次變更設計) ","勞務","工程服務 ","34398","34398","112/11/07","112/11/24","臺中市－豐原區 ","否","","非中央政府辦理新臺幣一億元以上之公共工程,非受中央政府補助比率逾工程建造經費百分之五十且補助經費達新臺幣一億元以上之個案公共工程,整修工程、拆除工程、疏濬工程、結構補強工程 "]
["770","臺中市政府 ","臺中市豐原區公所 ","無 ","「臺中市豐原區113年度寬頻管道維修及維護工程(開口契約)」委託設計監造 ","勞務","工程服務 ","391974","319552","112/11/22","112/11/22","臺中市－豐原區 ","否","","非中央政府辦理新臺幣一億元以上之公共工程,非受中央政府補助比率逾工程建造經費百分之五十且補助經費達新臺幣一億元以上之個案公共工程,整修工程、拆除工程、疏濬工程、結構補強工程 "]
["771","臺中市政府 ","臺中市太平區公所 ","無 ","「頭汴、聖和里聯合活動中心新建工程」委託細部設計暨監造技術服務 ","勞務","建築服務 ","2871000","2871000","112/11/15","112/11/23","臺中市－太平區 ","否","","非中央政府辦理新臺幣一億元以上之公共工程 "]
["772","臺中市政府 ","臺中市沙鹿區公所 ","無 ","112年度臺中市沙鹿區公所天然災害緊急搶險搶修工程(開口契約)委託設計監造技術服務-第一次後續擴充 ","勞務","工程服務 ","322543","322543","112/11/01","112/11/07","臺中市－沙鹿區 ","否","","非中央政府辦理新臺幣一億元以上之公共工程,災後緊急處理、搶修、搶險 "]
["773","臺中市政府 ","臺中市大甲區公所 ","內政部國土管理署 ","臺中市大甲區東陽國小及致用高中人行道改善工程委託規劃設計監造技術服務案 ","勞務","工程服務 ","1022831","966000","112/11/22","112/11/27","臺中市－大甲區 ","否","","非中央政府辦理新臺幣一億元以上之公共工程,整修工程、拆除工程、疏濬工程、結構補強工程 "]
["774","臺中市政府 ","臺中市神岡區公所 ","無 ","112年度神岡區小型工程第二次後續擴充委託設計監造 ","勞務","工程服務 ","83283","83283","112/11/14","112/11/24","臺中市－神岡區 ","否","","非受中央政府補助比率逾工程建造經費百分之五十且補助經費達新臺幣一億元以上之個案公共工程 "]
["775","臺中市政府 ","臺中市大雅區公所 ","無 ","112年臺中市大雅區路面整修工程委託設計監造技術服務 ","勞務","工程服務 ","638525","619370","112/11/15","112/11/16","臺中市－大雅區 ","否","","非中央政府辦理新臺幣一億元以上之公共工程,非受中央政府補助比率逾工程建造經費百分之五十且補助經費達新臺幣一億元以上之個案公共工程 "]
["776","臺中市政府 ","臺中市后里區公所 ","無 ","113年度后里區公共設施改善工程(開口契約)-委託技術服務案 ","勞務","工程服務 ","1150000","1115500","112/11/29","112/11/30","臺中市－后里區 ","否","","整修工程、拆除工程、疏濬工程、結構補強工程 "]
["777","臺中市政府 ","臺中市霧峰區公所 ","無 ","112年度霧峰區小型工程施政計畫(開口契約)委託設計監造技術服務 ","勞務","綜合工程服務 ","157500","141750","112/10/31","112/11/01","臺中市－霧峰區 ","否","","非中央政府辦理新臺幣一億元以上之公共工程 "]
["778","臺中市政府 ","臺中市霧峰區公所 ","無 ","112年度霧峰區登山步道、自行車道暨青桐林生態園區設施維護工程(開口契約)委託設計監造技術服務－第一次後續擴充 ","勞務","綜合工程服務 ","63110","63110","112/11/01","112/11/02","臺中市－霧峰區 ","否","","非中央政府辦理新臺幣一億元以上之公共工程 "]
["779","臺中市政府 ","臺中市龍井區公所 ","無 ","112年度龍井區路燈維修及零星增設工程委託監造服務-第二次後續擴充 ","勞務","工程服務 ","37781","37781","112/10/27","112/11/01","臺中市－龍井區 ","否","","非中央政府辦理新臺幣一億元以上之公共工程,非受中央政府補助比率逾工程建造經費百分之五十且補助經費達新臺幣一億元以上之個案公共工程 "]
["780","臺中市政府 ","臺中市龍井區公所 ","無 ","112年度龍井區公共建設維護小型工程委託設計監造技術服務-後續擴充 ","勞務","工程服務 ","300000","300000","112/11/07","112/11/10","臺中市－龍井區 ","否","","非中央政府辦理新臺幣一億元以上之公共工程,非受中央政府補助比率逾工程建造經費百分之五十且補助經費達新臺幣一億元以上之個案公共工程 "]
["781","臺中市政府 ","臺中市和平區公所 ","內政部 ","112年度「提升道路品質計畫(內政部)2.0」-臺中市和平區烏石坑社區道路改善工程設計監造 ","勞務","工程服務 ","1270480","1244964","112/11/14","112/11/23","中部地區－全區 ","否","","整修工程、拆除工程、疏濬工程、結構補強工程 "]
["782","臺中市政府 ","臺中市和平區公所 ","內政部 ","112年度「提升道路品質計畫(內政部)2.0」-臺中市和平區達觀里天嶺巷社區道路改善工程設計監造 ","勞務","工程服務 ","1270480","1244964","112/11/14","112/11/24","中部地區－全區 ","否","","整修工程、拆除工程、疏濬工程、結構補強工程 "]
["783","臺中市政府 ","臺中市和平區公所 ","內政部 ","112年度「提升道路品質計畫(內政部)2.0」-臺中市和平區自由里社區道路改善工程設計監造 ","勞務","工程服務 ","1270480","1244964","112/11/14","112/11/24","中部地區－全區 ","否","","整修工程、拆除工程、疏濬工程、結構補強工程 "]
["784","臺中市政府 ","臺中市和平區公所 ","原住民族委員會 ","前瞻基礎建設計畫-城鄉建設-原民部落營造(第四期112-113年)第2次核定-和平區達觀里桃山部落雪山坑環境改善工程設計監造 ","勞務","工程服務 ","549600","549600","112/11/14","112/11/24","中部地區－全區 ","否","","整修工程、拆除工程、疏濬工程、結構補強工程 "]
["785","臺中市政府 ","臺中市和平區公所 ","臺中市政府 ","112年6、7月（含杜蘇芮颱風）豪雨-和平區梨山里松茂林道仁壽橋前下邊坡災後復建工程設計監造 ","勞務","工程服務 ","481425","476840","112/11/14","112/11/24","中部地區－全區 ","否","","整修工程、拆除工程、疏濬工程、結構補強工程 "]
["786","臺中市政府 ","臺中市和平區公所 ","臺中市政府 ","112年6、7月（含杜蘇芮颱風）豪雨-和平區自由里三叉坑部落擋土牆災後復建工程設計監造 ","勞務","工程服務 ","283500","280800","112/11/20","112/11/24","中部地區－全區 ","否","","整修工程、拆除工程、疏濬工程、結構補強工程 "]
["787","臺中市政府 ","臺中市和平區公所 ","臺中市政府 ","112年8月卡努颱風-和平區梨山里松茂段13-3號地號邊坡崩塌災後復建工程設計監造 ","勞務","工程服務 ","516075","511160","112/11/20","112/11/23","中部地區－全區 ","否","","整修工程、拆除工程、疏濬工程、結構補強工程 "]
["788","臺中市政府 ","臺中市大安區公所 ","臺中市政府水利局 ","113年度臺中市大安區公所水利局及其他單位補助款等工程委託設計監造技術服務(開口契約) ","勞務","工程服務 ","1573729","1573729","112/11/09","112/11/13","臺中市－大安區 ","否","","非中央政府辦理新臺幣一億元以上之公共工程 "]
["789","臺中市政府 ","臺中市大安區公所 ","臺中市政府建設局 ","113年度臺中市大安區公所小型建設款(含建設局補助)等工程委託設計監造技術服務(開口契約) ","勞務","工程服務 ","1573729","1495000","112/11/14","112/11/16","臺中市－大安區 ","否","","非中央政府辦理新臺幣一億元以上之公共工程 "]
["790","臺北市政府 ","臺北市立南湖高級中學 ","臺北市政府教育局 ","新建沙灘排球場工程暨水土保持計畫委託規劃設計技術服務 ","勞務","工程服務 ","1004393","1004393","112/11/28","112/11/28","臺北市－內湖區 ","否","","非受中央政府補助比率逾工程建造經費百分之五十且補助經費達新臺幣一億元以上之個案公共工程 "]
["791","臺北市政府 ","臺北市立士林國民中學 ","臺北市政府教育局 ","司令台周邊改善工程委託設計服務勞務採購 ","勞務","工程服務 ","144999","144999","112/11/20","112/11/20","臺北市－士林區 ","否","","整修工程、拆除工程、疏濬工程、結構補強工程 "]
["792","臺北市政府 ","臺北市立北投國民中學 ","教育部國民及學前教育署 ","113年度D、E棟廁所整修工程委託規劃設計及監造技術服務案 ","勞務","工程服務 ","334076","334076","112/10/04","112/11/03","臺北市－北投區 ","否","","非中央政府辦理新臺幣一億元以上之公共工程,整修工程、拆除工程、疏濬工程、結構補強工程 "]
["793","臺北市政府 ","臺北市立天母國民中學 ","無 ","113年度廁所整修工程(2期，丁梯)委託設計監造技術服務 ","勞務","工程服務 ","531400","531400","112/11/15","112/11/16","臺北市－士林區 ","否","","非中央政府辦理新臺幣一億元以上之公共工程,非受中央政府補助比率逾工程建造經費百分之五十且補助經費達新臺幣一億元以上之個案公共工程,整修工程、拆除工程、疏濬工程、結構補強工程 "]
["794","臺北市政府 ","臺北市中山區大直國民小學 ","臺北市政府教育局 ","113年游泳池電力改善工程委託技術服務 ","勞務","工程服務 ","186340","186340","112/11/21","112/11/23","臺北市－中山區 ","否","","整修工程、拆除工程、疏濬工程、結構補強工程 "]
["795","臺北市政府 ","臺北市士林區天母國民小學 ","臺北市政府教育局 ","111年度活動中心綜合球場暨演藝廳整修工程委託設計監造技術服務案後續擴充 ","勞務","工程服務 ","240178","240178","112/10/19","112/11/14","臺北市－士林區 ","否","","整修工程、拆除工程、疏濬工程、結構補強工程 "]
["796","臺北市政府 ","臺北市政府工務局新建工程處 ","無 ","臺北市文山區力行國民小學活動中心新建工程 ","工程","教育用建築工程 ","767712000","767712000","112/11/13","112/11/22","臺北市－文山區 ","否","","非中央政府辦理新臺幣一億元以上之公共工程,非受中央政府補助比率逾工程建造經費百分之五十且補助經費達新臺幣一億元以上之個案公共工程,規劃取得綠建築標章之建築工程 "]
["797","臺北市政府 ","臺北市政府工務局公園路燈工程管理處 ","無 ","永昌(中正184號)公園擴建工程及大安414號(金華巷)公園整建工程委託設計及監造技術服務-第4次契約變更 ","勞務","工程服務 ","207289","207289","112/11/10","112/11/16","臺北市－中正區,臺北市－大安區 ","否","","非中央政府辦理新臺幣一億元以上之公共工程,非受中央政府補助比率逾工程建造經費百分之五十且補助經費達新臺幣一億元以上之個案公共工程 "]
["798","臺北市政府 ","臺北市政府工務局公園路燈工程管理處 ","無 ","113年度仙岩、興福、黎忠、三興公園整建工程委託設計監造技術服務案 ","勞務","工程服務 ","2255000","2255000","112/11/13","112/11/14","臺北市－信義區,臺北市－文山區 ","否","","非中央政府辦理新臺幣一億元以上之公共工程,非受中央政府補助比率逾工程建造經費百分之五十且補助經費達新臺幣一億元以上之個案公共工程 "]
["799","臺北市政府 ","臺北市政府工務局水利工程處 ","無 ","109年度水利建造物檢測工作(111年續約)-變更 ","勞務","工程服務 ","106700","106000","112/10/24","112/11/21","北部地區－全區 ","否","","非受中央政府補助比率逾工程建造經費百分之五十且補助經費達新臺幣一億元以上之個案公共工程 "]
["800","臺北市政府 ","臺北市政府工務局水利工程處 ","無 ","大龍抽水站擴建站新建工程委託監造工作 ","勞務","工程服務 ","8433584","8200000","112/11/03","112/11/06","北部地區－全區 ","否","","非受中央政府補助比率逾工程建造經費百分之五十且補助經費達新臺幣一億元以上之個案公共工程 "]
["801","臺北市政府 ","臺北市政府工務局水利工程處 ","無 ","臺北市淡水河水岸空間環境營造（中興橋下游至高速公路橋）委託規劃工作 ","勞務","工程服務 ","3950000","3900000","112/11/28","112/11/30","北部地區－全區 ","否","","非受中央政府補助比率逾工程建造經費百分之五十且補助經費達新臺幣一億元以上之個案公共工程 "]
["802","臺北市政府 ","臺北市政府工務局水利工程處 ","無 ","大龍抽水站擴建站新建工程 ","工程","水道、海港、水壩及其他水利工程 ","446385748","446000000","112/11/14","112/11/15","北部地區－全區 ","否","","非受中央政府補助比率逾工程建造經費百分之五十且補助經費達新臺幣一億元以上之個案公共工程 "]
["803","臺北市政府 ","臺北市政府工務局水利工程處 ","無 ","士林官邸北側滯洪池新建工程 ","工程","水道、海港、水壩及其他水利工程 ","313214447","313210000","112/11/21","112/11/22","北部地區－全區 ","否","","非受中央政府補助比率逾工程建造經費百分之五十且補助經費達新臺幣一億元以上之個案公共工程 "]
["804","臺北市政府 ","臺北市立聯合醫院 ","無 ","113年度裝修預算參考單價勞務採購案 ","勞務","工程服務 ","700000","700000","112/10/05","112/11/22","臺北市－全區 ","否","","整修工程、拆除工程、疏濬工程、結構補強工程 "]
["805","臺北市政府 ","臺北市政府捷運工程局第二區工程處 ","無 ","東園國小捷運共構大樓新建工程配合LG04站增設出入口D，東園國小垃圾場及電力變電站配合遷移 ","勞務","工程服務 ","1270530","1270000","112/10/03","112/11/23","臺北市－松山區 ","否","","非中央政府辦理新臺幣一億元以上之公共工程 "]
["806","臺北市政府 ","臺北市停車管理工程處 ","無 ","112年度停車場瀝青混凝土鋪面整修及維護工程開口契約委託設計及監造技術服務案後續擴充 ","勞務","工程服務 ","1800000","1800000","112/11/13","112/11/27","臺北市－全區 ","否","","非中央政府辦理新臺幣一億元以上之公共工程,非受中央政府補助比率逾工程建造經費百分之五十且補助經費達新臺幣一億元以上之個案公共工程 "]
["807","臺北市政府 ","臺北市都市更新處 ","無 ","112年度都市更新法令與業務輔導及教育訓練委辦案-第2次契約變更 ","勞務","都市計劃及景觀建築服務 ","329994","325000","112/11/07","112/11/08","臺北市－全區 ","否","","非中央政府辦理新臺幣一億元以上之公共工程 "]
["808","臺北市政府 ","臺北市都市更新處 ","無 ","「112年度台北老屋新生大獎」案–第一次契約變更 ","勞務","都市計劃及景觀建築服務 ","126000","125000","112/11/16","112/11/17","臺北市－全區 ","否","","非中央政府辦理新臺幣一億元以上之公共工程 "]
["809","臺北市政府 ","臺北市都市更新處 ","無 ","臺北市防災型都市更新專案相關作業委託專業服務案 ","勞務","都市計劃及景觀建築服務 ","940800","940800","112/11/15","112/11/16","臺北市－全區 ","否","","非中央政府辦理新臺幣一億元以上之公共工程 "]
["810","臺北市政府 ","臺北大眾捷運股份有限公司 ","無 ","捷運劍南路站轉乘設施空間活化及多元服務工程 ","工程","商用建築工程 ","4270706229","4270706229","112/11/16","112/11/17","臺北市－中山區 ","已依規定納入辦理節能減碳檢核 ","規劃設計階段納入辦理節能減碳檢核 ",""]
["811","臺北市政府 ","臺北大眾捷運股份有限公司 ","無 ","貓空纜車纜索裁剪工作 ","勞務","綜合工程服務 ","2922400","2899020","112/11/22","112/11/23","臺北市－全區,新北市－全區 ","否","","整修工程、拆除工程、疏濬工程、結構補強工程 "]
["812","臺北市政府 ","臺北大眾捷運股份有限公司 ","無 ","臺北小巨蛋辦公空間設計工作 ","勞務","建築服務 ","1336500","1336500","112/11/10","112/11/13","臺北市－全區,新北市－全區 ","否","","整修工程、拆除工程、疏濬工程、結構補強工程 "]
["813","臺北市政府 ","臺北大眾捷運股份有限公司 ","無 ","淡信線中山站、板南線市政府及西門站天花板更新工程委託監造工作 ","勞務","工程服務 ","5535000","5258800","112/11/28","112/11/30","臺北市－中山區,臺北市－松山區,臺北市－大安區,臺北市－萬華區 ","否","","非中央政府辦理新臺幣一億元以上之公共工程 "]
["814","臺北市政府 ","臺北大眾捷運股份有限公司 ","無 ","高運量電聯車暨車載號誌系統採購工程之獨立查證與確證委託技術服務工作 ","勞務","工程服務 ","19740000","14017500","112/11/15","112/11/16","臺北市－全區 ","否","","非中央政府辦理新臺幣一億元以上之公共工程 "]
["815","臺北市政府 ","臺北市政府體育局 ","無 ","「臺北田徑場消防設備系統更新工程」採購案 ","勞務","工程服務 ","5669384","5450000","112/11/14","112/11/22","臺北市－全區 ","否","","整修工程、拆除工程、疏濬工程、結構補強工程 "]
["816","臺東縣政府 ","臺東縣政府 ","教育部體育署 ","臺東縣全民運動館及青少年福利服務中心興建工程 ","工程","運動及娛樂工程 ","141867728","141800000","112/10/31","112/11/06","臺東縣－臺東 ","否","","規劃取得綠建築標章之建築工程 "]
["817","臺東縣政府 ","臺東縣臺東市公所 ","無 ","台東市112-113年建築及環境景觀暨地方基礎建設計畫委託技術服務案 ","勞務","建築服務 ","5860000","5856000","112/10/31","112/11/01","東部地區－全區 ","否","","非受中央政府補助比率逾工程建造經費百分之五十且補助經費達新臺幣一億元以上之個案公共工程 "]
["818","臺東縣政府 ","臺東縣太麻里鄉公所 ","無 "," 112年建築物工程技術服務開口契約 ","勞務","工程服務 ","6300000","6237000","112/11/14","112/11/22","臺東縣－太麻里 ","否","","非受中央政府補助比率逾工程建造經費百分之五十且補助經費達新臺幣一億元以上之個案公共工程,整修工程、拆除工程、疏濬工程、結構補強工程,規劃取得綠建築標章之建築工程 "]
["819","臺東縣政府 ","臺東縣太麻里鄉公所 ","無 ","太麻里鄉112-113年公共工程及災後復建工程技術服務開口契約 ","勞務","工程服務 ","9000000","9000000","112/11/23","112/11/27","臺東縣－太麻里 ","否","","災後原地復建 "]
["820","臺東縣政府 ","臺東縣東河鄉公所 ","臺東縣政府 ","東河鄉都蘭觀海平台景觀營造計畫工程專案管理(含監造) ","勞務","建築服務 ","1067893","1067000","112/11/24","112/11/28","臺東縣－東河 ","否","","非中央政府辦理新臺幣一億元以上之公共工程 "]
["821","臺東縣政府 ","臺東縣蘭嶼鄉公所 ","無 ","蘭嶼鄉綜合運動公園新建工程規劃設計案 ","勞務","建築服務 ","5880000","5580000","112/11/15","112/11/16","臺東縣－蘭嶼 ","否","","非中央政府辦理新臺幣一億元以上之公共工程,非受中央政府補助比率逾工程建造經費百分之五十且補助經費達新臺幣一億元以上之個案公共工程 "]
["822","臺南市政府 ","臺南市殯葬管理所 ","無 ","南區殯儀館景行廳兩側祭廳(和平59、60號)室內裝修許可申請勞務採購案 ","勞務","建築服務 ","193000","192000","112/11/23","112/11/27","臺南市－南區 ","否","","非中央政府辦理新臺幣一億元以上之公共工程 "]
["823","臺南市政府 ","臺南市殯葬管理所 ","無 ","南區殯儀館家屬休息室四周牆面易燃夾板材料裝修改善工程委託規劃設計及監造技術服務 ","勞務","工程服務 ","73784","73784","112/10/27","112/11/27","臺南市－南區 ","否","","非中央政府辦理新臺幣一億元以上之公共工程 "]
["824","臺南市政府 ","臺南市南瀛科學教育館 ","文化部 ","天文展示館常設展更新統包工程委託細部設計審查暨監造技術服務 ","勞務","建築服務 ","1495000","1473000","112/11/08","112/11/10","臺南市－大內區 ","否","","非中央政府辦理新臺幣一億元以上之公共工程,整修工程、拆除工程、疏濬工程、結構補強工程 "]
["825","臺南市政府 ","臺南市立延平國民中學 ","臺南市政府教育局 ","112年度延平國中學校基地內污水匯流工程委託規劃設計監造第一次變更契約 ","勞務","工程服務 ","354574","354574","112/11/22","112/11/23","臺南市－北區 ","否","","非中央政府辦理新臺幣一億元以上之公共工程,非受中央政府補助比率逾工程建造經費百分之五十且補助經費達新臺幣一億元以上之個案公共工程 "]
["826","臺南市政府 ","臺南市北區賢北國民小學 ","教育部國民及學前教育署、臺南市政府教育局 ","臺南市賢北國小A、B棟校舍及電梯外牆剝落改善工程委託監造技術服務勞務採購案 ","勞務","建築服務 ","792000","786000","112/11/10","112/11/10","臺南市－北區 ","否","","非中央政府辦理新臺幣一億元以上之公共工程,非受中央政府補助比率逾工程建造經費百分之五十且補助經費達新臺幣一億元以上之個案公共工程 "]
["827","臺南市政府 ","臺南市安定區南安國民小學 ","無 ","臺南市安定區南安國小周邊通學步道改善工程委託設計監造技術服務 ","勞務","工程服務 ","983618","925000","112/11/22","112/11/23","臺南市－全區 ","否","","非中央政府辦理新臺幣一億元以上之公共工程 "]
["828","臺南市政府 ","臺南市政府工務局 ","無 ","「臺南市中西區西湖里多功能場館新建工程」委託規劃、設計及監造技術服務案 ","勞務","建築服務 ","12685436","12685436","112/11/28","112/11/30","臺南市－中西區 ","否","","非中央政府辦理新臺幣一億元以上之公共工程,非受中央政府補助比率逾工程建造經費百分之五十且補助經費達新臺幣一億元以上之個案公共工程 "]
["829","臺南市政府 ","臺南市政府工務局 ","無 ","臺南市仁德區文賢路(保安路至依仁路)拓寬工程委託規畫設計及監造技術服務 ","勞務","工程服務 ","23356899","22329195","112/11/28","112/11/30","臺南市－仁德區 ","否","","非中央政府辦理新臺幣一億元以上之公共工程 "]
["830","臺南市政府 ","臺南市政府地政局 ","無 ","臺南市東區機35市地重劃工程委託規劃設計暨監造技術服務 ","勞務","工程服務 ","18181140","18181140","112/10/30","112/11/01","臺南市－東區 ","否","","非受中央政府補助比率逾工程建造經費百分之五十且補助經費達新臺幣一億元以上之個案公共工程 "]
["831","臺南市政府 ","臺南市政府水利局 ","內政部營建署 ","「臺南市永康水資源回收中心放流水回收再利用推動計畫」擴廠統包工程委託專案管理(含監造)技術服務 ","勞務","工程服務 ","7800000","7800000","112/11/16","112/11/17","臺南市－永康區 ","否","","非中央政府辦理新臺幣一億元以上之公共工程 "]
["832","臺南市政府 ","臺南市政府水利局 ","無 ","111年度臺南市水質淨化場委託代操作履約管理專業服務(第二次後續擴充) ","勞務","工程服務 ","3425000","3425000","112/10/31","112/11/07","臺南市－全區 ","否","","非中央政府辦理新臺幣一億元以上之公共工程 "]
["833","臺南市政府 ","臺南市政府水利局 ","無 ","臺南市永康區污水下水道系統第二期工程委託設計及監造技術服務(A標)第2次變更設計(後續擴充) ","勞務","工程服務 ","1534200","1534200","112/11/14","112/11/15","臺南市－全區 ","否","","災後緊急處理、搶修、搶險,災後原地復建 "]
["834","臺南市政府 ","臺南市政府水利局 ","無 ","臺南市官田水資源回收中心委託代操作管理-原污抽水泵更新作業擴充 ","勞務","工程服務 ","3170000","3090000","112/11/07","112/11/09","臺南市－官田區 ","否","","非中央政府辦理新臺幣一億元以上之公共工程 "]
["835","臺南市政府 ","臺南市動物防疫保護處 ","無 ","仁德區成功里二仁段1181地號土地設置遊蕩犬暫置區設計及監造技術服務 ","勞務","工程服務 ","2351545","2210452","112/10/31","112/11/03","臺南市－仁德區 ","否","","非受中央政府補助比率逾工程建造經費百分之五十且補助經費達新臺幣一億元以上之個案公共工程 "]
["836","臺南市政府 ","臺南市政府消防局 ","無 ","臺南市政府消防局第三救災救護大隊將軍分隊辦公廳舍新建工程委託規劃設計監造技術服務案(後續擴充監造部分) ","勞務","建築服務 ","1633246","1616913","112/10/18","112/11/02","臺南市－將軍區 ","否","","非中央政府辦理新臺幣一億元以上之公共工程,非受中央政府補助比率逾工程建造經費百分之五十且補助經費達新臺幣一億元以上之個案公共工程 "]
["837","臺南市政府 ","臺南市政府消防局 ","無 ","臺南市政府消防局第二救災救護大隊楠西分隊新建工程─ 已完成基礎安全鑑定及原結構設計檢討案 ","勞務","工程服務 ","560000","550000","112/10/23","112/11/01","臺南市－楠西區 ","否","","非中央政府辦理新臺幣一億元以上之公共工程,非受中央政府補助比率逾工程建造經費百分之五十且補助經費達新臺幣一億元以上之個案公共工程 "]
["838","臺南市政府 ","臺南市政府都市發展局 ","內政部 ","臺南市新營區金華段627地號暨周邊土地都市更新規劃招商案 ","勞務","都市計劃及景觀建築服務 ","5400000","5250000","112/11/09","112/11/10","臺南市－全區 ","否","","非受中央政府補助比率逾工程建造經費百分之五十且補助經費達新臺幣一億元以上之個案公共工程 "]
["839","臺南市政府 ","臺南市政府都市發展局 ","內政部 ","臺南市安平區崇義新村都市更新規劃招商案 ","勞務","都市計劃及景觀建築服務 ","5800000","5500000","112/11/09","112/11/10","臺南市－全區 ","否","","非受中央政府補助比率逾工程建造經費百分之五十且補助經費達新臺幣一億元以上之個案公共工程 "]
["840","臺南市政府 ","臺南市政府都市發展局 ","無 ","「高速公路新營交流道附近特定區計畫」產業候選基地北核心2-1整體規劃委託技術服務案 ","勞務","都市計劃及景觀建築服務 ","8000000","7980000","112/11/28","112/11/30","臺南市－全區 ","否","","非受中央政府補助比率逾工程建造經費百分之五十且補助經費達新臺幣一億元以上之個案公共工程 "]
["841","臺南市政府 ","臺南市政府體育局 ","教育部體育署 ","臺南市文中66慢速壘球場整建工程委託規劃設計監造技術服務 ","勞務","建築服務 ","1757353","1704632","112/11/07","112/11/16","臺南市－安平區 ","否","","整修工程、拆除工程、疏濬工程、結構補強工程 "]
["842","臺南市政府 ","臺南市政府體育局 ","無 ","新營體育園區廁所第4期整修工程─委託規劃設計監造技術服務 ","勞務","建築服務 ","1700000","1615000","112/11/17","112/11/21","臺南市－新營區 ","否","","非中央政府辦理新臺幣一億元以上之公共工程,非受中央政府補助比率逾工程建造經費百分之五十且補助經費達新臺幣一億元以上之個案公共工程,整修工程、拆除工程、疏濬工程、結構補強工程 "]
["843","臺南市政府 ","臺南市東區區公所 ","臺南市政府民政局 ","臺南市東區泉南里活動中心新建工程規劃設計及後續擴充監造 ","勞務","工程服務 ","1595000","1595000","112/11/07","112/11/14","臺南市－東區 ","否","","規劃取得綠建築標章之建築工程 "]
["844","臺南市政府 ","臺南市安南區公所 ","臺南市政府農業局 ","安南區曾文溪排水無名橋（公學路二段220巷）改建工程委託設計 ","勞務","工程服務 ","2800000","2800000","112/11/22","112/11/30","臺南市－安南區 ","否","","非受中央政府補助比率逾工程建造經費百分之五十且補助經費達新臺幣一億元以上之個案公共工程 "]
["845","臺南市政府 ","臺南市麻豆區公所 ","無 ","112年度麻豆區排水及道路改善工程(開口契約)委託設計監造 ","勞務","工程服務 ","1200000","1080000","112/11/20","112/11/30","臺南市－麻豆區 ","否","","非中央政府辦理新臺幣一億元以上之公共工程 "]
["846","臺南市政府 ","臺南市佳里區公所 ","臺南市政府水利局 ","佳里區下營里頂廍社區蒐集水路新建工程委託設計監造技術服務 ","勞務","工程服務 ","396818","396818","112/11/21","112/11/23","臺南市－佳里區 ","否","","非受中央政府補助比率逾工程建造經費百分之五十且補助經費達新臺幣一億元以上之個案公共工程 "]
["847","臺南市政府 ","臺南市善化區公所 ","無 ","112年度善化區行道樹綠美化環境維持開口契約(第二次後續擴充) ","勞務","工程服務 ","600000","600000","112/11/07","112/11/10","臺南市－善化區 ","否","","非中央政府辦理新臺幣一億元以上之公共工程,非受中央政府補助比率逾工程建造經費百分之五十且補助經費達新臺幣一億元以上之個案公共工程 "]
["848","臺南市政府 ","臺南市北門區公所 ","臺南市政府工務局 ","北門區仁安宮周邊風貌形塑計畫工程委託設計及監造技術服務 ","勞務","工程服務 ","975680","975680","112/11/16","112/11/20","臺南市－北門區 ","否","","非中央政府辦理新臺幣一億元以上之公共工程 "]
["849","臺南市政府 ","臺南市山上區公所 ","臺南市政府 ","112年度臺南市山上區工程委託設計監造開口契約(後續擴充) ","勞務","工程服務 ","1000000","1000000","112/11/09","112/11/10","臺南市－山上區 ","否","","非中央政府辦理新臺幣一億元以上之公共工程,非受中央政府補助比率逾工程建造經費百分之五十且補助經費達新臺幣一億元以上之個案公共工程 "]
["850","臺南市政府 ","臺南市左鎮區公所 ","無 ","左鎮休閒公園整體改善工程委託設計及監造技術服務 ","勞務","工程服務 ","500000","500000","112/11/28","112/11/29","臺南市－左鎮區 ","否","","非受中央政府補助比率逾工程建造經費百分之五十且補助經費達新臺幣一億元以上之個案公共工程 "]
["851","臺南市政府 ","臺南市龍崎區公所 ","無 ","龍崎區112年度路燈維修委託監造及新設路燈委託設計及監造開口契約第一次後續擴充 ","勞務","工程服務 ","60000","60000","112/10/30","112/11/02","臺南市－龍崎區 ","否","","整修工程、拆除工程、疏濬工程、結構補強工程 "]
["852","澎湖縣政府 ","澎湖縣政府 ","內政部 ","澎湖縣(白沙鄉、西嶼鄉、望安鄉及七美鄉)鄉村地區整體規劃委託技術服務案 ","勞務","都市計劃及景觀建築服務 ","9200000","9150000","112/11/14","112/11/20","澎湖縣－全區 ","否","","非中央政府辦理新臺幣一億元以上之公共工程,非受中央政府補助比率逾工程建造經費百分之五十且補助經費達新臺幣一億元以上之個案公共工程 "]
["853","澎湖縣政府 ","澎湖縣政府 ","內政部 ","研擬澎湖縣水庫飲用水水源水質保護區之績效管制標準案 ","勞務","都市計劃及景觀建築服務 ","2000000","1980000","112/11/14","112/11/20","澎湖縣－全區 ","否","","非中央政府辦理新臺幣一億元以上之公共工程,非受中央政府補助比率逾工程建造經費百分之五十且補助經費達新臺幣一億元以上之個案公共工程 "]
["854","澎湖縣政府 ","澎湖縣政府 ","內政部、行政院 ","澎湖縣菊島福園火化爐汰舊換新計畫委託監造技術服務 ","勞務","工程服務 ","1490000","1490000","112/11/03","112/11/06","澎湖縣－馬公 ","否","","整修工程、拆除工程、疏濬工程、結構補強工程 "]
["855","澎湖縣政府 ","澎湖縣政府 ","無 ","112年澎湖杜蘇芮颱風港灣災後復建工程委託設計監造服務 ","勞務","工程服務 ","4150000","3979500","112/11/13","112/11/15","澎湖縣－馬公,澎湖縣－西嶼,澎湖縣－望安 ","否","","災後原地復建 "]
["856","澎湖縣政府 ","澎湖縣政府文化局 ","文化部 ","澎湖縣歷史建築篤行十村城外區F、G、H區修復工程監造及工作報告書委託技術服務 ","勞務","建築服務 ","3878915","3700000","112/10/31","112/11/02","澎湖縣－馬公 ","否","","非中央政府辦理新臺幣一億元以上之公共工程,整修工程、拆除工程、疏濬工程、結構補強工程 "]
["857","澎湖縣政府 ","澎湖縣湖西鄉公所 ","無 ","112年度湖西鄉工程委託設計監造技術服務(開口契約) ","勞務","綜合工程服務 ","1132620","895560","112/10/13","112/11/16","澎湖縣－湖西 ","否","","非中央政府辦理新臺幣一億元以上之公共工程,整修工程、拆除工程、疏濬工程、結構補強工程 "]
["858","澎湖縣政府 ","澎湖縣西嶼鄉公所 ","衛生福利部、內政部 ","澎湖縣西嶼鄉公所綜合大樓暨池東池西活動中心拆除重建併設置托嬰中心工程 ","工程","其他用途建築工程 ","173225000","173000000","112/09/27","112/11/23","離島地區－全區 ","否","","非受中央政府補助比率逾工程建造經費百分之五十且補助經費達新臺幣一億元以上之個案公共工程 "]
["859","衛生福利部 ","衛生福利部 ","無 ","「衛生福利部職場互助教保服務中心設置工程」委託規劃設計監造技術服務 ","勞務","建築服務 ","889000","880110","112/11/09","112/11/22","北部地區－全區 ","否","","非中央政府辦理新臺幣一億元以上之公共工程 "]
["860","衛生福利部 ","衛生福利部 ","無 ","113年度「消防安全設備維護保養」採購案 ","勞務","建築服務 ","532807","500000","112/11/27","112/11/28","臺北市－全區 ","否","","非中央政府辦理新臺幣一億元以上之公共工程,非受中央政府補助比率逾工程建造經費百分之五十且補助經費達新臺幣一億元以上之個案公共工程 "]
["861","衛生福利部 ","衛生福利部南投啟智教養院 ","衛生福利部社會及家庭署 ","院區增設自動撒水設備委託規劃設計及監造技術服務 ","勞務","工程服務 ","2465602","2465602","112/11/21","112/11/29","南投縣－名間 ","否","","非受中央政府補助比率逾工程建造經費百分之五十且補助經費達新臺幣一億元以上之個案公共工程 "]
["862","衛生福利部 ","衛生福利部彰化醫院 ","無 ","廚房整修改善工程委託規劃設計暨監造技術服務採購案 ","勞務","建築服務 ","2215856","2128388","112/10/31","112/11/16","彰化縣－埔心 ","否","","整修工程、拆除工程、疏濬工程、結構補強工程 "]